Workbook

Sheet ReadMe
B2: How to run the macros ?
D4: Macro Mack1999
C6: Delete the sheet "travail"
C8: Select the whole triangle with our mouse - See example below:
D10: 357848 | E10: 1124788 | F10: 1735330 | G10: 2218270 | H10: 2745596 | I10: 3319994 | J10: 3466336 | K10: 3606286 | L10: 3833515 | M10: 3901463
D11: 352118 | E11: 1236139 | F11: 2170033 | G11: 3353322 | H11: 3799067 | I11: 4120063 | J11: 4647867 | K11: 4914039 | L11: 5339085
D12: 290507 | E12: 1292306 | F12: 2218525 | G12: 3235179 | H12: 3985995 | I12: 4132918 | J12: 4628910 | K12: 4909315
D13: 310608 | E13: 1418858 | F13: 2195047 | G13: 3757447 | H13: 4029929 | I13: 4381982 | J13: 4588268
D14: 443160 | E14: 1136350 | F14: 2128333 | G14: 2897821 | H14: 3402672 | I14: 3873311
D15: 396132 | E15: 1333217 | F15: 2180715 | G15: 2985752 | H15: 3691712
D16: 440832 | E16: 1288463 | F16: 2419861 | G16: 3483130
D17: 359480 | E17: 1421128 | F17: 2864498
D18: 376686 | E18: 1363294
D19: 344014
C21: Click on:
C22: -> View
C23: -> Macro
C24: -> View Macro
C25: -> Mack1999
C26: -> Run
C28: In the sheet "travail", CoVs and skewness are given
D31: Macro OverallSkew1
C33: Delete the sheet "travail1"
C35: On the sheet "Summary", select the correlation matrix as below:
D37: 1 | E37: 0.01094953525 | F37: 0.0002638417202 | G37: 4.877823423e-05 | H37: 2.55545485e-05 | I37: 2.740997802e-05 | J37: 2.734707813e-05 | K37: 3.374564968e-05 | L37: 1.966385311e-05 | M37: 8.970003718e-06
D38: 0.01094953525 | E38: 1 | F38: 0.002560580046 | G38: 0.0004733920518 | H38: 0.0002480065205 | I38: 0.0002660134369 | J38: 0.0002654029944 | K38: 0.000327501038 | L38: 0.0001908374077 | M38: 8.705375526e-05
D39: 0.0002638417202 | E39: 0.002560580046 | F39: 1 | G39: 0.06330635416 | H39: 0.0331657208 | I39: 0.03557377186 | J39: 0.03549213785 | K39: 0.04379646135 | L39: 0.02552053942 | M39: 0.01164163158
D40: 4.877823423e-05 | E40: 0.0004733920518 | F40: 0.06330635416 | G40: 1 | H40: 0.3045768066 | I40: 0.3266911005 | J40: 0.3259414161 | K40: 0.4022040232 | L40: 0.2343674194 | M40: 0.1069107164
D41: 2.55545485e-05 | E41: 0.0002480065205 | F41: 0.0331657208 | G41: 0.3045768066 | H41: 1 | I41: 0.1783052344 | J41: 0.177896063 | K41: 0.2195195477 | L41: 0.1279157516 | M41: 0.05835096308
D42: 2.740997802e-05 | E42: 0.0002660134369 | F42: 0.03557377186 | G42: 0.3266911005 | H42: 0.1783052344 | I42: 1 | J42: 0.2004305809 | K42: 0.2473266114 | L42: 0.1441191444 | M42: 0.0657424185
D43: 2.734707813e-05 | E43: 0.0002654029944 | F43: 0.03549213785 | G43: 0.3259414161 | H43: 0.177896063 | I43: 0.2004305809 | J43: 1 | K43: 0.2689552831 | L43: 0.15672234 | M43: 0.07149158224
D44: 3.374564968e-05 | E44: 0.000327501038 | F44: 0.04379646135 | G44: 0.4022040232 | H44: 0.2195195477 | I44: 0.2473266114 | J44: 0.2689552831 | K44: 1 | L44: 0.2488361634 | M44: 0.113510882
D45: 1.966385311e-05 | E45: 0.0001908374077 | F45: 0.02552053942 | G45: 0.2343674194 | H45: 0.1279157516 | I45: 0.1441191444 | J45: 0.15672234 | K45: 0.2488361634 | L45: 1 | M45: 0.1918805822
D46: 8.970003718e-06 | E46: 8.705375526e-05 | F46: 0.01164163158 | G46: 0.1069107164 | H46: 0.05835096308 | I46: 0.0657424185 | J46: 0.07149158224 | K46: 0.113510882 | L46: 0.1918805822 | M46: 1
C48: Click on:
C49: -> View
C50: -> Macro
C51: -> View Macro
C52: -> OverallSkew1
C53: -> Run
C55: In the sheet "travail1", the overall skewness is given.

Sheet Data
C2: Individual claims - Cumulative | P2: Individual claims - Incremental | AA2: IBNER calculation - Article R. Schnieper
A4: UWY | B4: ClaimNb1 | C4: X1 | D4: X2 | E4: X3 | F4: X4 | G4: X5 | H4: X6 | I4: X7 | J4: X8 | K4: X9 | L4: X10 | M4: X11 | N4: X1 | O4: X2-X1 | P4: =E4&"-"&D4 -> X3-X2 | Q4: X4-X3 | R4: X5-X4 | S4: X6-X5 | T4: X7-X6 | U4: X8-X7 | V4: X9-X8 | W4: X10-X9 | X4: X11-X10 | Y4: X1 | Z4: =O4 -> X2-X1 | AA4: =P4 -> X3-X2 | AB4: X4-X3 | AC4: X5-X4 | AD4: X6-X5 | AE4: X7-X6 | AF4: X8-X7 | AG4: X9-X8 | AH4: X10-X9 | AI4: X11-X10
A5: 2006 | B5: 145 | E5: 470.7803217 | F5: 470.7803217 | G5: 470.7803217 | H5: 470.7803217 | I5: 470.7803217 | J5: 470.7803217 | K5: 470.7803217 | L5: 470.7803217 | M5: 470.7803217 | N5: =IF(C5<>"",C5,"") ->  | O5: =IF(AND(C5<>"",D5<>""),D5-C5,IF(AND(C5="",D5<>""),D5,"")) ->  | P5: =IF(AND(D5<>"",E5<>""),E5-D5,IF(AND(D5="",E5<>""),E5,"")) -> 470.7803217 | Q5: =IF(AND(E5<>"",F5<>""),F5-E5,IF(AND(E5="",F5<>""),F5,"")) -> 0 | R5: =IF(AND(F5<>"",G5<>""),G5-F5,IF(AND(F5="",G5<>""),G5,"")) -> 0 | S5: =IF(AND(G5<>"",H5<>""),H5-G5,IF(AND(G5="",H5<>""),H5,"")) -> 0 | T5: =IF(AND(H5<>"",I5<>""),I5-H5,IF(AND(H5="",I5<>""),I5,"")) -> 0 | U5: =IF(AND(I5<>"",J5<>""),J5-I5,IF(AND(I5="",J5<>""),J5,"")) -> 0 | V5: =IF(AND(J5<>"",K5<>""),K5-J5,IF(AND(J5="",K5<>""),K5,"")) -> 0 | W5: =IF(AND(K5<>"",L5<>""),L5-K5,IF(AND(K5="",L5<>""),L5,"")) -> 0 | X5: =IF(AND(L5<>"",M5<>""),M5-L5,IF(AND(L5="",M5<>""),M5,"")) -> 0 | Z5: =IF(AND(C5<>"",D5<>""),C5-D5,"") ->  | AA5: =IF(AND(D5<>"",E5<>""),D5-E5,"") ->  | AB5: 0 | AC5: 0 | AD5: 0 | AE5: 0 | AF5: 0 | AG5: 0 | AH5: 0 | AI5: 0
A6: 2006 | B6: 270 | D6: 19962.80451 | E6: 6591.879433 | F6: 6591.879433 | G6: 6591.879433 | H6: 6591.879433 | I6: 4373.896146 | J6: 4373.896146 | K6: 4373.896146 | L6: 4373.896146 | M6: 4373.896146 | O6: 19962.80451 | P6: -13370.92508 | Q6: 0 | R6: 0 | S6: 0 | T6: -2217.983287 | U6: 0 | V6: 0 | W6: 0 | X6: 0 | Z6: =IF(AND(C6<>"",D6<>""),C6-D6,"") ->  | AA6: =IF(AND(D6<>"",E6<>""),D6-E6,"") -> 13370.92508 | AB6: =IF(AND(E6<>"",F6<>""),E6-F6,"") -> 0 | AC6: =IF(AND(F6<>"",G6<>""),F6-G6,"") -> 0 | AD6: =IF(AND(G6<>"",H6<>""),G6-H6,"") -> 0 | AE6: =IF(AND(H6<>"",I6<>""),H6-I6,"") -> 2217.983287 | AF6: =IF(AND(I6<>"",J6<>""),I6-J6,"") -> 0 | AG6: =IF(AND(J6<>"",K6<>""),J6-K6,"") -> 0 | AH6: =IF(AND(K6<>"",L6<>""),K6-L6,"") -> 0 | AI6: =IF(AND(L6<>"",M6<>""),L6-M6,"") -> 0
A7: 2006 | B7: 342 | D7: 3115.298856 | E7: 3115.298856 | F7: 3115.298856 | G7: 3115.298856 | H7: 3115.298856 | I7: 3115.298856 | J7: 3115.298856 | K7: 3115.298856 | L7: 3115.298856 | M7: 3115.298856 | O7: 3115.298856 | P7: 0 | Q7: 0 | R7: 0 | S7: 0 | T7: 0 | U7: 0 | V7: 0 | W7: 0 | X7: 0 | AA7: 0 | AB7: 0 | AC7: 0 | AD7: 0 | AE7: 0 | AF7: 0 | AG7: 0 | AH7: 0 | AI7: 0
A8: 2006 | B8: 447 | D8: 4361.80037 | E8: 4361.80037 | F8: 4361.80037 | G8: 4361.80037 | H8: 4361.80037 | I8: 266.1070648 | J8: 266.1070648 | K8: 266.1070648 | L8: 266.1070648 | M8: 266.1070648 | O8: 4361.80037 | P8: 0 | Q8: 0 | R8: 0 | S8: 0 | T8: -4095.693306 | U8: 0 | V8: 0 | W8: 0 | X8: 0 | AA8: 0 | AB8: 0 | AC8: 0 | AD8: 0 | AE8: 4095.693306 | AF8: 0 | AG8: 0 | AH8: 0 | AI8: 0
A9: 2006 | B9: 467 | E9: 9764.792378 | F9: 9764.792378 | G9: 9764.792378 | H9: 9764.792378 | I9: 227.2732587 | J9: 227.2732587 | K9: 227.2732587 | L9: 227.2732587 | M9: 227.2732587 | P9: 9764.792378 | Q9: 0 | R9: 0 | S9: 0 | T9: -9537.51912 | U9: 0 | V9: 0 | W9: 0 | X9: 0 | AB9: 0 | AC9: 0 | AD9: 0 | AE9: 9537.51912 | AF9: 0 | AG9: 0 | AH9: 0 | AI9: 0
A10: 2006 | B10: 493 | E10: 2090.341023 | F10: 2090.341023 | G10: 2090.341023 | H10: 1035.46206 | I10: 1035.46206 | J10: 1035.46206 | K10: 1035.46206 | L10: 1035.46206 | M10: 1035.46206 | P10: 2090.341023 | Q10: 0 | R10: 0 | S10: -1054.878963 | T10: 0 | U10: 0 | V10: 0 | W10: 0 | X10: 0 | AB10: 0 | AC10: 0 | AD10: 1054.878963 | AE10: 0 | AF10: 0 | AG10: 0 | AH10: 0 | AI10: 0
A11: 2006 | B11: 617 | C11: 343.1380573 | D11: 318.3098862 | E11: 318.3098862 | F11: 343.1380573 | G11: 343.1380573 | H11: 343.1380573 | I11: 343.1380573 | J11: 318.3098862 | K11: 318.3098862 | L11: 318.3098862 | M11: 318.3098862 | N11: 343.1380573 | O11: -24.82817112 | P11: 0 | Q11: 24.82817112 | R11: 0 | S11: 0 | T11: 0 | U11: -24.82817112 | V11: 0 | W11: 0 | X11: 0 | Z11: 24.82817112 | AA11: 0 | AB11: -24.82817112 | AC11: 0 | AD11: 0 | AE11: 0 | AF11: 24.82817112 | AG11: 0 | AH11: 0 | AI11: 0
A12: 2006 | B12: 649 | E12: 885540.6498 | F12: 1095268.986 | G12: 1088145.211 | H12: 1087223.385 | I12: 1087223.385 | J12: 1087223.385 | K12: 1087223.385 | L12: 1087223.385 | M12: 1087223.385 | P12: 885540.6498 | Q12: 209728.3361 | R12: -7123.775253 | S12: -921.8254304 | T12: 0 | U12: 0 | V12: 0 | W12: 0 | X12: 0 | AB12: -209728.3361 | AC12: 7123.775253 | AD12: 921.8254304 | AE12: 0 | AF12: 0 | AG12: 0 | AH12: 0 | AI12: 0
A13: 2006 | B13: 656 | E13: 35138.54665 | F13: 18545.6889 | G13: 18545.6889 | H13: 18545.6889 | I13: 18545.6889 | J13: 18545.6889 | K13: 18545.6889 | L13: 18545.6889 | M13: 18545.6889 | P13: 35138.54665 | Q13: -16592.85775 | R13: 0 | S13: 0 | T13: 0 | U13: 0 | V13: 0 | W13: 0 | X13: 0 | AB13: 16592.85775 | AC13: 0 | AD13: 0 | AE13: 0 | AF13: 0 | AG13: 0 | AH13: 0 | AI13: 0
A14: 2006 | B14: 710 | G14: 2070.2875 | H14: 941.2423334 | I14: 2137.769196 | J14: 2396.555133 | K14: 5916.107545 | L14: 7590.099236 | M14: 6533.947034 | R14: 2070.2875 | S14: -1129.045166 | T14: 1196.526862 | U14: 258.7859375 | V14: 3519.552412 | W14: 1673.991691 | X14: -1056.152202 | AD14: 1129.045166 | AE14: -1196.526862 | AF14: -258.7859375 | AG14: -3519.552412 | AH14: -1673.991691 | AI14: 1056.152202
A15: 2006 | B15: 875 | C15: 1478.867731 | D15: 1478.867731 | E15: 1478.867731 | F15: 1478.867731 | G15: 1478.867731 | H15: 1478.867731 | I15: 1478.867731 | J15: 1478.867731 | N15: 1478.867731 | O15: 0 | P15: 0 | Q15: 0 | R15: 0 | S15: 0 | T15: 0 | U15: 0 | Z15: 0 | AA15: 0 | AB15: 0 | AC15: 0 | AD15: 0 | AE15: 0 | AF15: 0
A16: 2006 | B16: 876 | D16: 384061.2495 | E16: 384061.2495 | F16: 384061.2495 | G16: 384061.2495 | H16: 384061.2495 | I16: 384061.2495 | J16: 384061.2495 | K16: 384061.2495 | L16: 384061.2495 | M16: 384061.2495 | O16: 384061.2495 | P16: 0 | Q16: 0 | R16: 0 | S16: 0 | T16: 0 | U16: 0 | V16: 0 | W16: 0 | X16: 0 | AA16: 0 | AB16: 0 | AC16: 0 | AD16: 0 | AE16: 0 | AF16: 0 | AG16: 0 | AH16: 0 | AI16: 0
A17: 2006 | B17: 887 | E17: 386.7465117 | F17: 386.7465117 | G17: 386.7465117 | H17: 386.7465117 | I17: 386.7465117 | J17: 386.7465117 | K17: 386.7465117 | L17: 386.7465117 | M17: 386.7465117 | P17: 386.7465117 | Q17: 0 | R17: 0 | S17: 0 | T17: 0 | U17: 0 | V17: 0 | W17: 0 | X17: 0 | AB17: 0 | AC17: 0 | AD17: 0 | AE17: 0 | AF17: 0 | AG17: 0 | AH17: 0 | AI17: 0
A18: 2006 | B18: 1027 | K18: 2210.34385 | L18: 2210.34385 | M18: 2210.34385 | V18: 2210.34385 | W18: 0 | X18: 0 | AH18: 0 | AI18: 0
A19: 2006 | B19: 1038 | G19: 92233.15431 | H19: 92233.15431 | I19: 92233.15431 | J19: 92233.15431 | K19: 92233.15431 | L19: 92233.15431 | M19: 92233.15431 | R19: 92233.15431 | S19: 0 | T19: 0 | U19: 0 | V19: 0 | W19: 0 | X19: 0 | AD19: 0 | AE19: 0 | AF19: 0 | AG19: 0 | AH19: 0 | AI19: 0
A20: 2006 | B20: 1084 | J20: 20386.47497 | K20: 20185.30312 | L20: 20185.30312 | M20: 20185.30312 | U20: 20386.47497 | V20: -201.1718481 | W20: 0 | X20: 0 | AG20: 201.1718481 | AH20: 0 | AI20: 0
A21: 2006 | B21: 1096 | M21: 7870.530246 | X21: 7870.530246
A22: 2006 | B22: 1412 | C22: 159473.253 | D22: 79577.47155 | E22: 79577.47155 | F22: 79577.47155 | G22: 79577.47155 | H22: 79577.47155 | I22: 79577.47155 | J22: 79577.47155 | K22: 79577.47155 | L22: 79577.47155 | M22: 79577.47155 | N22: 159473.253 | O22: -79895.78143 | P22: 0 | Q22: 0 | R22: 0 | S22: 0 | T22: 0 | U22: 0 | V22: 0 | W22: 0 | X22: 0 | Z22: 79895.78143 | AA22: 0 | AB22: 0 | AC22: 0 | AD22: 0 | AE22: 0 | AF22: 0 | AG22: 0 | AH22: 0 | AI22: 0
A23: 2006 | B23: 1417 | D23: 42025.18103 | E23: 42025.18103 | F23: 42091.38949 | G23: 5485.752578 | H23: 5485.752578 | I23: 5485.752578 | J23: 5485.752578 | K23: 5485.752578 | L23: 5485.752578 | M23: 5485.752578 | O23: 42025.18103 | P23: 0 | Q23: 66.20845633 | R23: -36605.63691 | S23: 0 | T23: 0 | U23: 0 | V23: 0 | W23: 0 | X23: 0 | AA23: 0 | AB23: -66.20845633 | AC23: 36605.63691 | AD23: 0 | AE23: 0 | AF23: 0 | AG23: 0 | AH23: 0 | AI23: 0
A24: 2006 | B24: 1422 | D24: 5729.577951 | E24: 5729.577951 | F24: 5729.577951 | G24: 5729.577951 | H24: 8116.902098 | I24: 8116.902098 | J24: 5801.515986 | K24: 5801.515986 | L24: 5801.515986 | M24: 5801.515986 | O24: 5729.577951 | P24: 0 | Q24: 0 | R24: 0 | S24: 2387.324146 | T24: 0 | U24: -2315.386112 | V24: 0 | W24: 0 | X24: 0 | AA24: 0 | AB24: 0 | AC24: 0 | AD24: -2387.324146 | AE24: 0 | AF24: 2315.386112 | AG24: 0 | AH24: 0 | AI24: 0
A25: 2006 | B25: 1446 | D25: 47.74648293 | E25: 59.8422586 | F25: 954.9296586 | G25: 954.9296586 | H25: 954.9296586 | I25: 954.9296586 | J25: 7.639437268 | K25: 7.639437268 | L25: 7.639437268 | M25: 7.639437268 | O25: 47.74648293 | P25: 12.09577567 | Q25: 895.0873999 | R25: 0 | S25: 0 | T25: 0 | U25: -947.2902213 | V25: 0 | W25: 0 | X25: 0 | AA25: -12.09577567 | AB25: -895.0873999 | AC25: 0 | AD25: 0 | AE25: 0 | AF25: 947.2902213 | AG25: 0 | AH25: 0 | AI25: 0
A26: 2006 | B26: 1447 | D26: 190.9859317 | E26: 237.1408652 | F26: 1125.225448 | G26: 1125.225448 | H26: 1125.225448 | I26: 1125.225448 | J26: 414.1211619 | K26: 414.1211619 | L26: 414.1211619 | M26: 414.1211619 | O26: 190.9859317 | P26: 46.1549335 | Q26: 888.0845825 | R26: 0 | S26: 0 | T26: 0 | U26: -711.1042857 | V26: 0 | W26: 0 | X26: 0 | AA26: -46.1549335 | AB26: -888.0845825 | AC26: 0 | AD26: 0 | AE26: 0 | AF26: 711.1042857 | AG26: 0 | AH26: 0 | AI26: 0
A27: 2006 | B27: 1448 | D27: 286.4788976 | E27: 725.1099207 | F27: 963.8423354 | G27: 963.8423354 | H27: 725.1099207 | I27: 725.1099207 | J27: 725.1099207 | K27: 725.1099207 | L27: 725.1099207 | M27: 725.1099207 | O27: 286.4788976 | P27: 438.6310232 | Q27: 238.7324146 | R27: 0 | S27: -238.7324146 | T27: 0 | U27: 0 | V27: 0 | W27: 0 | X27: 0 | AA27: -438.6310232 | AB27: -238.7324146 | AC27: 0 | AD27: 238.7324146 | AE27: 0 | AF27: 0 | AG27: 0 | AH27: 0 | AI27: 0
A28: 2006 | B28: 1451 | D28: 381.9718634 | E28: 381.9718634 | F28: 381.9718634 | G28: 6748.169587 | O28: 381.9718634 | P28: 0 | Q28: 0 | R28: 6366.197724 | AA28: 0 | AB28: 0 | AC28: -6366.197724
A29: 2006 | B29: 1453 | E29: 719.0620329 | F29: 719.0620329 | G29: 719.0620329 | H29: 719.0620329 | I29: 719.0620329 | J29: 719.0620329 | K29: 719.0620329 | L29: 719.0620329 | M29: 719.0620329 | P29: 719.0620329 | Q29: 0 | R29: 0 | S29: 0 | T29: 0 | U29: 0 | V29: 0 | W29: 0 | X29: 0 | AB29: 0 | AC29: 0 | AD29: 0 | AE29: 0 | AF29: 0 | AG29: 0 | AH29: 0 | AI29: 0
A30: 2006 | B30: 1456 | E30: 286.4788976 | F30: 1432.394488 | G30: 1432.394488 | H30: 1432.394488 | I30: 1432.394488 | J30: 1063.79164 | K30: 1063.79164 | L30: 1063.79164 | M30: 1063.79164 | P30: 286.4788976 | Q30: 1145.91559 | R30: 0 | S30: 0 | T30: 0 | U30: -368.6028482 | V30: 0 | W30: 0 | X30: 0 | AB30: -1145.91559 | AC30: 0 | AD30: 0 | AE30: 0 | AF30: 368.6028482 | AG30: 0 | AH30: 0 | AI30: 0
A31: 2006 | B31: 1472 | F31: 485.7408863 | G31: 485.7408863 | H31: 485.7408863 | I31: 485.7408863 | J31: 258.1493177 | K31: 727.3380899 | L31: 727.3380899 | M31: 727.3380899 | Q31: 485.7408863 | R31: 0 | S31: 0 | T31: 0 | U31: -227.5915686 | V31: 469.1887722 | W31: 0 | X31: 0 | AC31: 0 | AD31: 0 | AE31: 0 | AF31: 227.5915686 | AG31: -469.1887722 | AH31: 0 | AI31: 0
A32: 2007 | B32: 17 | D32: 1526.295904 | E32: 1526.295904 | F32: 1526.295904 | G32: 1526.295904 | H32: 1526.295904 | I32: 1526.295904 | J32: 1526.295904 | K32: 1526.295904 | L32: 1526.295904 | O32: 1526.295904 | P32: 0 | Q32: 0 | R32: 0 | S32: 0 | T32: 0 | U32: 0 | V32: 0 | W32: 0 | AA32: 0 | AB32: 0 | AC32: 0 | AD32: 0 | AE32: 0 | AF32: 0 | AG32: 0 | AH32: 0
A33: 2007 | B33: 54 | D33: 828.2423239 | E33: 828.2423239 | F33: 828.2423239 | G33: 828.2423239 | H33: 828.2423239 | I33: 828.2423239 | J33: 828.2423239 | K33: 828.2423239 | L33: 828.2423239 | O33: 828.2423239 | P33: 0 | Q33: 0 | R33: 0 | S33: 0 | T33: 0 | U33: 0 | V33: 0 | W33: 0 | AA33: 0 | AB33: 0 | AC33: 0 | AD33: 0 | AE33: 0 | AF33: 0 | AG33: 0 | AH33: 0
A34: 2007 | B34: 122 | C34: 7393.702036 | D34: 7393.702036 | E34: 7393.702036 | F34: 7393.702036 | G34: 7393.702036 | N34: 7393.702036 | O34: 0 | P34: 0 | Q34: 0 | R34: 0 | Z34: 0 | AA34: 0 | AB34: 0 | AC34: 0
A35: 2007 | B35: 123 | D35: 9561.392361 | E35: 9561.392361 | F35: 9561.392361 | G35: 9561.392361 | H35: 9561.392361 | I35: 9561.392361 | J35: 9561.392361 | K35: 9561.392361 | L35: 9561.392361 | O35: 9561.392361 | P35: 0 | Q35: 0 | R35: 0 | S35: 0 | T35: 0 | U35: 0 | V35: 0 | W35: 0 | AA35: 0 | AB35: 0 | AC35: 0 | AD35: 0 | AE35: 0 | AF35: 0 | AG35: 0 | AH35: 0
A36: 2007 | B36: 135 | D36: 2513.693171 | E36: 2513.693171 | F36: 2513.693171 | O36: 2513.693171 | P36: 0 | Q36: 0 | AA36: 0 | AB36: 0
A37: 2007 | B37: 268 | D37: 1099.442347 | E37: 1099.442347 | F37: 1099.442347 | O37: 1099.442347 | P37: 0 | Q37: 0 | AA37: 0 | AB37: 0
A38: 2007 | B38: 273 | D38: 580.5972324 | E38: 580.5972324 | F38: 580.5972324 | G38: 580.5972324 | H38: 580.5972324 | I38: 580.5972324 | J38: 580.5972324 | K38: 580.5972324 | L38: 580.5972324 | O38: 580.5972324 | P38: 0 | Q38: 0 | R38: 0 | S38: 0 | T38: 0 | U38: 0 | V38: 0 | W38: 0 | AA38: 0 | AB38: 0 | AC38: 0 | AD38: 0 | AE38: 0 | AF38: 0 | AG38: 0 | AH38: 0
A39: 2007 | B39: 285 | D39: 184840.3227 | E39: 229256.9659 | F39: 229256.9659 | G39: 229256.9659 | H39: 229256.9659 | I39: 229256.9659 | J39: 229256.9659 | K39: 229256.9659 | L39: 229256.9659 | O39: 184840.3227 | P39: 44416.64321 | Q39: 0 | R39: 0 | S39: 0 | T39: 0 | U39: 0 | V39: 0 | W39: 0 | AA39: -44416.64321 | AB39: 0 | AC39: 0 | AD39: 0 | AE39: 0 | AF39: 0 | AG39: 0 | AH39: 0
A40: 2007 | B40: 347 | D40: 1835.693114 | E40: 1835.693114 | F40: 1899.991711 | G40: 1899.991711 | H40: 396.9324281 | I40: 396.9324281 | J40: 396.9324281 | K40: 396.9324281 | L40: 396.9324281 | O40: 1835.693114 | P40: 0 | Q40: 64.29859701 | R40: 0 | S40: -1503.059283 | T40: 0 | U40: 0 | V40: 0 | W40: 0 | AA40: 0 | AB40: -64.29859701 | AC40: 0 | AD40: 1503.059283 | AE40: 0 | AF40: 0 | AG40: 0 | AH40: 0
A41: 2007 | B41: 613 | D41: 370.1943976 | E41: 370.1943976 | F41: 370.1943976 | G41: 370.1943976 | H41: 542.7183559 | I41: 542.7183559 | J41: 542.7183559 | K41: 542.7183559 | L41: 542.7183559 | O41: 370.1943976 | P41: 0 | Q41: 0 | R41: 0 | S41: 172.5239583 | T41: 0 | U41: 0 | V41: 0 | W41: 0 | AA41: 0 | AB41: 0 | AC41: 0 | AD41: -172.5239583 | AE41: 0 | AF41: 0 | AG41: 0 | AH41: 0
A42: 2007 | B42: 635 | D42: 1542.529708 | E42: 1542.529708 | F42: 1542.529708 | G42: 1542.529708 | H42: 1542.529708 | I42: 1542.529708 | J42: 1542.529708 | K42: 1542.529708 | L42: 1542.529708 | O42: 1542.529708 | P42: 0 | Q42: 0 | R42: 0 | S42: 0 | T42: 0 | U42: 0 | V42: 0 | W42: 0 | AA42: 0 | AB42: 0 | AC42: 0 | AD42: 0 | AE42: 0 | AF42: 0 | AG42: 0 | AH42: 0
A43: 2007 | B43: 645 | F43: 3006003.974 | G43: 1911010.962 | H43: 1911318.768 | I43: 1911318.768 | J43: 1911318.768 | K43: 1902552.514 | L43: 1902552.514 | Q43: 3006003.974 | R43: -1094993.011 | S43: 307.8056599 | T43: 0 | U43: 0 | V43: -8766.254266 | W43: 0 | AC43: 1094993.011 | AD43: -307.8056599 | AE43: 0 | AF43: 0 | AG43: 8766.254266 | AH43: 0
A44: 2007 | B44: 667 | D44: 1270.693066 | E44: 1270.693066 | F44: 1270.693066 | G44: 1270.693066 | H44: 1270.693066 | I44: 1270.693066 | J44: 1270.693066 | K44: 1270.693066 | L44: 1270.693066 | O44: 1270.693066 | P44: 0 | Q44: 0 | R44: 0 | S44: 0 | T44: 0 | U44: 0 | V44: 0 | W44: 0 | AA44: 0 | AB44: 0 | AC44: 0 | AD44: 0 | AE44: 0 | AF44: 0 | AG44: 0 | AH44: 0
A45: 2007 | B45: 670 | D45: 1408.521246 | E45: 1568.949429 | F45: 2724.414316 | G45: 1989.755099 | H45: 1989.755099 | I45: 1989.755099 | J45: 1989.755099 | K45: 1989.755099 | L45: 1989.755099 | O45: 1408.521246 | P45: 160.4281826 | Q45: 1155.464887 | R45: -734.6592173 | S45: 0 | T45: 0 | U45: 0 | V45: 0 | W45: 0 | AA45: -160.4281826 | AB45: -1155.464887 | AC45: 734.6592173 | AD45: 0 | AE45: 0 | AF45: 0 | AG45: 0 | AH45: 0
A46: 2007 | B46: 674 | E46: 868.6676794 | F46: 984.532478 | G46: 400.7521467 | H46: 400.7521467 | I46: 400.7521467 | J46: 400.7521467 | K46: 400.7521467 | L46: 400.7521467 | P46: 868.6676794 | Q46: 115.8647986 | R46: -583.7803313 | S46: 0 | T46: 0 | U46: 0 | V46: 0 | W46: 0 | AB46: -115.8647986 | AC46: 583.7803313 | AD46: 0 | AE46: 0 | AF46: 0 | AG46: 0 | AH46: 0
A47: 2007 | B47: 675 | E47: 994.4000844 | F47: 994.4000844 | G47: 994.4000844 | H47: 994.4000844 | I47: 994.4000844 | J47: 994.4000844 | K47: 994.4000844 | L47: 994.4000844 | P47: 994.4000844 | Q47: 0 | R47: 0 | S47: 0 | T47: 0 | U47: 0 | V47: 0 | W47: 0 | AB47: 0 | AC47: 0 | AD47: 0 | AE47: 0 | AF47: 0 | AG47: 0 | AH47: 0
A48: 2007 | B48: 676 | E48: 4045.400344 | F48: 4045.400344 | G48: 1687.997326 | H48: 1687.997326 | I48: 1687.997326 | J48: 1687.997326 | K48: 1687.997326 | L48: 1687.997326 | P48: 4045.400344 | Q48: 0 | R48: -2357.403017 | S48: 0 | T48: 0 | U48: 0 | V48: 0 | W48: 0 | AB48: 0 | AC48: 2357.403017 | AD48: 0 | AE48: 0 | AF48: 0 | AG48: 0 | AH48: 0
A49: 2007 | B49: 677 | E49: 587.6000499 | F49: 587.6000499 | G49: 587.6000499 | H49: 587.6000499 | I49: 587.6000499 | J49: 587.6000499 | K49: 587.6000499 | L49: 587.6000499 | P49: 587.6000499 | Q49: 0 | R49: 0 | S49: 0 | T49: 0 | U49: 0 | V49: 0 | W49: 0 | AB49: 0 | AC49: 0 | AD49: 0 | AE49: 0 | AF49: 0 | AG49: 0 | AH49: 0
A50: 2007 | B50: 678 | E50: 1297.431096 | F50: 1297.431096 | G50: 1297.431096 | H50: 1297.431096 | I50: 1297.431096 | J50: 1297.431096 | K50: 1297.431096 | L50: 1297.431096 | P50: 1297.431096 | Q50: 0 | R50: 0 | S50: 0 | T50: 0 | U50: 0 | V50: 0 | W50: 0 | AB50: 0 | AC50: 0 | AD50: 0 | AE50: 0 | AF50: 0 | AG50: 0 | AH50: 0
A51: 2007 | B51: 679 | E51: 19597.38476 | F51: 19597.38476 | G51: 19597.38476 | H51: 19597.38476 | I51: 19597.38476 | J51: 19597.38476 | K51: 19597.38476 | L51: 19597.38476 | P51: 19597.38476 | Q51: 0 | R51: 0 | S51: 0 | T51: 0 | U51: 0 | V51: 0 | W51: 0 | AB51: 0 | AC51: 0 | AD51: 0 | AE51: 0 | AF51: 0 | AG51: 0 | AH51: 0
A52: 2007 | B52: 681 | E52: 4131.980633 | F52: 4131.980633 | G52: 4131.980633 | H52: 4131.980633 | I52: 4131.980633 | J52: 4131.980633 | K52: 4131.980633 | L52: 4131.980633 | P52: 4131.980633 | Q52: 0 | R52: 0 | S52: 0 | T52: 0 | U52: 0 | V52: 0 | W52: 0 | AB52: 0 | AC52: 0 | AD52: 0 | AE52: 0 | AF52: 0 | AG52: 0 | AH52: 0
A53: 2007 | B53: 683 | E53: 8977.93034 | F53: 8977.93034 | P53: 8977.93034 | Q53: 0 | AB53: 0
A54: 2007 | B54: 685 | E54: 1204.802919 | F54: 1204.802919 | G54: 1204.802919 | H54: 1204.802919 | I54: 1204.802919 | J54: 1204.802919 | K54: 1204.802919 | L54: 1204.802919 | P54: 1204.802919 | Q54: 0 | R54: 0 | S54: 0 | T54: 0 | U54: 0 | V54: 0 | W54: 0 | AB54: 0 | AC54: 0 | AD54: 0 | AE54: 0 | AF54: 0 | AG54: 0 | AH54: 0
A55: 2007 | B55: 704 | E55: 542.0817362 | F55: 2459.8988 | G55: 2459.8988 | H55: 631.5268142 | I55: 631.5268142 | J55: 631.5268142 | K55: 631.5268142 | L55: 631.5268142 | P55: 542.0817362 | Q55: 1917.817064 | R55: 0 | S55: -1828.371986 | T55: 0 | U55: 0 | V55: 0 | W55: 0 | AB55: -1917.817064 | AC55: 0 | AD55: 1828.371986 | AE55: 0 | AF55: 0 | AG55: 0 | AH55: 0
A56: 2007 | B56: 705 | E56: 4627.270815 | F56: 925.3268391 | G56: 950.1550103 | H56: 933.2845863 | I56: 933.2845863 | J56: 933.2845863 | K56: 933.2845863 | L56: 933.2845863 | P56: 4627.270815 | Q56: -3701.943976 | R56: 24.82817112 | S56: -16.87042397 | T56: 0 | U56: 0 | V56: 0 | W56: 0 | AB56: 3701.943976 | AC56: -24.82817112 | AD56: 16.87042397 | AE56: 0 | AF56: 0 | AG56: 0 | AH56: 0
A57: 2007 | B57: 706 | E57: 404.8901752 | F57: 404.8901752 | G57: 404.8901752 | H57: 404.8901752 | I57: 404.8901752 | J57: 404.8901752 | K57: 404.8901752 | L57: 404.8901752 | P57: 404.8901752 | Q57: 0 | R57: 0 | S57: 0 | T57: 0 | U57: 0 | V57: 0 | W57: 0 | AB57: 0 | AC57: 0 | AD57: 0 | AE57: 0 | AF57: 0 | AG57: 0 | AH57: 0
A58: 2007 | B58: 713 | F58: 647.7606184 | G58: 647.7606184 | H58: 647.7606184 | I58: 647.7606184 | J58: 647.7606184 | K58: 647.7606184 | L58: 647.7606184 | Q58: 647.7606184 | R58: 0 | S58: 0 | T58: 0 | U58: 0 | V58: 0 | W58: 0 | AC58: 0 | AD58: 0 | AE58: 0 | AF58: 0 | AG58: 0 | AH58: 0
A59: 2007 | B59: 716 | F59: 5966.082197 | G59: 6614.797745 | H59: 6614.797745 | I59: 6614.797745 | J59: 6614.797745 | K59: 6614.797745 | L59: 6614.797745 | Q59: 5966.082197 | R59: 648.715548 | S59: 0 | T59: 0 | U59: 0 | V59: 0 | W59: 0 | AC59: -648.715548 | AD59: 0 | AE59: 0 | AF59: 0 | AG59: 0 | AH59: 0
A60: 2007 | B60: 717 | F60: 3298.008731 | G60: 3298.008731 | H60: 3298.008731 | I60: 3298.008731 | J60: 3298.008731 | K60: 3298.008731 | L60: 3298.008731 | Q60: 3298.008731 | R60: 0 | S60: 0 | T60: 0 | U60: 0 | V60: 0 | W60: 0 | AC60: 0 | AD60: 0 | AE60: 0 | AF60: 0 | AG60: 0 | AH60: 0
A61: 2007 | B61: 724 | G61: 5835.575143 | H61: 5835.575143 | I61: 5835.575143 | J61: 5835.575143 | K61: 5835.575143 | L61: 5835.575143 | R61: 5835.575143 | S61: 0 | T61: 0 | U61: 0 | V61: 0 | W61: 0 | AD61: 0 | AE61: 0 | AF61: 0 | AG61: 0 | AH61: 0
A62: 2007 | B62: 732 | G62: 5822.524438 | H62: 5822.524438 | I62: 5822.524438 | J62: 529.3493407 | K62: 529.3493407 | L62: 529.3493407 | R62: 5822.524438 | S62: 0 | T62: 0 | U62: -5293.175097 | V62: 0 | W62: 0 | AD62: 0 | AE62: 0 | AF62: 5293.175097 | AG62: 0 | AH62: 0
A63: 2007 | B63: 743 | I63: 3696.851018 | J63: 3696.851018 | K63: 3142.355196 | L63: 3142.355196 | T63: 3696.851018 | U63: 0 | V63: -554.4958217 | W63: 0 | AF63: 0 | AG63: 554.4958217 | AH63: 0
A64: 2007 | B64: 761 | L64: 17158.81272 | W64: 17158.81272
A65: 2007 | B65: 823 | E65: 4824.622945 | F65: 4824.622945 | G65: 4824.622945 | H65: 4824.622945 | I65: 4824.622945 | J65: 4824.622945 | K65: 113.0000096 | L65: 113.0000096 | P65: 4824.622945 | Q65: 0 | R65: 0 | S65: 0 | T65: 0 | U65: 0 | V65: -4711.622935 | W65: 0 | AB65: 0 | AC65: 0 | AD65: 0 | AE65: 0 | AF65: 0 | AG65: 4711.622935 | AH65: 0
A66: 2007 | B66: 877 | D66: 15586.04358 | E66: 15586.04358 | F66: 15586.04358 | G66: 17302.05217 | H66: 21824.91735 | I66: 21824.91735 | J66: 21165.06095 | K66: 21165.06095 | L66: 21165.06095 | O66: 15586.04358 | P66: 0 | Q66: 0 | R66: 1716.008596 | S66: 4522.865173 | T66: 0 | U66: -659.8563941 | V66: 0 | W66: 0 | AA66: 0 | AB66: 0 | AC66: -1716.008596 | AD66: -4522.865173 | AE66: 0 | AF66: 659.8563941 | AG66: 0 | AH66: 0
A67: 2007 | B67: 895 | E67: 1334.673353 | F67: 1748.476205 | G67: 1748.476205 | H67: 2146.363563 | I67: 2146.363563 | J67: 2146.363563 | K67: 1479.186041 | L67: 1479.186041 | P67: 1334.673353 | Q67: 413.802852 | R67: 0 | S67: 397.8873577 | T67: 0 | U67: 0 | V67: -667.1775214 | W67: 0 | AB67: -413.802852 | AC67: 0 | AD67: -397.8873577 | AE67: 0 | AF67: 0 | AG67: 667.1775214 | AH67: 0
A68: 2007 | B68: 903 | F68: 468.5521525 | G68: 468.5521525 | H68: 468.5521525 | I68: 468.5521525 | J68: 468.5521525 | K68: 468.5521525 | L68: 468.5521525 | Q68: 468.5521525 | R68: 0 | S68: 0 | T68: 0 | U68: 0 | V68: 0 | W68: 0 | AC68: 0 | AD68: 0 | AE68: 0 | AF68: 0 | AG68: 0 | AH68: 0
A69: 2007 | B69: 1023 | D69: 1254.459261 | E69: 7475463.75 | F69: 7521875.242 | G69: 7508933.398 | H69: 7508933.398 | I69: 7508933.398 | J69: 7508933.398 | K69: 7508933.398 | L69: 7508933.398 | N69: =IF(C69<>"",C69,"") ->  | O69: =IF(AND(C69<>"",D69<>""),D69-C69,IF(AND(C69="",D69<>""),D69,"")) -> 1254.459261 | P69: =IF(AND(D69<>"",E69<>""),E69-D69,IF(AND(D69="",E69<>""),E69,"")) -> 7474209.291 | Q69: =IF(AND(E69<>"",F69<>""),F69-E69,IF(AND(E69="",F69<>""),F69,"")) -> 46411.49126 | R69: =IF(AND(F69<>"",G69<>""),G69-F69,IF(AND(F69="",G69<>""),G69,"")) -> -12941.84335 | S69: =IF(AND(G69<>"",H69<>""),H69-G69,IF(AND(G69="",H69<>""),H69,"")) -> 0 | T69: =IF(AND(H69<>"",I69<>""),I69-H69,IF(AND(H69="",I69<>""),I69,"")) -> 0 | U69: =IF(AND(I69<>"",J69<>""),J69-I69,IF(AND(I69="",J69<>""),J69,"")) -> 0 | V69: =IF(AND(J69<>"",K69<>""),K69-J69,IF(AND(J69="",K69<>""),K69,"")) -> 0 | W69: =IF(AND(K69<>"",L69<>""),L69-K69,IF(AND(K69="",L69<>""),L69,"")) -> 0 | X69: =IF(AND(L69<>"",M69<>""),M69-L69,IF(AND(L69="",M69<>""),M69,"")) ->  | AA69: -7474209.291 | AB69: -46411.49126 | AC69: 12941.84335 | AD69: 0 | AE69: 0 | AF69: 0 | AG69: 0 | AH69: 0
A70: 2007 | B70: 1024 | I70: 16090.88306 | J70: 74940.65143 | K70: 82572.44927 | L70: 82572.44927 | T70: 16090.88306 | U70: 58849.76838 | V70: 7631.797831 | W70: 0 | Z70: =IF(AND(C70<>"",D70<>""),C70-D70,"") ->  | AA70: =IF(AND(D70<>"",E70<>""),D70-E70,"") ->  | AB70: =IF(AND(E70<>"",F70<>""),E70-F70,"") ->  | AC70: =IF(AND(F70<>"",G70<>""),F70-G70,"") ->  | AD70: =IF(AND(G70<>"",H70<>""),G70-H70,"") ->  | AE70: =IF(AND(H70<>"",I70<>""),H70-I70,"") ->  | AF70: =IF(AND(I70<>"",J70<>""),I70-J70,"") -> -58849.76838 | AG70: =IF(AND(J70<>"",K70<>""),J70-K70,"") -> -7631.797831 | AH70: =IF(AND(K70<>"",L70<>""),K70-L70,"") -> 0 | AI70: =IF(AND(L70<>"",M70<>""),L70-M70,"") -> 
A71: 2007 | B71: 1035 | F71: 189330.7203 | G71: 189330.7203 | H71: 189330.7203 | I71: 189330.7203 | J71: 189330.7203 | K71: 189330.7203 | L71: 189330.7203 | Q71: 189330.7203 | R71: 0 | S71: 0 | T71: 0 | U71: 0 | V71: 0 | W71: 0 | AC71: 0 | AD71: 0 | AE71: 0 | AF71: 0 | AG71: 0 | AH71: 0
A72: 2007 | B72: 1040 | G72: 1108.355024 | H72: 1108.355024 | I72: 1108.355024 | J72: 1108.355024 | K72: 1108.355024 | L72: 1108.355024 | R72: 1108.355024 | S72: 0 | T72: 0 | U72: 0 | V72: 0 | W72: 0 | AD72: 0 | AE72: 0 | AF72: 0 | AG72: 0 | AH72: 0
A73: 2007 | B73: 1045 | G73: 358419.7966 | H73: 358419.7966 | I73: 358419.7966 | J73: 358419.7966 | K73: 6821.380861 | L73: 6821.380861 | R73: 358419.7966 | S73: 0 | T73: 0 | U73: 0 | V73: -351598.4158 | W73: 0 | AD73: 0 | AE73: 0 | AF73: 0 | AG73: 351598.4158 | AH73: 0
A74: 2007 | B74: 1047 | E74: 6656.49634 | F74: 17382.26626 | G74: 23405.00762 | H74: 22502.59909 | I74: 22502.59909 | J74: 22502.59909 | K74: 22502.59909 | L74: 22502.59909 | P74: 6656.49634 | Q74: 10725.76992 | R74: 6022.741356 | S74: -902.4085273 | T74: 0 | U74: 0 | V74: 0 | W74: 0 | AB74: -10725.76992 | AC74: -6022.741356 | AD74: 902.4085273 | AE74: 0 | AF74: 0 | AG74: 0 | AH74: 0
A75: 2007 | B75: 1076 | G75: 5615.941322 | H75: 8014.406314 | I75: 11979.59257 | J75: 12232.64893 | K75: 12232.64893 | L75: 12232.64893 | R75: 5615.941322 | S75: 2398.464992 | T75: 3965.186252 | U75: 253.0563595 | V75: 0 | W75: 0 | AD75: -2398.464992 | AE75: -3965.186252 | AF75: -253.0563595 | AG75: 0 | AH75: 0
A76: 2007 | B76: 1077 | I76: 31694.11537 | J76: 60533.94599 | K76: 60533.94599 | L76: 60533.94599 | T76: 31694.11537 | U76: 28839.83062 | V76: 0 | W76: 0 | AF76: -28839.83062 | AG76: 0 | AH76: 0
A77: 2007 | B77: 1093 | K77: 387721.1766 | L77: 387721.1766 | V77: 387721.1766 | W77: 0 | AH77: 0
A78: 2007 | B78: 1105 | I78: 298266.231 | J78: 322250.2443 | K78: 322250.2443 | L78: 322250.2443 | T78: 298266.231 | U78: 23984.0133 | V78: 0 | W78: 0 | AF78: -23984.0133 | AG78: 0 | AH78: 0
A79: 2007 | B79: 1445 | C79: 795.7747155 | D79: 557042.3008 | E79: 579575.776 | F79: 579654.7168 | G79: 557042.3008 | H79: 557042.3008 | I79: 954929.6586 | J79: 954929.6586 | K79: 942891.497 | L79: 954929.6586 | N79: 795.7747155 | O79: 556246.5261 | P79: 22533.47515 | Q79: 78.94085177 | R79: -22612.416 | S79: 0 | T79: 397887.3577 | U79: 0 | V79: -12038.16159 | W79: 12038.16159 | Z79: -556246.5261 | AA79: -22533.47515 | AB79: -78.94085177 | AC79: 22612.416 | AD79: 0 | AE79: -397887.3577 | AF79: 0 | AG79: 12038.16159 | AH79: -12038.16159
A80: 2007 | B80: 1452 | D80: 51005.97616 | E80: 51005.97616 | F80: 51005.97616 | G80: 51005.97616 | H80: 51005.97616 | I80: 51005.97616 | J80: 51005.97616 | K80: 51005.97616 | L80: 51005.97616 | O80: 51005.97616 | P80: 0 | Q80: 0 | R80: 0 | S80: 0 | T80: 0 | U80: 0 | V80: 0 | W80: 0 | AA80: 0 | AB80: 0 | AC80: 0 | AD80: 0 | AE80: 0 | AF80: 0 | AG80: 0 | AH80: 0
A81: 2007 | B81: 1455 | D81: 1844.9241 | E81: 767.1268257 | F81: 3219.067879 | G81: 3219.067879 | H81: 3219.067879 | I81: 3173.867875 | J81: 3173.867875 | K81: 3173.867875 | L81: 3173.867875 | O81: 1844.9241 | P81: -1077.797275 | Q81: 2451.941053 | R81: 0 | S81: 0 | T81: -45.20000384 | U81: 0 | V81: 0 | W81: 0 | AA81: 1077.797275 | AB81: -2451.941053 | AC81: 0 | AD81: 0 | AE81: 45.20000384 | AF81: 0 | AG81: 0 | AH81: 0
A82: 2007 | B82: 1459 | D82: 1478.867731 | E82: 1730.969161 | F82: 1730.969161 | G82: 1730.969161 | H82: 1730.969161 | I82: 1730.969161 | J82: 1730.969161 | K82: 1730.969161 | L82: 1730.969161 | O82: 1478.867731 | P82: 252.1014299 | Q82: 0 | R82: 0 | S82: 0 | T82: 0 | U82: 0 | V82: 0 | W82: 0 | AA82: -252.1014299 | AB82: 0 | AC82: 0 | AD82: 0 | AE82: 0 | AF82: 0 | AG82: 0 | AH82: 0
A83: 2007 | B83: 1475 | D83: 1632.611406 | E83: 1632.611406 | F83: 1632.611406 | G83: 1632.611406 | H83: 1632.611406 | I83: 1632.611406 | J83: 1632.611406 | K83: 1632.611406 | L83: 1632.611406 | O83: 1632.611406 | P83: 0 | Q83: 0 | R83: 0 | S83: 0 | T83: 0 | U83: 0 | V83: 0 | W83: 0 | AA83: 0 | AB83: 0 | AC83: 0 | AD83: 0 | AE83: 0 | AF83: 0 | AG83: 0 | AH83: 0
A84: 2007 | B84: 1512 | J84: 6532.673794 | K84: 6532.673794 | L84: 6532.673794 | U84: 6532.673794 | V84: 0 | W84: 0 | AG84: 0 | AH84: 0
A85: 2008 | B85: 817 | D85: 1108.673334 | E85: 1108.673334 | F85: 1108.673334 | G85: 1108.673334 | H85: 1108.673334 | I85: 1108.673334 | J85: 1138.276153 | K85: 1138.276153 | O85: 1108.673334 | P85: 0 | Q85: 0 | R85: 0 | S85: 0 | T85: 0 | U85: 29.60281942 | V85: 0 | AA85: 0 | AB85: 0 | AC85: 0 | AD85: 0 | AE85: 0 | AF85: -29.60281942 | AG85: 0
A86: 2008 | B86: 821 | C86: 100001 | D86: 1193820.91 | E86: 1200835.505 | F86: 1200835.505 | G86: 1282453.343 | H86: 1402029.635 | I86: 1574504.573 | J86: 250659.1678 | K86: -27669.08686 | N86: 100001 | O86: 1093819.91 | P86: 7014.594962 | Q86: 0 | R86: 81617.83792 | S86: 119576.2918 | T86: 172474.9386 | U86: -1323845.405 | V86: -278328.2546 | Z86: -1093819.91 | AA86: -7014.594962 | AB86: 0 | AC86: -81617.83792 | AD86: -119576.2918 | AE86: -172474.9386 | AF86: 1323845.405 | AG86: 278328.2546
A87: 2008 | B87: 822 | E87: 551002.689 | F87: 481331.9761 | G87: 481331.9761 | H87: 481331.9761 | I87: 481331.9761 | J87: 481331.9761 | K87: 481331.9761 | P87: 551002.689 | Q87: -69670.71296 | R87: 0 | S87: 0 | T87: 0 | U87: 0 | V87: 0 | AB87: 69670.71296 | AC87: 0 | AD87: 0 | AE87: 0 | AF87: 0 | AG87: 0
A88: 2008 | B88: 888 | D88: 19.09859317 | E88: 953.3381091 | F88: 476.8282095 | G88: 476.8282095 | H88: 568.5014567 | I88: 568.5014567 | J88: 568.5014567 | K88: 568.5014567 | O88: 19.09859317 | P88: 934.2395159 | Q88: -476.5098996 | R88: 0 | S88: 91.67324722 | T88: 0 | U88: 0 | V88: 0 | AA88: -934.2395159 | AB88: 476.5098996 | AC88: 0 | AD88: -91.67324722 | AE88: 0 | AF88: 0 | AG88: 0
A89: 2008 | B89: 892 | D89: 624.2056868 | E89: 624.2056868 | F89: 624.2056868 | G89: 624.2056868 | H89: 624.2056868 | I89: 624.2056868 | J89: 624.2056868 | K89: 624.2056868 | O89: 624.2056868 | P89: 0 | Q89: 0 | R89: 0 | S89: 0 | T89: 0 | U89: 0 | V89: 0 | AA89: 0 | AB89: 0 | AC89: 0 | AD89: 0 | AE89: 0 | AF89: 0 | AG89: 0
A90: 2008 | B90: 901 | D90: 17.18873385 | E90: 600.9690651 | F90: 600.9690651 | G90: 600.9690651 | H90: 600.9690651 | I90: 600.9690651 | J90: 600.9690651 | K90: 600.9690651 | O90: 17.18873385 | P90: 583.7803313 | Q90: 0 | R90: 0 | S90: 0 | T90: 0 | U90: 0 | V90: 0 | AA90: -583.7803313 | AB90: 0 | AC90: 0 | AD90: 0 | AE90: 0 | AF90: 0 | AG90: 0
A91: 2008 | B91: 906 | E91: 11362.3897 | F91: 12505.12219 | G91: 12505.12219 | H91: 13189.17013 | I91: 13095.26872 | J91: 9379.637416 | K91: 9379.637416 | P91: 11362.3897 | Q91: 1142.732491 | R91: 0 | S91: 684.0479454 | T91: -93.90141642 | U91: -3715.631301 | V91: 0 | AB91: -1142.732491 | AC91: 0 | AD91: -684.0479454 | AE91: 93.90141642 | AF91: 3715.631301 | AG91: 0
A92: 2008 | B92: 935 | G92: 6819.789311 | H92: 6860.532977 | I92: 6869.127344 | J92: 3886.56371 | K92: 3810.169338 | R92: 6819.789311 | S92: 40.74366543 | T92: 8.594366927 | U92: -2982.563634 | V92: -76.39437268 | AD92: -40.74366543 | AE92: -8.594366927 | AF92: 2982.563634 | AG92: 76.39437268
A93: 2008 | B93: 964 | I93: 1098.805727 | J93: 1098.805727 | K93: 1098.805727 | T93: 1098.805727 | U93: 0 | V93: 0 | AF93: 0 | AG93: 0
A94: 2008 | B94: 967 | D94: 40664.72458 | E94: 175.0704374 | F94: 175.0704374 | G94: 175.0704374 | H94: 175.0704374 | I94: 175.0704374 | J94: 175.0704374 | K94: 175.0704374 | O94: 40664.72458 | P94: -40489.65414 | Q94: 0 | R94: 0 | S94: 0 | T94: 0 | U94: 0 | V94: 0 | AA94: 40489.65414 | AB94: 0 | AC94: 0 | AD94: 0 | AE94: 0 | AF94: 0 | AG94: 0
A95: 2008 | B95: 969 | D95: 2930.997432 | E95: 2023.177637 | F95: 2023.177637 | G95: 2023.177637 | H95: 2023.177637 | I95: 2023.177637 | J95: 2023.177637 | K95: 2023.177637 | O95: 2930.997432 | P95: -907.8197954 | Q95: 0 | R95: 0 | S95: 0 | T95: 0 | U95: 0 | V95: 0 | AA95: 907.8197954 | AB95: 0 | AC95: 0 | AD95: 0 | AE95: 0 | AF95: 0 | AG95: 0
A96: 2008 | B96: 995 | D96: 4608.808842 | E96: 4608.808842 | F96: 7391.792177 | G96: 7391.792177 | H96: 7391.792177 | I96: 7391.792177 | J96: 7391.792177 | K96: 7391.792177 | O96: 4608.808842 | P96: 0 | Q96: 2782.983335 | R96: 0 | S96: 0 | T96: 0 | U96: 0 | V96: 0 | AA96: 0 | AB96: -2782.983335 | AC96: 0 | AD96: 0 | AE96: 0 | AF96: 0 | AG96: 0
A97: 2008 | B97: 1007 | J97: 5355.563835 | K97: 5413.177924 | U97: 5355.563835 | V97: 57.6140894 | AG97: -57.6140894
A98: 2008 | B98: 1026 | D98: 211363.8123 | E98: 218071.2382 | F98: 211639.787 | G98: 211840.0039 | H98: 211840.0039 | I98: 211840.0039 | J98: 211840.0039 | K98: 211840.0039 | O98: 211363.8123 | P98: 6707.425922 | Q98: -6431.45125 | R98: 200.2169184 | S98: 0 | T98: 0 | U98: 0 | V98: 0 | AA98: -6707.425922 | AB98: 6431.45125 | AC98: -200.2169184 | AD98: 0 | AE98: 0 | AF98: 0 | AG98: 0
A99: 2008 | B99: 1028 | D99: 16911.16763 | E99: 16911.16763 | F99: 16930.90285 | G99: 833.9719018 | H99: 833.9719018 | I99: 833.9719018 | J99: 833.9719018 | K99: 833.9719018 | O99: 16911.16763 | P99: 0 | Q99: 19.73521294 | R99: -16096.93094 | S99: 0 | T99: 0 | U99: 0 | V99: 0 | AA99: 0 | AB99: -19.73521294 | AC99: 16096.93094 | AD99: 0 | AE99: 0 | AF99: 0 | AG99: 0
A100: 2008 | B100: 1030 | F100: 1500.194494 | G100: 1500.194494 | H100: 1500.194494 | I100: 1500.194494 | J100: 1500.194494 | K100: 1500.194494 | Q100: 1500.194494 | R100: 0 | S100: 0 | T100: 0 | U100: 0 | V100: 0 | AC100: 0 | AD100: 0 | AE100: 0 | AF100: 0 | AG100: 0
A101: 2008 | B101: 1031 | D101: 48311.80129 | E101: 2172.146663 | F101: 2172.146663 | G101: 2172.146663 | H101: 561.8169491 | I101: 561.8169491 | J101: 561.8169491 | K101: 561.8169491 | O101: 48311.80129 | P101: -46139.65462 | Q101: 0 | R101: 0 | S101: -1610.329714 | T101: 0 | U101: 0 | V101: 0 | AA101: 46139.65462 | AB101: 0 | AC101: 0 | AD101: 1610.329714 | AE101: 0 | AF101: 0 | AG101: 0
A102: 2008 | B102: 1032 | E102: 13350.87156 | F102: 13350.87156 | G102: 13350.87156 | H102: 13350.87156 | I102: 13350.87156 | J102: 13350.87156 | K102: 13350.87156 | P102: 13350.87156 | Q102: 0 | R102: 0 | S102: 0 | T102: 0 | U102: 0 | V102: 0 | AB102: 0 | AC102: 0 | AD102: 0 | AE102: 0 | AF102: 0 | AG102: 0
A103: 2008 | B103: 1034 | E103: 6038.975161 | F103: 6038.975161 | P103: 6038.975161 | Q103: 0 | AB103: 0
A104: 2008 | B104: 1046 | I104: 3556.158048 | J104: 5255.932841 | K104: 5255.932841 | T104: 3556.158048 | U104: 1699.774792 | V104: 0 | AF104: -1699.774792 | AG104: 0
A105: 2008 | B105: 1049 | I105: 24097.64993 | J105: 39115.51036 | K105: 39819.29352 | T105: 24097.64993 | U105: 15017.86043 | V105: 703.7831584 | AF105: -15017.86043 | AG105: -703.7831584
A106: 2008 | B106: 1079 | H106: 8872.888077 | I106: 8872.888077 | J106: 8872.888077 | K106: 1.591549431 | S106: 8872.888077 | T106: 0 | U106: 0 | V106: -8871.296528 | AE106: 0 | AF106: 0 | AG106: 8871.296528
A107: 2008 | B107: 1080 | H107: 60300.30653 | I107: 60300.30653 | J107: 60300.30653 | K107: 60300.30653 | S107: 60300.30653 | T107: 0 | U107: 0 | V107: 0 | AE107: 0 | AF107: 0 | AG107: 0
A108: 2008 | B108: 1100 | H108: 14817.96182 | I108: 14817.96182 | J108: 14817.96182 | K108: 7664.583749 | S108: 14817.96182 | T108: 0 | U108: 0 | V108: -7153.378072 | AE108: 0 | AF108: 0 | AG108: 7153.378072
A109: 2008 | B109: 1112 | I109: 26141.83602 | J109: 26141.83602 | K109: 26141.83602 | T109: 26141.83602 | U109: 0 | V109: 0 | AF109: 0 | AG109: 0
A110: 2008 | B110: 1113 | I110: 738109.6965 | J110: 738109.6965 | K110: 738109.6965 | T110: 738109.6965 | U110: 0 | V110: 0 | AF110: 0 | AG110: 0
A111: 2008 | B111: 1121 | I111: 12247.9278 | J111: 12247.9278 | K111: 12247.9278 | T111: 12247.9278 | U111: 0 | V111: 0 | AF111: 0 | AG111: 0
A112: 2008 | B112: 1503 | G112: 1400.563499 | H112: 1400.563499 | I112: 1400.563499 | J112: 1400.563499 | K112: 1400.563499 | R112: 1400.563499 | S112: 0 | T112: 0 | U112: 0 | V112: 0 | AD112: 0 | AE112: 0 | AF112: 0 | AG112: 0
A113: 2008 | B113: 1504 | G113: 2801.126998 | H113: 2801.126998 | J113: 3326.338311 | K113: 3326.338311 | R113: 2801.126998 | S113: 0 | U113: 3326.338311 | V113: 0 | AD113: 0 | AG113: 0
A114: 2009 | B114: 708 | D114: 954.9296586 | E114: 1031.005721 | F114: 1031.005721 | G114: 1031.005721 | H114: 1031.005721 | I114: 1031.005721 | J114: 1031.005721 | O114: 954.9296586 | P114: 76.0760628 | Q114: 0 | R114: 0 | S114: 0 | T114: 0 | U114: 0 | AA114: -76.0760628 | AB114: 0 | AC114: 0 | AD114: 0 | AE114: 0 | AF114: 0
A115: 2009 | B115: 831 | D115: 22425.24979 | E115: 1513809.881 | F115: 1514952.931 | G115: 1515396.337 | H115: 1515396.337 | I115: 1515396.337 | J115: 1515396.337 | O115: 22425.24979 | P115: 1491384.631 | Q115: 1143.050801 | R115: 443.4056715 | S115: 0 | T115: 0 | U115: 0 | AA115: -1491384.631 | AB115: -1143.050801 | AC115: -443.4056715 | AD115: 0 | AE115: 0 | AF115: 0
A116: 2009 | B116: 832 | E116: 1478.867731 | F116: 1478.867731 | G116: 1478.867731 | H116: 1478.867731 | P116: 1478.867731 | Q116: 0 | R116: 0 | S116: 0 | AB116: 0 | AC116: 0 | AD116: 0
A117: 2009 | B117: 833 | C117: 102001 | D117: 1267669.122 | E117: 1294311.659 | F117: 1294311.659 | G117: 1294311.659 | H117: 1294311.659 | I117: 795774.7155 | J117: 795774.7155 | N117: 102001 | O117: 1165668.122 | P117: 26642.53747 | Q117: 0 | R117: 0 | S117: 0 | T117: -498536.9437 | U117: 0 | Z117: -1165668.122 | AA117: -26642.53747 | AB117: 0 | AC117: 0 | AD117: 0 | AE117: 498536.9437 | AF117: 0
A118: 2009 | B118: 836 | H118: 948822.8834 | I118: 925318.2448 | J118: 925318.2448 | S118: 948822.8834 | T118: -23504.63862 | U118: 0 | AE118: 23504.63862 | AF118: 0
A119: 2009 | B119: 839 | H119: 33063.16619 | I119: 44857.82071 | J119: 8849.014836 | S119: 33063.16619 | T119: 11794.65452 | U119: -36008.80587 | AE119: -11794.65452 | AF119: 36008.80587
A120: 2009 | B120: 900 | J120: 5224.738472 | U120: 5224.738472
A121: 2009 | B121: 904 | D121: 1490.645197 | E121: 1490.645197 | F121: 1490.645197 | G121: 1490.645197 | H121: 1490.645197 | I121: 1490.645197 | J121: 1490.645197 | O121: 1490.645197 | P121: 0 | Q121: 0 | R121: 0 | S121: 0 | T121: 0 | U121: 0 | AA121: 0 | AB121: 0 | AC121: 0 | AD121: 0 | AE121: 0 | AF121: 0
A122: 2009 | B122: 909 | D122: 338.6817189 | E122: 33560.36623 | F122: 35456.53822 | G122: 35928.27347 | H122: 36194.06223 | I122: 36194.06223 | J122: 28602.68975 | O122: 338.6817189 | P122: 33221.68451 | Q122: 1896.171992 | R122: 471.7352513 | S122: 265.788755 | T122: 0 | U122: -7591.372476 | AA122: -33221.68451 | AB122: -1896.171992 | AC122: -471.7352513 | AD122: -265.788755 | AE122: 0 | AF122: 7591.372476
A123: 2009 | B123: 921 | E123: 12412.81232 | F123: 10587.94174 | G123: 10587.94174 | H123: 10587.94174 | I123: 10587.94174 | J123: 10587.94174 | P123: 12412.81232 | Q123: -1824.870577 | R123: 0 | S123: 0 | T123: 0 | U123: 0 | AB123: 1824.870577 | AC123: 0 | AD123: 0 | AE123: 0 | AF123: 0
A124: 2009 | B124: 922 | E124: 1263.053628 | F124: 2097.34384 | G124: 2097.34384 | H124: 2097.34384 | I124: 2097.34384 | J124: 2097.34384 | P124: 1263.053628 | Q124: 834.2902117 | R124: 0 | S124: 0 | T124: 0 | U124: 0 | AB124: -834.2902117 | AC124: 0 | AD124: 0 | AE124: 0 | AF124: 0
A125: 2009 | B125: 930 | F125: 505.1577894 | G125: 505.1577894 | H125: 1056.788822 | I125: 1056.788822 | J125: 1056.788822 | Q125: 505.1577894 | R125: 0 | S125: 551.6310328 | T125: 0 | U125: 0 | AC125: 0 | AD125: -551.6310328 | AE125: 0 | AF125: 0
A126: 2009 | B126: 931 | F126: 1704.86775 | G126: 1704.86775 | H126: 1093.076149 | I126: 1093.076149 | J126: 1093.076149 | Q126: 1704.86775 | R126: 0 | S126: -611.7916012 | T126: 0 | U126: 0 | AC126: 0 | AD126: 611.7916012 | AE126: 0 | AF126: 0
A127: 2009 | B127: 932 | F127: 631.5268142 | G127: 631.5268142 | H127: 1122.997278 | I127: 1122.997278 | J127: 1122.997278 | Q127: 631.5268142 | R127: 0 | S127: 491.4704643 | T127: 0 | U127: 0 | AC127: 0 | AD127: -491.4704643 | AE127: 0 | AF127: 0
A128: 2009 | B128: 939 | F128: 9598.316308 | G128: 9763.837449 | H128: 3469.577759 | I128: 3469.577759 | J128: 3469.577759 | Q128: 9598.316308 | R128: 165.5211408 | S128: -6294.259689 | T128: 0 | U128: 0 | AC128: -165.5211408 | AD128: 6294.259689 | AE128: 0 | AF128: 0
A129: 2009 | B129: 958 | G129: 883.9465539 | H129: 933.6028962 | I129: 933.6028962 | J129: 933.6028962 | R129: 883.9465539 | S129: 49.65634224 | T129: 0 | U129: 0 | AD129: -49.65634224 | AE129: 0 | AF129: 0
A130: 2009 | B130: 959 | G130: 12629.58135 | H130: 12629.58135 | I130: 12629.58135 | J130: 12629.58135 | R130: 12629.58135 | S130: 0 | T130: 0 | U130: 0 | AD130: 0 | AE130: 0 | AF130: 0
A131: 2009 | B131: 963 | H131: 1263.053628 | I131: 1263.053628 | J131: 1263.053628 | S131: 1263.053628 | T131: 0 | U131: 0 | AE131: 0 | AF131: 0
A132: 2009 | B132: 1033 | D132: 3220.659428 | E132: 3220.659428 | O132: 3220.659428 | P132: 0 | AA132: 0
A133: 2009 | B133: 1036 | G133: 4543.237006 | H133: 4543.237006 | I133: 4543.237006 | J133: 4543.237006 | N133: =IF(C133<>"",C133,"") ->  | O133: =IF(AND(C133<>"",D133<>""),D133-C133,IF(AND(C133="",D133<>""),D133,"")) ->  | P133: =IF(AND(D133<>"",E133<>""),E133-D133,IF(AND(D133="",E133<>""),E133,"")) ->  | Q133: =IF(AND(E133<>"",F133<>""),F133-E133,IF(AND(E133="",F133<>""),F133,"")) ->  | R133: =IF(AND(F133<>"",G133<>""),G133-F133,IF(AND(F133="",G133<>""),G133,"")) -> 4543.237006 | S133: =IF(AND(G133<>"",H133<>""),H133-G133,IF(AND(G133="",H133<>""),H133,"")) -> 0 | T133: =IF(AND(H133<>"",I133<>""),I133-H133,IF(AND(H133="",I133<>""),I133,"")) -> 0 | U133: =IF(AND(I133<>"",J133<>""),J133-I133,IF(AND(I133="",J133<>""),J133,"")) -> 0 | V133: =IF(AND(J133<>"",K133<>""),K133-J133,IF(AND(J133="",K133<>""),K133,"")) ->  | W133: =IF(AND(K133<>"",L133<>""),L133-K133,IF(AND(K133="",L133<>""),L133,"")) ->  | X133: =IF(AND(L133<>"",M133<>""),M133-L133,IF(AND(L133="",M133<>""),M133,"")) ->  | AD133: 0 | AE133: 0 | AF133: 0
A134: 2009 | B134: 1037 | D134: 3220.659428 | E134: 3220.659428 | F134: 3220.659428 | G134: 3220.659428 | H134: 344.7296067 | I134: 344.7296067 | J134: 344.7296067 | O134: 3220.659428 | P134: 0 | Q134: 0 | R134: 0 | S134: -2875.929822 | T134: 0 | U134: 0 | Z134: =IF(AND(C134<>"",D134<>""),C134-D134,"") ->  | AA134: =IF(AND(D134<>"",E134<>""),D134-E134,"") -> 0 | AB134: =IF(AND(E134<>"",F134<>""),E134-F134,"") -> 0 | AC134: =IF(AND(F134<>"",G134<>""),F134-G134,"") -> 0 | AD134: =IF(AND(G134<>"",H134<>""),G134-H134,"") -> 2875.929822 | AE134: =IF(AND(H134<>"",I134<>""),H134-I134,"") -> 0 | AF134: =IF(AND(I134<>"",J134<>""),I134-J134,"") -> 0 | AG134: =IF(AND(J134<>"",K134<>""),J134-K134,"") ->  | AH134: =IF(AND(K134<>"",L134<>""),K134-L134,"") ->  | AI134: =IF(AND(L134<>"",M134<>""),L134-M134,"") -> 
A135: 2009 | B135: 1041 | D135: 609.2451222 | E135: 609.2451222 | F135: 609.2451222 | G135: 609.2451222 | H135: 609.2451222 | I135: 609.2451222 | J135: 609.2451222 | O135: 609.2451222 | P135: 0 | Q135: 0 | R135: 0 | S135: 0 | T135: 0 | U135: 0 | AA135: 0 | AB135: 0 | AC135: 0 | AD135: 0 | AE135: 0 | AF135: 0
A136: 2009 | B136: 1042 | D136: 1015.408537 | E136: 1015.408537 | F136: 1015.408537 | G136: 1015.408537 | H136: 1015.408537 | I136: 1015.408537 | J136: 1015.408537 | O136: 1015.408537 | P136: 0 | Q136: 0 | R136: 0 | S136: 0 | T136: 0 | U136: 0 | AA136: 0 | AB136: 0 | AC136: 0 | AD136: 0 | AE136: 0 | AF136: 0
A137: 2009 | B137: 1050 | F137: 27516.61642 | G137: 27516.61642 | H137: 27516.61642 | I137: 27516.61642 | J137: 27516.61642 | Q137: 27516.61642 | R137: 0 | S137: 0 | T137: 0 | U137: 0 | AC137: 0 | AD137: 0 | AE137: 0 | AF137: 0
A138: 2009 | B138: 1069 | D138: 5012.744088 | E138: 16872.65214 | F138: 16872.65214 | G138: 16872.65214 | H138: 16872.65214 | I138: 16872.65214 | J138: 16872.65214 | O138: 5012.744088 | P138: 11859.90805 | Q138: 0 | R138: 0 | S138: 0 | T138: 0 | U138: 0 | AA138: -11859.90805 | AB138: 0 | AC138: 0 | AD138: 0 | AE138: 0 | AF138: 0
A139: 2009 | B139: 1070 | F139: 19962.80451 | G139: 19962.80451 | Q139: 19962.80451 | R139: 0 | AC139: 0
A140: 2009 | B140: 1071 | D140: 5914.834305 | E140: 14854.56746 | F140: 14854.56746 | G140: 14854.56746 | H140: 14854.56746 | I140: 14854.56746 | J140: 14854.56746 | O140: 5914.834305 | P140: 8939.733153 | Q140: 0 | R140: 0 | S140: 0 | T140: 0 | U140: 0 | AA140: -8939.733153 | AB140: 0 | AC140: 0 | AD140: 0 | AE140: 0 | AF140: 0
A141: 2009 | B141: 1072 | D141: 5914.834305 | E141: 14782.62942 | F141: 14782.62942 | G141: 14782.62942 | H141: 14782.62942 | I141: 14782.62942 | J141: 14782.62942 | O141: 5914.834305 | P141: 8867.795119 | Q141: 0 | R141: 0 | S141: 0 | T141: 0 | U141: 0 | AA141: -8867.795119 | AB141: 0 | AC141: 0 | AD141: 0 | AE141: 0 | AF141: 0
A142: 2009 | B142: 1090 | F142: 15870.93093 | G142: 34465.63955 | H142: 38888.2371 | I142: 42269.64303 | J142: 42269.64303 | Q142: 15870.93093 | R142: 18594.70862 | S142: 4422.597559 | T142: 3381.405921 | U142: 0 | AC142: -18594.70862 | AD142: -4422.597559 | AE142: -3381.405921 | AF142: 0
A143: 2009 | B143: 1101 | G143: 894.4507802 | H143: 2888.980527 | I143: 2888.980527 | J143: 2888.980527 | R143: 894.4507802 | S143: 1994.529747 | T143: 0 | U143: 0 | AD143: -1994.529747 | AE143: 0 | AF143: 0
A144: 2009 | B144: 1488 | G144: 11576.61225 | H144: 11576.61225 | I144: 11576.61225 | J144: 11576.61225 | R144: 11576.61225 | S144: 0 | T144: 0 | U144: 0 | AD144: 0 | AE144: 0 | AF144: 0
A145: 2009 | B145: 1494 | D145: 3286.549575 | E145: 3286.549575 | F145: 29.28450953 | G145: 29.28450953 | H145: 29.28450953 | I145: 29.28450953 | J145: 29.28450953 | O145: 3286.549575 | P145: 0 | Q145: -3257.265065 | R145: 0 | S145: 0 | T145: 0 | U145: 0 | AA145: 0 | AB145: 3257.265065 | AC145: 0 | AD145: 0 | AE145: 0 | AF145: 0
A146: 2009 | B146: 1501 | G146: 55754.52304 | H146: 70548.61162 | I146: 106961.3527 | J146: 4564195.165 | R146: 55754.52304 | S146: 14794.08858 | T146: 36412.74112 | U146: 4457233.812 | AD146: -14794.08858 | AE146: -36412.74112 | AF146: -4457233.812
A147: 2009 | B147: 1510 | G147: 13040.83773 | H147: 13040.83773 | I147: 13040.83773 | J147: 13040.83773 | R147: 13040.83773 | S147: 0 | T147: 0 | U147: 0 | AD147: 0 | AE147: 0 | AF147: 0
A148: 2010 | B148: 837 | F148: 70815.35531 | Q148: 70815.35531
A149: 2010 | B149: 838 | E149: 53093.13409 | F149: 58977.72895 | G149: 2719.321358 | H149: 2719.321358 | I149: 2719.321358 | P149: 53093.13409 | Q149: 5884.594866 | R149: -56258.40759 | S149: 0 | T149: 0 | AB149: -5884.594866 | AC149: 56258.40759 | AD149: 0 | AE149: 0
A150: 2010 | B150: 910 | C150: 13.36901522 | D150: 708.2394968 | E150: 717.7887933 | F150: 717.7887933 | G150: 717.7887933 | H150: 724.473301 | I150: 724.473301 | N150: 13.36901522 | O150: 694.8704815 | P150: 9.549296586 | Q150: 0 | R150: 0 | S150: 6.68450761 | T150: 0 | Z150: -694.8704815 | AA150: -9.549296586 | AB150: 0 | AC150: 0 | AD150: -6.68450761 | AE150: 0
A151: 2010 | B151: 911 | D151: 1313.34659 | E151: 1313.34659 | F151: 1313.34659 | G151: 1313.34659 | H151: 1313.34659 | I151: 1313.34659 | O151: 1313.34659 | P151: 0 | Q151: 0 | R151: 0 | S151: 0 | T151: 0 | AA151: 0 | AB151: 0 | AC151: 0 | AD151: 0 | AE151: 0
A152: 2010 | B152: 916 | D152: 18751.31709 | E152: 18751.31709 | F152: 18751.31709 | G152: 18751.31709 | H152: 18751.31709 | I152: 19223.37065 | O152: 18751.31709 | P152: 0 | Q152: 0 | R152: 0 | S152: 0 | T152: 472.0535612 | AA152: 0 | AB152: 0 | AC152: 0 | AD152: 0 | AE152: -472.0535612
A153: 2010 | B153: 917 | D153: 3788.842575 | E153: 3788.842575 | F153: 3788.842575 | G153: 3801.256661 | H153: 3801.256661 | I153: 3801.256661 | O153: 3788.842575 | P153: 0 | Q153: 0 | R153: 12.41408556 | S153: 0 | T153: 0 | AA153: 0 | AB153: 0 | AC153: -12.41408556 | AD153: 0 | AE153: 0
A154: 2010 | B154: 918 | D154: 1636.749435 | E154: 1636.749435 | F154: 1681.949439 | G154: 1681.949439 | H154: 1681.949439 | I154: 1681.949439 | O154: 1636.749435 | P154: 0 | Q154: 45.20000384 | R154: 0 | S154: 0 | T154: 0 | AA154: 0 | AB154: -45.20000384 | AC154: 0 | AD154: 0 | AE154: 0
A155: 2010 | B155: 920 | D155: 3157.315761 | E155: 3157.315761 | F155: 3157.315761 | G155: 3157.315761 | H155: 3157.315761 | I155: 41.06197532 | O155: 3157.315761 | P155: 0 | Q155: 0 | R155: 0 | S155: 0 | T155: -3116.253786 | AA155: 0 | AB155: 0 | AC155: 0 | AD155: 0 | AE155: 3116.253786
A156: 2010 | B156: 923 | D156: 1166.924043 | E156: 1166.924043 | F156: 1166.924043 | G156: 1166.924043 | H156: 1136.684604 | I156: 1136.684604 | O156: 1166.924043 | P156: 0 | Q156: 0 | R156: 0 | S156: -30.23943919 | T156: 0 | AA156: 0 | AB156: 0 | AC156: 0 | AD156: 30.23943919 | AE156: 0
A157: 2010 | B157: 924 | D157: 7577.68515 | E157: 7577.68515 | F157: 3343.527044 | G157: 3343.527044 | H157: 3343.527044 | I157: 5125.744097 | O157: 7577.68515 | P157: 0 | Q157: -4234.158106 | R157: 0 | S157: 0 | T157: 1782.217053 | AA157: 0 | AB157: 4234.158106 | AC157: 0 | AD157: 0 | AE157: -1782.217053
A158: 2010 | B158: 925 | D158: 19767.99886 | E158: 19767.99886 | F158: 19240.87769 | G158: 45025.57002 | H158: 45025.57002 | I158: 45025.57002 | O158: 19767.99886 | P158: 0 | Q158: -527.1211715 | R158: 25784.69233 | S158: 0 | T158: 0 | AA158: 0 | AB158: 527.1211715 | AC158: -25784.69233 | AD158: 0 | AE158: 0
A159: 2010 | B159: 926 | D159: 4587.80039 | E159: 4587.80039 | F159: 4587.80039 | G159: 4587.80039 | H159: 4587.80039 | I159: 4587.80039 | O159: 4587.80039 | P159: 0 | Q159: 0 | R159: 0 | S159: 0 | T159: 0 | AA159: 0 | AB159: 0 | AC159: 0 | AD159: 0 | AE159: 0
A160: 2010 | B160: 927 | D160: 2424.884713 | E160: 2424.884713 | F160: 2424.884713 | G160: 2364.724144 | H160: 2364.724144 | I160: 2364.724144 | O160: 2424.884713 | P160: 0 | Q160: 0 | R160: -60.16056849 | S160: 0 | T160: 0 | AA160: 0 | AB160: 0 | AC160: 60.16056849 | AD160: 0 | AE160: 0
A161: 2010 | B161: 928 | D161: 2020.631157 | E161: 2020.631157 | F161: 2020.631157 | G161: 2167.690325 | H161: 2167.690325 | I161: 2167.690325 | O161: 2020.631157 | P161: 0 | Q161: 0 | R161: 147.0591674 | S161: 0 | T161: 0 | AA161: 0 | AB161: 0 | AC161: -147.0591674 | AD161: 0 | AE161: 0
A162: 2010 | B162: 929 | D162: 20497.24681 | E162: 21497.37647 | F162: 2011.718481 | G162: 2011.718481 | H162: 2011.718481 | I162: 1282.470531 | O162: 20497.24681 | P162: 1000.129662 | Q162: -19485.65799 | R162: 0 | S162: 0 | T162: -729.2479492 | AA162: -1000.129662 | AB162: 19485.65799 | AC162: 0 | AD162: 0 | AE162: 729.2479492
A163: 2010 | B163: 934 | E163: 2690.036848 | F163: 2690.036848 | G163: 2690.036848 | H163: 2690.036848 | I163: 2690.036848 | P163: 2690.036848 | Q163: 0 | R163: 0 | S163: 0 | T163: 0 | AB163: 0 | AC163: 0 | AD163: 0 | AE163: 0
A164: 2010 | B164: 946 | E164: 1780.307193 | F164: 1782.535363 | G164: 1782.535363 | H164: 1782.535363 | I164: 1782.535363 | P164: 1780.307193 | Q164: 2.228169203 | R164: 0 | S164: 0 | T164: 0 | AB164: -2.228169203 | AC164: 0 | AD164: 0 | AE164: 0
A165: 2010 | B165: 953 | F165: 814.8733086 | G165: 814.8733086 | H165: 814.8733086 | I165: 814.8733086 | Q165: 814.8733086 | R165: 0 | S165: 0 | T165: 0 | AC165: 0 | AD165: 0 | AE165: 0
A166: 2010 | B166: 966 | G166: 1666.988874 | H166: 1666.988874 | I166: 1666.988874 | R166: 1666.988874 | S166: 0 | T166: 0 | AD166: 0 | AE166: 0
A167: 2010 | B167: 994 | G167: 1197.481792 | H167: 1197.481792 | I167: 1197.481792 | R167: 1197.481792 | S167: 0 | T167: 0 | AD167: 0 | AE167: 0
A168: 2010 | B168: 996 | G168: 1181.884607 | H168: 1181.884607 | I168: 1181.884607 | R168: 1181.884607 | S168: 0 | T168: 0 | AD168: 0 | AE168: 0
A169: 2010 | B169: 997 | G169: 1348.678988 | H169: 1348.678988 | I169: 1348.678988 | R169: 1348.678988 | S169: 0 | T169: 0 | AD169: 0 | AE169: 0
A170: 2010 | B170: 998 | G170: 1167.242353 | H170: 1167.242353 | I170: 1167.242353 | R170: 1167.242353 | S170: 0 | T170: 0 | AD170: 0 | AE170: 0
A171: 2010 | B171: 999 | G171: 2392.735414 | H171: 2392.735414 | I171: 2392.735414 | R171: 2392.735414 | S171: 0 | T171: 0 | AD171: 0 | AE171: 0
A172: 2010 | B172: 1000 | G172: 3266.814362 | H172: 3266.814362 | I172: 3266.814362 | R172: 3266.814362 | S172: 0 | T172: 0 | AD172: 0 | AE172: 0
A173: 2010 | B173: 1001 | G173: 2597.408671 | H173: 2597.408671 | I173: 2597.408671 | R173: 2597.408671 | S173: 0 | T173: 0 | AD173: 0 | AE173: 0
A174: 2010 | B174: 1002 | G174: 1847.470579 | H174: 1847.470579 | I174: 1847.470579 | R174: 1847.470579 | S174: 0 | T174: 0 | AD174: 0 | AE174: 0
A175: 2010 | B175: 1003 | G175: 4747.273643 | H175: 4747.273643 | I175: 4747.273643 | R175: 4747.273643 | S175: 0 | T175: 0 | AD175: 0 | AE175: 0
A176: 2010 | B176: 1051 | D176: 107585.8767 | E176: 107585.8767 | F176: 108019.7331 | G176: 594.9211773 | H176: 594.9211773 | I176: 594.9211773 | O176: 107585.8767 | P176: 0 | Q176: 433.8563749 | R176: -107424.8119 | S176: 0 | T176: 0 | AA176: 0 | AB176: -433.8563749 | AC176: 107424.8119 | AD176: 0 | AE176: 0
A177: 2010 | B177: 1067 | C177: 146869.773 | D177: 440635.1022 | E177: 1680141.757 | F177: 5333748.467 | G177: 5333748.467 | H177: 4836079.554 | I177: 4836079.554 | N177: 146869.773 | O177: 293765.3292 | P177: 1239506.655 | Q177: 3653606.71 | R177: 0 | S177: -497668.9127 | T177: 0 | Z177: -293765.3292 | AA177: -1239506.655 | AB177: -3653606.71 | AC177: 0 | AD177: 497668.9127 | AE177: 0
A178: 2010 | B178: 1073 | C178: 7325.902031 | D178: 14273.33361 | E178: 14273.33361 | F178: 14273.33361 | G178: 14273.33361 | H178: 14273.33361 | I178: 14273.33361 | N178: 7325.902031 | O178: 6947.431576 | P178: 0 | Q178: 0 | R178: 0 | S178: 0 | T178: 0 | Z178: -6947.431576 | AA178: 0 | AB178: 0 | AC178: 0 | AD178: 0 | AE178: 0
A179: 2010 | B179: 1075 | C179: 48532.39004 | D179: 98522.00273 | E179: 6105175.341 | F179: 6185476.649 | G179: 6198531.811 | H179: 6198531.811 | I179: 6198531.811 | N179: 48532.39004 | O179: 49989.6127 | P179: 6006653.338 | Q179: 80301.30823 | R179: 13055.16167 | S179: 0 | T179: 0 | Z179: -49989.6127 | AA179: -6006653.338 | AB179: -80301.30823 | AC179: -13055.16167 | AD179: 0 | AE179: 0
A180: 2010 | B180: 1081 | H180: 7393859.918 | I180: 7420025.946 | S180: 7393859.918 | T180: 26166.02757 | AE180: -26166.02757
A181: 2010 | B181: 1083 | E181: 642.3493503 | F181: 642.3493503 | G181: 642.3493503 | H181: 642.3493503 | I181: 642.3493503 | P181: 642.3493503 | Q181: 0 | R181: 0 | S181: 0 | T181: 0 | AB181: 0 | AC181: 0 | AD181: 0 | AE181: 0
A182: 2010 | B182: 1087 | E182: 3740065.405 | F182: 3765331.889 | G182: 5275561.738 | H182: 5288601.303 | I182: 5288601.303 | P182: 3740065.405 | Q182: 25266.48384 | R182: 1510229.849 | S182: 13039.56449 | T182: 0 | AB182: -25266.48384 | AC182: -1510229.849 | AD182: -13039.56449 | AE182: 0
A183: 2010 | B183: 1097 | E183: 4436168.701 | F183: 4439126.118 | G183: 4439126.118 | H183: 4439126.118 | I183: 3622628.474 | P183: 4436168.701 | Q183: 2957.417153 | R183: 0 | S183: 0 | T183: -816497.644 | AB183: -2957.417153 | AC183: 0 | AD183: 0 | AE183: 816497.644
A184: 2010 | B184: 1099 | F184: 1000.447972 | G184: 1000.447972 | H184: 1000.447972 | I184: 1000.447972 | Q184: 1000.447972 | R184: 0 | S184: 0 | T184: 0 | AC184: 0 | AD184: 0 | AE184: 0
A185: 2010 | B185: 1498 | D185: 2337.349494 | E185: 1802.588885 | F185: 1802.588885 | G185: 1802.588885 | H185: 1802.588885 | I185: 1802.588885 | O185: 2337.349494 | P185: -534.7606088 | Q185: 0 | R185: 0 | S185: 0 | T185: 0 | AA185: 534.7606088 | AB185: 0 | AC185: 0 | AD185: 0 | AE185: 0
A186: 2010 | B186: 1500 | D186: 137609.8201 | E186: 137609.8201 | F186: 137609.8201 | G186: 137609.8201 | H186: 137609.8201 | I186: 137609.8201 | O186: 137609.8201 | P186: 0 | Q186: 0 | R186: 0 | S186: 0 | T186: 0 | AA186: 0 | AB186: 0 | AC186: 0 | AD186: 0 | AE186: 0
A187: 2010 | B187: 1509 | F187: 4257.713038 | G187: 4257.713038 | H187: 4257.713038 | I187: 4257.713038 | Q187: 4257.713038 | R187: 0 | S187: 0 | T187: 0 | AC187: 0 | AD187: 0 | AE187: 0
A188: 2010 | B188: 1513 | H188: 229183.1181 | I188: 229183.1181 | S188: 229183.1181 | T188: 0 | AE188: 0
A189: 2011 | B189: 840 | F189: 2715.501639 | G189: 2715.501639 | H189: 2715.501639 | Q189: 2715.501639 | R189: 0 | S189: 0 | AC189: 0 | AD189: 0
A190: 2011 | B190: 841 | F190: 4586.52715 | G190: 9674.392371 | H190: 9674.392371 | Q190: 4586.52715 | R190: 5087.865221 | S190: 0 | AC190: -5087.865221 | AD190: 0
A191: 2011 | B191: 842 | E191: 619252.1484 | F191: 592112.4108 | G191: 601952.6427 | H191: 394214.0616 | P191: 619252.1484 | Q191: -27139.73752 | R191: 9840.231821 | S191: -207738.581 | AB191: 27139.73752 | AC191: -9840.231821 | AD191: 207738.581
A192: 2011 | B192: 843 | E192: 58221.42466 | F192: 58221.42466 | G192: 99207.64223 | H192: 137628.9187 | P192: 58221.42466 | Q192: 0 | R192: 40986.21756 | S192: 38421.2765 | AB192: 0 | AC192: -40986.21756 | AD192: -38421.2765
A193: 2011 | B193: 844 | F193: 325236.9459 | G193: 325236.9459 | H193: 408776.4206 | Q193: 325236.9459 | R193: 0 | S193: 83539.4747 | AC193: 0 | AD193: -83539.4747
A194: 2011 | B194: 845 | F194: 11829.66861 | G194: 1684561.171 | H194: 1698341.443 | Q194: 11829.66861 | R194: 1672731.503 | S194: 13780.27159 | AC194: -1672731.503 | AD194: -13780.27159
A195: 2011 | B195: 846 | F195: 8576.541573 | G195: 8576.541573 | H195: 13075.5335 | Q195: 8576.541573 | R195: 0 | S195: 4498.991931 | AC195: 0 | AD195: -4498.991931
A196: 2011 | B196: 899 | H196: 11261.16715 | S196: 11261.16715
A197: 2011 | B197: 933 | C197: 30001 | D197: 80218.22935 | E197: 91078.00773 | F197: 91078.00773 | G197: 91078.00773 | H197: 91078.00773 | N197: =IF(C197<>"",C197,"") -> 30001 | O197: =IF(AND(C197<>"",D197<>""),D197-C197,IF(AND(C197="",D197<>""),D197,"")) -> 50217.22935 | P197: =IF(AND(D197<>"",E197<>""),E197-D197,IF(AND(D197="",E197<>""),E197,"")) -> 10859.77839 | Q197: =IF(AND(E197<>"",F197<>""),F197-E197,IF(AND(E197="",F197<>""),F197,"")) -> 0 | R197: =IF(AND(F197<>"",G197<>""),G197-F197,IF(AND(F197="",G197<>""),G197,"")) -> 0 | S197: =IF(AND(G197<>"",H197<>""),H197-G197,IF(AND(G197="",H197<>""),H197,"")) -> 0 | T197: =IF(AND(H197<>"",I197<>""),I197-H197,IF(AND(H197="",I197<>""),I197,"")) ->  | U197: =IF(AND(I197<>"",J197<>""),J197-I197,IF(AND(I197="",J197<>""),J197,"")) ->  | V197: =IF(AND(J197<>"",K197<>""),K197-J197,IF(AND(J197="",K197<>""),K197,"")) ->  | W197: =IF(AND(K197<>"",L197<>""),L197-K197,IF(AND(K197="",L197<>""),L197,"")) ->  | X197: =IF(AND(L197<>"",M197<>""),M197-L197,IF(AND(L197="",M197<>""),M197,"")) ->  | Z197: -50217.22935 | AA197: -10859.77839 | AB197: 0 | AC197: 0 | AD197: 0
A198: 2011 | B198: 937 | D198: 4003.065129 | E198: 4003.065129 | F198: 12728.57573 | G198: 12742.89967 | H198: 15054.14776 | O198: 4003.065129 | P198: 0 | Q198: 8725.5106 | R198: 14.32394488 | S198: 2311.248084 | Z198: =IF(AND(C198<>"",D198<>""),C198-D198,"") ->  | AA198: =IF(AND(D198<>"",E198<>""),D198-E198,"") -> 0 | AB198: =IF(AND(E198<>"",F198<>""),E198-F198,"") -> -8725.5106 | AC198: =IF(AND(F198<>"",G198<>""),F198-G198,"") -> -14.32394488 | AD198: =IF(AND(G198<>"",H198<>""),G198-H198,"") -> -2311.248084 | AE198: =IF(AND(H198<>"",I198<>""),H198-I198,"") ->  | AF198: =IF(AND(I198<>"",J198<>""),I198-J198,"") ->  | AG198: =IF(AND(J198<>"",K198<>""),J198-K198,"") ->  | AH198: =IF(AND(K198<>"",L198<>""),K198-L198,"") ->  | AI198: =IF(AND(L198<>"",M198<>""),L198-M198,"") -> 
A199: 2011 | B199: 938 | D199: 6668.273806 | E199: 6668.273806 | O199: 6668.273806 | P199: 0 | AA199: 0
A200: 2011 | B200: 940 | D200: 4647.642648 | E200: 4669.92434 | F200: 4669.92434 | G200: 4669.92434 | H200: 4669.92434 | O200: 4647.642648 | P200: 22.28169203 | Q200: 0 | R200: 0 | S200: 0 | AA200: -22.28169203 | AB200: 0 | AC200: 0 | AD200: 0
A201: 2011 | B201: 949 | D201: 48131.00127 | E201: 48131.00127 | F201: 145732.4518 | G201: 142172.7924 | H201: 142172.7924 | O201: 48131.00127 | P201: 0 | Q201: 97601.45054 | R201: -3559.659457 | S201: 0 | AA201: 0 | AB201: -97601.45054 | AC201: 3559.659457 | AD201: 0
A202: 2011 | B202: 951 | D202: 39379.70757 | E202: 7087.487926 | F202: 5732.12443 | G202: 9291.783888 | H202: 6958.254112 | O202: 39379.70757 | P202: -32292.21964 | Q202: -1355.363495 | R202: 3559.659457 | S202: -2333.529776 | AA202: 32292.21964 | AB202: 1355.363495 | AC202: -3559.659457 | AD202: 2333.529776
... 126 more rows

Sheet Triangle Di Schnieper
C1: Triangle Di - Article R. Schnieper
A4: Étiquettes de lignes | B4: Somme de X13 | C4: Somme de X2-X12 | D4: Somme de X3-X22 | E4: Somme de X4-X32 | F4: Somme de X5-X42 | G4: Somme de X6-X52 | H4: Somme de X7-X62 | I4: Somme de X8-X72 | J4: Somme de X9-X82 | K4: Somme de X10-X92 | L4: Somme de X11-X102
A5: 2006 | C5: 79920.6096 | D5: 12874.04335 | E5: -196394.335 | F5: 37363.21444 | G5: 957.1578278 | H5: 14654.66885 | I5: 4336.01727 | J5: -3787.569336 | K5: -1673.991691 | L5: 1056.152202
A6: 2007 | C6: -556246.5261 | D6: -7540494.142 | E6: -59633.44732 | F6: 1125810.82 | G6: -3548.836921 | H6: -401807.344 | I6: -105973.6372 | J6: 370704.3301 | K6: -12038.16159 | L6: 0
A7: 2008 | C7: -1093819.91 | D7: 72297.08783 | E7: 72633.22307 | F7: -65721.12389 | G7: -118782.427 | H7: -172389.6315 | I7: 1313796.362 | J7: 293667.9263 | K7: 0 | L7: 0
A8: 2009 | C8: -1165668.122 | D8: -1580992.365 | E8: 1208.622638 | F8: -19675.37068 | G8: -12787.78137 | H8: 470452.7808 | I8: -4413633.634 | J8: 0 | K8: 0 | L8: 0
A9: 2010 | C9: -351397.2439 | D9: -7246634.911 | E9: -3744250.862 | F9: -1385485.797 | G9: 484652.9031 | H9: 791922.8475 | I9: 0 | J9: 0 | K9: 0 | L9: 0
A10: 2011 | C10: -50217.22935 | D10: -197062.7857 | E10: -125910.3403 | F10: -2082776.07 | G10: 14778.4914 | H10: 0 | I10: 0 | J10: 0 | K10: 0 | L10: 0
A11: 2012 | C11: 6676.868173 | D11: -122379.3287 | E11: -196807.5012 | F11: -44148.30797 | G11: 0 | H11: 0 | I11: 0 | J11: 0 | K11: 0 | L11: 0
A12: 2013 | C12: 0 | D12: -828150.6506 | E12: 30315.51525 | F12: 0 | G12: 0 | H12: 0 | I12: 0 | J12: 0 | K12: 0 | L12: 0
A13: 2014 | C13: -15581.90555 | D13: -110779.7981 | E13: 0 | F13: 0 | G13: 0 | H13: 0 | I13: 0 | J13: 0 | K13: 0 | L13: 0
A14: 2015 | C14: -4236898.222 | D14: 0 | E14: 0 | F14: 0 | G14: 0 | H14: 0 | I14: 0 | J14: 0 | K14: 0 | L14: 0
A15: 2016 | C15: 0 | D15: 0 | E15: 0 | F15: 0 | G15: 0 | H15: 0 | I15: 0 | J15: 0 | K15: 0 | L15: 0
A16: Total général | C16: -7383231.681 | D16: -17541322.85 | E16: -4218839.124 | F16: -2434632.635 | G16: 365269.5071 | H16: 702833.3217 | I16: -3201474.892 | J16: 660584.6871 | K16: -13712.15328 | L16: 1056.152202
C18: Triangle Di - Article R. Schnieper
A20: UWY | B20: Somme de X2-X12 | C20: Somme de X3-X22 | D20: Somme de X4-X32 | E20: Somme de X5-X42 | F20: Somme de X6-X52 | G20: Somme de X7-X62 | H20: Somme de X8-X72 | I20: Somme de X9-X82 | J20: Somme de X10-X92 | K20: Somme de X11-X102
A21: 2006 | B21: 79920.6096 | C21: 12874.04335 | D21: -196394.335 | E21: 37363.21444 | F21: 957.1578278 | G21: 14654.66885 | H21: 4336.01727 | I21: -3787.569336 | J21: -1673.991691 | K21: 1056.152202
A22: 2007 | B22: -556246.5261 | C22: -7540494.142 | D22: -59633.44732 | E22: 1125810.82 | F22: -3548.836921 | G22: -401807.344 | H22: -105973.6372 | I22: 370704.3301 | J22: -12038.16159
A23: 2008 | B23: -1093819.91 | C23: 72297.08783 | D23: 72633.22307 | E23: -65721.12389 | F23: -118782.427 | G23: -172389.6315 | H23: 1313796.362 | I23: 293667.9263
A24: 2009 | B24: -1165668.122 | C24: -1580992.365 | D24: 1208.622638 | E24: -19675.37068 | F24: -12787.78137 | G24: 470452.7808 | H24: -4413633.634
A25: 2010 | B25: -351397.2439 | C25: -7246634.911 | D25: -3744250.862 | E25: -1385485.797 | F25: 484652.9031 | G25: 791922.8475
A26: 2011 | B26: -50217.22935 | C26: -197062.7857 | D26: -125910.3403 | E26: -2082776.07 | F26: 14778.4914
A27: 2012 | B27: 6676.868173 | C27: -122379.3287 | D27: -196807.5012 | E27: -44148.30797
A28: 2013 | B28: 0 | C28: -828150.6506 | D28: 30315.51525
A29: 2014 | B29: -15581.90555 | C29: -110779.7981
A30: 2015 | B30: -4236898.222
A31: di | B31: =Data!Z327 -> -5.888349299 | C31: =Data!AA327 -> -1.091239807 | D31: =Data!AB327 -> -0.11179381 | E31: =Data!AC327 -> -0.0546612283 | F31: =Data!AD327 -> 0.008398872829 | G31: =Data!AE327 -> 0.01475453372 | H31: =Data!AF327 -> -0.1584117387 | I31: =Data!AG327 -> 0.04283488095 | J31: =Data!AH327 -> -0.001012618713 | K31: =Data!AI327 -> 0.0006151990887
A33: t2 k
A34: =A21 -> 2006 | B34: =(B21-B$31*'Triangle incurred Chain Ladder'!B4)^2/'Triangle incurred Chain Ladder'!B4 -> 6573336.261 | C34: =(C21-C$31*'Triangle incurred Chain Ladder'!C4)^2/'Triangle incurred Chain Ladder'!C4 -> 673268.877 | D34: =(D21-D$31*'Triangle incurred Chain Ladder'!D4)^2/'Triangle incurred Chain Ladder'!D4 -> 736.8225639 | E34: =(E21-E$31*'Triangle incurred Chain Ladder'!E4)^2/'Triangle incurred Chain Ladder'!E4 -> 9885.292985 | F34: =(F21-F$31*'Triangle incurred Chain Ladder'!F4)^2/'Triangle incurred Chain Ladder'!F4 -> 105.566162 | G34: =(G21-G$31*'Triangle incurred Chain Ladder'!G4)^2/'Triangle incurred Chain Ladder'!G4 -> 65.2864238 | H34: =(H21-H$31*'Triangle incurred Chain Ladder'!H4)^2/'Triangle incurred Chain Ladder'!H4 -> 43907.64014 | I34: =(I21-I$31*'Triangle incurred Chain Ladder'!I4)^2/'Triangle incurred Chain Ladder'!I4 -> 3471.470131 | J34: =(J21-J$31*'Triangle incurred Chain Ladder'!J4)^2/'Triangle incurred Chain Ladder'!J4 -> 0.002295208056
A35: =A22 -> 2007 | B35: =(B22-B$31*'Triangle incurred Chain Ladder'!B5)^2/'Triangle incurred Chain Ladder'!B5 -> 31514639.98 | C35: =(C22-C$31*'Triangle incurred Chain Ladder'!C5)^2/'Triangle incurred Chain Ladder'!C5 -> 51868169.47 | D35: =(D22-D$31*'Triangle incurred Chain Ladder'!D5)^2/'Triangle incurred Chain Ladder'!D5 -> 92634.75576 | E35: =(E22-E$31*'Triangle incurred Chain Ladder'!E5)^2/'Triangle incurred Chain Ladder'!E5 -> 266297.2063 | F35: =(F22-F$31*'Triangle incurred Chain Ladder'!F5)^2/'Triangle incurred Chain Ladder'!F5 -> 833.1136823 | G35: =(G22-G$31*'Triangle incurred Chain Ladder'!G5)^2/'Triangle incurred Chain Ladder'!G5 -> 28990.47047 | H35: =(H22-H$31*'Triangle incurred Chain Ladder'!H5)^2/'Triangle incurred Chain Ladder'!H5 -> 260904.5934 | I35: =(I22-I$31*'Triangle incurred Chain Ladder'!I5)^2/'Triangle incurred Chain Ladder'!I5 -> 1546.497861 | J35: =(J22-J$31*'Triangle incurred Chain Ladder'!J5)^2/'Triangle incurred Chain Ladder'!J5 -> 0.0003328621352
A36: 2008 | B36: =(B23-B$31*'Triangle incurred Chain Ladder'!B6)^2/'Triangle incurred Chain Ladder'!B6 -> 2550013.329 | C36: =(C23-C$31*'Triangle incurred Chain Ladder'!C6)^2/'Triangle incurred Chain Ladder'!C6 -> 1971701.507 | D36: =(D23-D$31*'Triangle incurred Chain Ladder'!D6)^2/'Triangle incurred Chain Ladder'!D6 -> 44207.54395 | E36: =(E23-E$31*'Triangle incurred Chain Ladder'!E6)^2/'Triangle incurred Chain Ladder'!E6 -> 872.6882032 | F36: =(F23-F$31*'Triangle incurred Chain Ladder'!F6)^2/'Triangle incurred Chain Ladder'!F6 -> 9090.8318 | G36: =(G23-G$31*'Triangle incurred Chain Ladder'!G6)^2/'Triangle incurred Chain Ladder'!G6 -> 18886.50029 | H36: =(H23-H$31*'Triangle incurred Chain Ladder'!H6)^2/'Triangle incurred Chain Ladder'!H6 -> 1034932.137 | I36: =(I23-I$31*'Triangle incurred Chain Ladder'!I6)^2/'Triangle incurred Chain Ladder'!I6 -> 23675.5635
A37: 2009 | B37: =(B24-B$31*'Triangle incurred Chain Ladder'!B7)^2/'Triangle incurred Chain Ladder'!B7 -> 3130186.823 | C37: =(C24-C$31*'Triangle incurred Chain Ladder'!C7)^2/'Triangle incurred Chain Ladder'!C7 -> 14706.20955 | D37: =(D24-D$31*'Triangle incurred Chain Ladder'!D7)^2/'Triangle incurred Chain Ladder'!D7 -> 36729.7374 | E37: =(E24-E$31*'Triangle incurred Chain Ladder'!E7)^2/'Triangle incurred Chain Ladder'!E7 -> 6908.006406 | F37: =(F24-F$31*'Triangle incurred Chain Ladder'!F7)^2/'Triangle incurred Chain Ladder'!F7 -> 486.639999 | G37: =(G24-G$31*'Triangle incurred Chain Ladder'!G7)^2/'Triangle incurred Chain Ladder'!G7 -> 41205.6609 | H37: =(H24-H$31*'Triangle incurred Chain Ladder'!H7)^2/'Triangle incurred Chain Ladder'!H7 -> 4086030.695
A38: 2010 | B38: =(B25-B$31*'Triangle incurred Chain Ladder'!B8)^2/'Triangle incurred Chain Ladder'!B8 -> 3500336.608 | C38: =(C25-C$31*'Triangle incurred Chain Ladder'!C8)^2/'Triangle incurred Chain Ladder'!C8 -> 44355173.26 | D38: =(D25-D$31*'Triangle incurred Chain Ladder'!D8)^2/'Triangle incurred Chain Ladder'!D8 -> 223853.1196 | E38: =(E25-E$31*'Triangle incurred Chain Ladder'!E8)^2/'Triangle incurred Chain Ladder'!E8 -> 3934.314905 | F38: =(F25-F$31*'Triangle incurred Chain Ladder'!F8)^2/'Triangle incurred Chain Ladder'!F8 -> 4288.950172 | G38: =(G25-G$31*'Triangle incurred Chain Ladder'!G8)^2/'Triangle incurred Chain Ladder'!G8 -> 4749.642253
A39: 2011 | B39: =(B26-B$31*'Triangle incurred Chain Ladder'!B9)^2/'Triangle incurred Chain Ladder'!B9 -> 532877.4244 | C39: =(C26-C$31*'Triangle incurred Chain Ladder'!C9)^2/'Triangle incurred Chain Ladder'!C9 -> 166088.9346 | D39: =(D26-D$31*'Triangle incurred Chain Ladder'!D9)^2/'Triangle incurred Chain Ladder'!D9 -> 398.5970327 | E39: =(E26-E$31*'Triangle incurred Chain Ladder'!E9)^2/'Triangle incurred Chain Ladder'!E9 -> 1867473.316 | F39: =(F26-F$31*'Triangle incurred Chain Ladder'!F9)^2/'Triangle incurred Chain Ladder'!F9 -> 97.75352342
A40: 2012 | B40: =(B27-B$31*'Triangle incurred Chain Ladder'!B10)^2/'Triangle incurred Chain Ladder'!B10 -> 2577649.642 | C40: =(C27-C$31*'Triangle incurred Chain Ladder'!C10)^2/'Triangle incurred Chain Ladder'!C10 -> 72590.84416 | D40: =(D27-D$31*'Triangle incurred Chain Ladder'!D10)^2/'Triangle incurred Chain Ladder'!D10 -> 13208.60476 | E40: =(E27-E$31*'Triangle incurred Chain Ladder'!E10)^2/'Triangle incurred Chain Ladder'!E10 -> 7484.576712
A41: 2013 | B41: =(B28-B$31*'Triangle incurred Chain Ladder'!B11)^2/'Triangle incurred Chain Ladder'!B11 -> 11954611.95 | C41: =(C28-C$31*'Triangle incurred Chain Ladder'!C11)^2/'Triangle incurred Chain Ladder'!C11 -> 2537852.604 | D41: =(D28-D$31*'Triangle incurred Chain Ladder'!D11)^2/'Triangle incurred Chain Ladder'!D11 -> 61410.18877
A42: 2014 | B42: =(B29-B$31*'Triangle incurred Chain Ladder'!B12)^2/'Triangle incurred Chain Ladder'!B12 -> 961137.5194 | C42: =(C29-C$31*'Triangle incurred Chain Ladder'!C12)^2/'Triangle incurred Chain Ladder'!C12 -> 7881996.181
A43: 2015 | B43: =(B30-B$31*'Triangle incurred Chain Ladder'!B13)^2/'Triangle incurred Chain Ladder'!B13 -> 46793976.75
A44: n-j | B44: 9 | C44: 8 | D44: 7 | E44: 6 | F44: 5 | G44: 4 | H44: 3 | I44: 2 | J44: 1
A46: Var(di) | B46: =SUM(B34:B43)/B44/SUM('Triangle incurred Chain Ladder'!B4:B13) -> 9.755455753 | C46: =SUM(C34:C43)/C44/SUM('Triangle incurred Chain Ladder'!C4:C12) -> 0.851817866 | D46: =SUM(D34:D43)/D44/SUM('Triangle incurred Chain Ladder'!D4:D11) -> 0.001791234948 | E46: =SUM(E34:E43)/E44/SUM('Triangle incurred Chain Ladder'!E4:E10) -> 0.008093235585 | F46: =SUM(F34:F43)/F44/SUM('Triangle incurred Chain Ladder'!F4:F9) -> 6.853415593e-05 | G46: =SUM(G34:G43)/G44/SUM('Triangle incurred Chain Ladder'!G4:G8) -> 0.0004927963278 | H46: =SUM(H34:H43)/H44/SUM('Triangle incurred Chain Ladder'!H4:H7) -> 0.08949067657 | I46: =SUM(I34:I43)/I44/SUM('Triangle incurred Chain Ladder'!I4:I6) -> 0.0009303001036 | J46: =SUM(J34:J43)/J44/SUM('Triangle incurred Chain Ladder'!J4:J5) -> 1.940784208e-10
A49: z3 k | L49: Xij ^ 1,5
A50: =A34 -> 2006 | B50: =(B21-B$31*'Triangle incurred Chain Ladder'!B4)^3/'Triangle incurred Chain Ladder'!B4^1.5 -> 1.685306027e+10 | C50: =(C21-C$31*'Triangle incurred Chain Ladder'!C4)^3/'Triangle incurred Chain Ladder'!C4^1.5 -> 552437063.8 | D50: =(D21-D$31*'Triangle incurred Chain Ladder'!D4)^3/'Triangle incurred Chain Ladder'!D4^1.5 -> -20000.66222 | E50: =(E21-E$31*'Triangle incurred Chain Ladder'!E4)^3/'Triangle incurred Chain Ladder'!E4^1.5 -> 982843.3838 | F50: =(F21-F$31*'Triangle incurred Chain Ladder'!F4)^3/'Triangle incurred Chain Ladder'!F4^1.5 -> -1084.643702 | G50: =(G21-G$31*'Triangle incurred Chain Ladder'!G4)^3/'Triangle incurred Chain Ladder'!G4^1.5 -> -527.5144005 | H50: =(H21-H$31*'Triangle incurred Chain Ladder'!H4)^3/'Triangle incurred Chain Ladder'!H4^1.5 -> 9200472.766 | I50: =(I21-I$31*'Triangle incurred Chain Ladder'!I4)^3/'Triangle incurred Chain Ladder'!I4^1.5 -> -204536.1841 | J50: =(J21-J$31*'Triangle incurred Chain Ladder'!J4)^3/'Triangle incurred Chain Ladder'!J4^1.5 -> 0.0001099595843 | L50: ='Triangle incurred Chain Ladder'!B4^1.5 -> 64778725.98 | M50: ='Triangle incurred Chain Ladder'!C4^1.5 -> 398513554.8 | N50: ='Triangle incurred Chain Ladder'!D4^1.5 -> 1769675729 | O50: ='Triangle incurred Chain Ladder'!E4^1.5 -> 2138646703 | P50: ='Triangle incurred Chain Ladder'!F4^1.5 -> 2249626630 | Q50: ='Triangle incurred Chain Ladder'!G4^1.5 -> 2234499220 | R50: ='Triangle incurred Chain Ladder'!H4^1.5 -> 2205822636 | S50: ='Triangle incurred Chain Ladder'!I4^1.5 -> 2237236965 | T50: ='Triangle incurred Chain Ladder'!J4^1.5 -> 2246108428 | U50: ='Triangle incurred Chain Ladder'!K4^1.5 -> 2249397656
A51: =A35 -> 2007 | B51: =(B22-B$31*'Triangle incurred Chain Ladder'!B5)^3/'Triangle incurred Chain Ladder'!B5^1.5 -> -1.769165758e+11 | C51: =(C22-C$31*'Triangle incurred Chain Ladder'!C5)^3/'Triangle incurred Chain Ladder'!C5^1.5 -> -3.735522717e+11 | D51: =(D22-D$31*'Triangle incurred Chain Ladder'!D5)^3/'Triangle incurred Chain Ladder'!D5^1.5 -> 28194275.63 | E51: =(E22-E$31*'Triangle incurred Chain Ladder'!E5)^3/'Triangle incurred Chain Ladder'!E5^1.5 -> 137419990.9 | F51: =(F22-F$31*'Triangle incurred Chain Ladder'!F5)^3/'Triangle incurred Chain Ladder'!F5^1.5 -> -24046.75067 | G51: =(G22-G$31*'Triangle incurred Chain Ladder'!G5)^3/'Triangle incurred Chain Ladder'!G5^1.5 -> -4936088.016 | H51: =(H22-H$31*'Triangle incurred Chain Ladder'!H5)^3/'Triangle incurred Chain Ladder'!H5^1.5 -> 133266989.7 | I51: =(I22-I$31*'Triangle incurred Chain Ladder'!I5)^3/'Triangle incurred Chain Ladder'!I5^1.5 -> -60816.8589 | J51: =(J22-J$31*'Triangle incurred Chain Ladder'!J5)^3/'Triangle incurred Chain Ladder'!J5^1.5 -> -6.072906464e-06 | L51: ='Triangle incurred Chain Ladder'!B5^1.5 -> 741112.659 | M51: ='Triangle incurred Chain Ladder'!C5^1.5 -> 776228070.7 | N51: ='Triangle incurred Chain Ladder'!D5^1.5 -> 2.454230747e+10 | O51: ='Triangle incurred Chain Ladder'!E5^1.5 -> 4.00743242e+10 | P51: ='Triangle incurred Chain Ladder'!F5^1.5 -> 3.62292225e+10 | Q51: ='Triangle incurred Chain Ladder'!G5^1.5 -> 3.621014065e+10 | R51: ='Triangle incurred Chain Ladder'!H5^1.5 -> 4.000305099e+10 | S51: ='Triangle incurred Chain Ladder'!I5^1.5 -> 4.058160059e+10 | T51: ='Triangle incurred Chain Ladder'!J5^1.5 -> 4.066934844e+10
A52: 2008 | B52: =(B23-B$31*'Triangle incurred Chain Ladder'!B6)^3/'Triangle incurred Chain Ladder'!B6^1.5 -> -4072055381 | C52: =(C23-C$31*'Triangle incurred Chain Ladder'!C6)^3/'Triangle incurred Chain Ladder'!C6^1.5 -> 2768609804 | D52: =(D23-D$31*'Triangle incurred Chain Ladder'!D6)^3/'Triangle incurred Chain Ladder'!D6^1.5 -> 9294896.988 | E52: =(E23-E$31*'Triangle incurred Chain Ladder'!E6)^3/'Triangle incurred Chain Ladder'!E6^1.5 -> 25780.34103 | F52: =(F23-F$31*'Triangle incurred Chain Ladder'!F6)^3/'Triangle incurred Chain Ladder'!F6^1.5 -> -866773.1179 | G52: =(G23-G$31*'Triangle incurred Chain Ladder'!G6)^3/'Triangle incurred Chain Ladder'!G6^1.5 -> -2595537.061 | H52: =(H23-H$31*'Triangle incurred Chain Ladder'!H6)^3/'Triangle incurred Chain Ladder'!H6^1.5 -> 1052853172 | I52: =(I23-I$31*'Triangle incurred Chain Ladder'!I6)^3/'Triangle incurred Chain Ladder'!I6^1.5 -> 3642927.152 | L52: ='Triangle incurred Chain Ladder'!B6^1.5 -> 31623250.94 | M52: ='Triangle incurred Chain Ladder'!C6^1.5 -> 1874687212 | N52: ='Triangle incurred Chain Ladder'!D6^1.5 -> 2891961195 | O52: ='Triangle incurred Chain Ladder'!E6^1.5 -> 2741283463 | P52: ='Triangle incurred Chain Ladder'!F6^1.5 -> 2891043579 | Q52: ='Triangle incurred Chain Ladder'!G6^1.5 -> 3334992134 | R52: ='Triangle incurred Chain Ladder'!H6^1.5 -> 5743191698 | S52: ='Triangle incurred Chain Ladder'!I6^1.5 -> 2622918408
A53: 2009 | B53: =(B24-B$31*'Triangle incurred Chain Ladder'!B7)^3/'Triangle incurred Chain Ladder'!B7^1.5 -> -5538031074 | C53: =(C24-C$31*'Triangle incurred Chain Ladder'!C7)^3/'Triangle incurred Chain Ladder'!C7^1.5 -> -1783409.701 | D53: =(D24-D$31*'Triangle incurred Chain Ladder'!D7)^3/'Triangle incurred Chain Ladder'!D7^1.5 -> 7039255.6 | E53: =(E24-E$31*'Triangle incurred Chain Ladder'!E7)^3/'Triangle incurred Chain Ladder'!E7^1.5 -> 574154.9289 | F53: =(F24-F$31*'Triangle incurred Chain Ladder'!F7)^3/'Triangle incurred Chain Ladder'!F7^1.5 -> -10735.23866 | G53: =(G24-G$31*'Triangle incurred Chain Ladder'!G7)^3/'Triangle incurred Chain Ladder'!G7^1.5 -> 8364410.263 | H53: =(H24-H$31*'Triangle incurred Chain Ladder'!H7)^3/'Triangle incurred Chain Ladder'!H7^1.5 -> -8259474891 | L53: ='Triangle incurred Chain Ladder'!B7^1.5 -> 32576666.69 | M53: ='Triangle incurred Chain Ladder'!C7^1.5 -> 1518415060 | N53: ='Triangle incurred Chain Ladder'!D7^1.5 -> 4982575880 | O53: ='Triangle incurred Chain Ladder'!E7^1.5 -> 5166514796 | P53: ='Triangle incurred Chain Ladder'!F7^1.5 -> 5478144832 | Q53: ='Triangle incurred Chain Ladder'!G7^1.5 -> 8251967193 | R53: ='Triangle incurred Chain Ladder'!H7^1.5 -> 6863624904
A54: 2010 | B54: =(B25-B$31*'Triangle incurred Chain Ladder'!B8)^3/'Triangle incurred Chain Ladder'!B8^1.5 -> 6548845055 | C54: =(C25-C$31*'Triangle incurred Chain Ladder'!C8)^3/'Triangle incurred Chain Ladder'!C8^1.5 -> -2.954040329e+11 | D54: =(D25-D$31*'Triangle incurred Chain Ladder'!D8)^3/'Triangle incurred Chain Ladder'!D8^1.5 -> -105911892 | E54: =(E25-E$31*'Triangle incurred Chain Ladder'!E8)^3/'Triangle incurred Chain Ladder'!E8^1.5 -> -246776.43 | F54: =(F25-F$31*'Triangle incurred Chain Ladder'!F8)^3/'Triangle incurred Chain Ladder'!F8^1.5 -> 280883.6766 | G54: =(G25-G$31*'Triangle incurred Chain Ladder'!G8)^3/'Triangle incurred Chain Ladder'!G8^1.5 -> 327334.1745 | L54: ='Triangle incurred Chain Ladder'!B8^1.5 -> 91288016.59 | M54: ='Triangle incurred Chain Ladder'!C8^1.5 -> 837308118.6 | N54: ='Triangle incurred Chain Ladder'!D8^1.5 -> 6.622937042e+10 | O54: ='Triangle incurred Chain Ladder'!E8^1.5 -> 9.07241862e+10 | P54: ='Triangle incurred Chain Ladder'!F8^1.5 -> 9.987688914e+10 | Q54: ='Triangle incurred Chain Ladder'!G8^1.5 -> 1.534719746e+11
A55: 2011 | B55: =(B26-B$31*'Triangle incurred Chain Ladder'!B9)^3/'Triangle incurred Chain Ladder'!B9^1.5 -> 388992280 | C55: =(C26-C$31*'Triangle incurred Chain Ladder'!C9)^3/'Triangle incurred Chain Ladder'!C9^1.5 -> 67687901.32 | D55: =(D26-D$31*'Triangle incurred Chain Ladder'!D9)^3/'Triangle incurred Chain Ladder'!D9^1.5 -> 7957.94791 | E55: =(E26-E$31*'Triangle incurred Chain Ladder'!E9)^3/'Triangle incurred Chain Ladder'!E9^1.5 -> -2552005508 | F55: =(F26-F$31*'Triangle incurred Chain Ladder'!F9)^3/'Triangle incurred Chain Ladder'!F9^1.5 -> -966.4928156 | L55: ='Triangle incurred Chain Ladder'!B9^1.5 -> 5196412.232 | M55: ='Triangle incurred Chain Ladder'!C9^1.5 -> 275772581.1 | N55: ='Triangle incurred Chain Ladder'!D9^1.5 -> 1538012500 | O55: ='Triangle incurred Chain Ladder'!E9^1.5 -> 2992482647 | P55: ='Triangle incurred Chain Ladder'!F9^1.5 -> 8487257302
A56: 2012 | B56: =(B27-B$31*'Triangle incurred Chain Ladder'!B10)^3/'Triangle incurred Chain Ladder'!B10^1.5 -> 4138432068 | C56: =(C27-C$31*'Triangle incurred Chain Ladder'!C10)^3/'Triangle incurred Chain Ladder'!C10^1.5 -> 19557924.72 | D56: =(D27-D$31*'Triangle incurred Chain Ladder'!D10)^3/'Triangle incurred Chain Ladder'!D10^1.5 -> -1518047.698 | E56: =(E27-E$31*'Triangle incurred Chain Ladder'!E10)^3/'Triangle incurred Chain Ladder'!E10^1.5 -> 647516.5393 | L56: ='Triangle incurred Chain Ladder'!B10^1.5 -> 19342478.84 | M56: ='Triangle incurred Chain Ladder'!C10^1.5 -> 110843062.5 | N56: ='Triangle incurred Chain Ladder'!D10^1.5 -> 750810669.7 | O56: ='Triangle incurred Chain Ladder'!E10^1.5 -> 7866650977
A57: 2013 | B57: =(B28-B$31*'Triangle incurred Chain Ladder'!B11)^3/'Triangle incurred Chain Ladder'!B11^1.5 -> 4.13335993e+10 | C57: =(C28-C$31*'Triangle incurred Chain Ladder'!C11)^3/'Triangle incurred Chain Ladder'!C11^1.5 -> 4042961378 | D57: =(D28-D$31*'Triangle incurred Chain Ladder'!D11)^3/'Triangle incurred Chain Ladder'!D11^1.5 -> 15218107.53 | L57: ='Triangle incurred Chain Ladder'!B11^1.5 -> 202452214.3 | M57: ='Triangle incurred Chain Ladder'!C11^1.5 -> 6502212563 | N57: ='Triangle incurred Chain Ladder'!D11^1.5 -> 9086486872
A58: 2014 | B58: =(B29-B$31*'Triangle incurred Chain Ladder'!B12)^3/'Triangle incurred Chain Ladder'!B12^1.5 -> 942276361.6 | C58: =(C29-C$31*'Triangle incurred Chain Ladder'!C12)^3/'Triangle incurred Chain Ladder'!C12^1.5 -> 2.212861995e+10 | L58: ='Triangle incurred Chain Ladder'!B12^1.5 -> 5940139.036 | M58: ='Triangle incurred Chain Ladder'!C12^1.5 -> 1.781277554e+10
A59: 2015 | B59: =(B30-B$31*'Triangle incurred Chain Ladder'!B13)^3/'Triangle incurred Chain Ladder'!B13^1.5 -> -3.200994533e+11 | L59: ='Triangle incurred Chain Ladder'!B13^1.5 -> 89443389.92
A60: n-j | B60: 9 | C60: 8 | D60: 7 | E60: 6 | F60: 5 | G60: 4 | H60: 3 | I60: 2 | J60: 1
A62: SK(di) | B62: =SUM(B50:B59)/B60/SUM(L50:L59) -> -89.23956978 | C62: =SUM(C50:C59)/C60/SUM(M50:M59) -> -2.654629326 | D62: -6.094965612e-05 | E62: -0.002650556987 | F62: -8.024145414e-07 | G62: 1.42453499e-06 | H62: -0.04295700877 | I62: 3.716377192e-05 | J62: 2.420728694e-15
A65: mse (IBNERi)
B67: ='Triangle incurred Chain Ladder'!B3 -> N | C67: ='Triangle incurred Chain Ladder'!C3 -> N+1 | D67: ='Triangle incurred Chain Ladder'!D3 -> N+2 | E67: ='Triangle incurred Chain Ladder'!E3 -> N+3 | F67: ='Triangle incurred Chain Ladder'!F3 -> N+4 | G67: ='Triangle incurred Chain Ladder'!G3 -> N+5 | H67: ='Triangle incurred Chain Ladder'!H3 -> N+6 | I67: ='Triangle incurred Chain Ladder'!I3 -> N+7 | J67: ='Triangle incurred Chain Ladder'!J3 -> N+8 | K67: ='Triangle incurred Chain Ladder'!K3 -> N+9 | L67: ='Triangle incurred Chain Ladder'!L3 -> N+10 | M67: Total
A68: ='Triangle incurred Chain Ladder'!A5 -> 2007 | L68: 0 | M68: =SUM(B68:L68) -> 0
A69: ='Triangle incurred Chain Ladder'!A6 -> 2008 | K69: =PRODUCT(L$78:$L$78)^2*L$79/L$78^2 -> 0 | L69: 0 | M69: =SUM(B69:L69) -> 0
A70: ='Triangle incurred Chain Ladder'!A7 -> 2009 | J70: =PRODUCT(K$78:$L$78)^2*K$79/K$78^2 -> 1.938397006e-10 | K70: =PRODUCT(L$78:$L$78)^2*L$79/L$78^2 -> 0 | L70: 0 | M70: 1.938397006e-10
A71: ='Triangle incurred Chain Ladder'!A8 -> 2010 | I71: =PRODUCT(J$78:$L$78)^2*J$79/J$78^2 -> 0.00093103853 | J71: =PRODUCT(K$78:$L$78)^2*K$79/K$78^2 -> 1.938397006e-10 | K71: =PRODUCT(L$78:$L$78)^2*L$79/L$78^2 -> 0 | L71: 0 | M71: 0.0009310387238
A72: ='Triangle incurred Chain Ladder'!A9 -> 2011 | H72: =PRODUCT(I$78:$L$78)^2*I$79/I$78^2 -> 0.08205330975 | I72: =PRODUCT(J$78:$L$78)^2*J$79/J$78^2 -> 0.00093103853 | J72: =PRODUCT(K$78:$L$78)^2*K$79/K$78^2 -> 1.938397006e-10 | K72: =PRODUCT(L$78:$L$78)^2*L$79/L$78^2 -> 0 | L72: 0 | M72: 0.08298434847
A73: ='Triangle incurred Chain Ladder'!A10 -> 2012 | G73: =PRODUCT(H$78:$L$78)^2*H$79/H$78^2 -> 0.0006063336549 | H73: =PRODUCT(I$78:$L$78)^2*I$79/I$78^2 -> 0.08205330975 | I73: =PRODUCT(J$78:$L$78)^2*J$79/J$78^2 -> 0.00093103853 | J73: =PRODUCT(K$78:$L$78)^2*K$79/K$78^2 -> 1.938397006e-10 | K73: =PRODUCT(L$78:$L$78)^2*L$79/L$78^2 -> 0 | L73: 0 | M73: 0.08359068213
A74: ='Triangle incurred Chain Ladder'!A11 -> 2013 | F74: =PRODUCT(G$78:$L$78)^2*G$79/G$78^2 -> 8.185404961e-05 | G74: =PRODUCT(H$78:$L$78)^2*H$79/H$78^2 -> 0.0006063336549 | H74: =PRODUCT(I$78:$L$78)^2*I$79/I$78^2 -> 0.08205330975 | I74: =PRODUCT(J$78:$L$78)^2*J$79/J$78^2 -> 0.00093103853 | J74: =PRODUCT(K$78:$L$78)^2*K$79/K$78^2 -> 1.938397006e-10 | K74: =PRODUCT(L$78:$L$78)^2*L$79/L$78^2 -> 0 | L74: 0 | M74: 0.08367253618
A75: ='Triangle incurred Chain Ladder'!A12 -> 2014 | E75: =PRODUCT(F$78:$L$78)^2*F$79/F$78^2 -> 0.00950450072 | F75: =PRODUCT(G$78:$L$78)^2*G$79/G$78^2 -> 8.185404961e-05 | G75: =PRODUCT(H$78:$L$78)^2*H$79/H$78^2 -> 0.0006063336549 | H75: =PRODUCT(I$78:$L$78)^2*I$79/I$78^2 -> 0.08205330975 | I75: =PRODUCT(J$78:$L$78)^2*J$79/J$78^2 -> 0.00093103853 | J75: =PRODUCT(K$78:$L$78)^2*K$79/K$78^2 -> 1.938397006e-10 | K75: =PRODUCT(L$78:$L$78)^2*L$79/L$78^2 -> 0 | L75: 0 | M75: 0.0931770369
A76: ='Triangle incurred Chain Ladder'!A13 -> 2015 | D76: =PRODUCT(E$78:$L$78)^2*E$79/E$78^2 -> 0.002339837197 | E76: =PRODUCT(F$78:$L$78)^2*F$79/F$78^2 -> 0.00950450072 | F76: =PRODUCT(G$78:$L$78)^2*G$79/G$78^2 -> 8.185404961e-05 | G76: =PRODUCT(H$78:$L$78)^2*H$79/H$78^2 -> 0.0006063336549 | H76: =PRODUCT(I$78:$L$78)^2*I$79/I$78^2 -> 0.08205330975 | I76: =PRODUCT(J$78:$L$78)^2*J$79/J$78^2 -> 0.00093103853 | J76: =PRODUCT(K$78:$L$78)^2*K$79/K$78^2 -> 1.938397006e-10 | K76: =PRODUCT(L$78:$L$78)^2*L$79/L$78^2 -> 0 | L76: 0 | M76: 0.09551687409
A77: ='Triangle incurred Chain Ladder'!A14 -> 2016 | C77: =PRODUCT(D$78:$L$78)^2*D$79/D$78^2 -> 1.375397831 | D77: =PRODUCT(E$78:$L$78)^2*E$79/E$78^2 -> 0.002339837197 | E77: =PRODUCT(F$78:$L$78)^2*F$79/F$78^2 -> 0.00950450072 | F77: =PRODUCT(G$78:$L$78)^2*G$79/G$78^2 -> 8.185404961e-05 | G77: =PRODUCT(H$78:$L$78)^2*H$79/H$78^2 -> 0.0006063336549 | H77: =PRODUCT(I$78:$L$78)^2*I$79/I$78^2 -> 0.08205330975 | I77: =PRODUCT(J$78:$L$78)^2*J$79/J$78^2 -> 0.00093103853 | J77: =PRODUCT(K$78:$L$78)^2*K$79/K$78^2 -> 1.938397006e-10 | K77: =PRODUCT(L$78:$L$78)^2*L$79/L$78^2 -> 0 | L77: 0 | M77: 1.470914705
A78: 1-di | C78: =Data!Z328 -> 6.888349299 | D78: =Data!AA328 -> 2.091239807 | E78: =Data!AB328 -> 1.11179381 | F78: =Data!AC328 -> 1.054661228 | G78: =Data!AD328 -> 0.9916011272 | H78: =Data!AE328 -> 0.9852454663 | I78: =Data!AF328 -> 1.158411739 | J78: =Data!AG328 -> 0.957165119 | K78: =Data!AH328 -> 1.001012619 | L78: =Data!AI328 -> 0.9993848009
A79: Var(di) | C79: =B46 -> 9.755455753 | D79: =C46 -> 0.851817866 | E79: 0.001791234948 | F79: 0.008093235585 | G79: 6.853415593e-05 | H79: 0.0004927963278 | I79: 0.08949067657 | J79: 0.0009303001036 | K79: 1.940784208e-10 | L79: 0
A82: SK (IBNERi)
B84: =B67 -> N | C84: =C67 -> N+1 | D84: N+2 | E84: N+3 | F84: N+4 | G84: N+5 | H84: N+6 | I84: N+7 | J84: N+8 | K84: N+9 | L84: N+10 | M84: Total
A85: =A68 -> 2007 | L85: 0 | M85: =SUM(B85:L85) -> 0
A86: =A69 -> 2008 | K86: =PRODUCT(L$95:$L$95)^3*L$96/L$95^3 -> 0 | L86: 0 | M86: =SUM(B86:L86) -> 0
A87: 2009 | J87: =PRODUCT(K$95:$L$95)^3*K$96/K$95^3 -> 2.416263752e-15 | K87: =PRODUCT(L$95:$L$95)^3*L$96/L$95^3 -> 0 | L87: 0 | M87: 2.416263752e-15
A88: 2010 | I88: =PRODUCT(J$95:$L$95)^3*J$96/J$95^3 -> 3.720802886e-05 | J88: =PRODUCT(K$95:$L$95)^3*K$96/K$95^3 -> 2.416263752e-15 | K88: =PRODUCT(L$95:$L$95)^3*L$96/L$95^3 -> 0 | L88: 0 | M88: 3.720802886e-05
A89: 2011 | H89: =PRODUCT(I$95:$L$95)^3*I$96/I$95^3 -> -0.03771477323 | I89: =PRODUCT(J$95:$L$95)^3*J$96/J$95^3 -> 3.720802886e-05 | J89: =PRODUCT(K$95:$L$95)^3*K$96/K$95^3 -> 2.416263752e-15 | K89: =PRODUCT(L$95:$L$95)^3*L$96/L$95^3 -> 0 | L89: 0 | M89: -0.0376775652
A90: 2012 | G90: =PRODUCT(H$95:$L$95)^3*H$96/H$95^3 -> 1.944193285e-06 | H90: =PRODUCT(I$95:$L$95)^3*I$96/I$95^3 -> -0.03771477323 | I90: =PRODUCT(J$95:$L$95)^3*J$96/J$95^3 -> 3.720802886e-05 | J90: =PRODUCT(K$95:$L$95)^3*K$96/K$95^3 -> 2.416263752e-15 | K90: =PRODUCT(L$95:$L$95)^3*L$96/L$95^3 -> 0 | L90: 0 | M90: -0.03767562101
A91: 2013 | F91: =PRODUCT(G$95:$L$95)^3*G$96/G$95^3 -> -1.047365932e-06 | G91: =PRODUCT(H$95:$L$95)^3*H$96/H$95^3 -> 1.944193285e-06 | H91: =PRODUCT(I$95:$L$95)^3*I$96/I$95^3 -> -0.03771477323 | I91: =PRODUCT(J$95:$L$95)^3*J$96/J$95^3 -> 3.720802886e-05 | J91: =PRODUCT(K$95:$L$95)^3*K$96/K$95^3 -> 2.416263752e-15 | K91: =PRODUCT(L$95:$L$95)^3*L$96/L$95^3 -> 0 | L91: 0 | M91: -0.03767666838
A92: 2014 | E92: =PRODUCT(F$95:$L$95)^3*F$96/F$95^3 -> -0.003373244603 | F92: =PRODUCT(G$95:$L$95)^3*G$96/G$95^3 -> -1.047365932e-06 | G92: =PRODUCT(H$95:$L$95)^3*H$96/H$95^3 -> 1.944193285e-06 | H92: =PRODUCT(I$95:$L$95)^3*I$96/I$95^3 -> -0.03771477323 | I92: =PRODUCT(J$95:$L$95)^3*J$96/J$95^3 -> 3.720802886e-05 | J92: =PRODUCT(K$95:$L$95)^3*K$96/K$95^3 -> 2.416263752e-15 | K92: =PRODUCT(L$95:$L$95)^3*L$96/L$95^3 -> 0 | L92: 0 | M92: -0.04104991298
A93: 2015 | D93: =PRODUCT(E$95:$L$95)^3*E$96/E$95^3 -> -9.099570412e-05 | E93: =PRODUCT(F$95:$L$95)^3*F$96/F$95^3 -> -0.003373244603 | F93: =PRODUCT(G$95:$L$95)^3*G$96/G$95^3 -> -1.047365932e-06 | G93: =PRODUCT(H$95:$L$95)^3*H$96/H$95^3 -> 1.944193285e-06 | H93: =PRODUCT(I$95:$L$95)^3*I$96/I$95^3 -> -0.03771477323 | I93: =PRODUCT(J$95:$L$95)^3*J$96/J$95^3 -> 3.720802886e-05 | J93: =PRODUCT(K$95:$L$95)^3*K$96/K$95^3 -> 2.416263752e-15 | K93: =PRODUCT(L$95:$L$95)^3*L$96/L$95^3 -> 0 | L93: 0 | M93: -0.04114090868
A94: 2016 | C94: =PRODUCT(D$95:$L$95)^3*D$96/D$95^3 -> -5.446609926 | D94: =PRODUCT(E$95:$L$95)^3*E$96/E$95^3 -> -9.099570412e-05 | E94: =PRODUCT(F$95:$L$95)^3*F$96/F$95^3 -> -0.003373244603 | F94: =PRODUCT(G$95:$L$95)^3*G$96/G$95^3 -> -1.047365932e-06 | G94: =PRODUCT(H$95:$L$95)^3*H$96/H$95^3 -> 1.944193285e-06 | H94: =PRODUCT(I$95:$L$95)^3*I$96/I$95^3 -> -0.03771477323 | I94: =PRODUCT(J$95:$L$95)^3*J$96/J$95^3 -> 3.720802886e-05 | J94: =PRODUCT(K$95:$L$95)^3*K$96/K$95^3 -> 2.416263752e-15 | K94: =PRODUCT(L$95:$L$95)^3*L$96/L$95^3 -> 0 | L94: 0 | M94: -5.487750835
A95: 1-di | C95: =C78 -> 6.888349299 | D95: =D78 -> 2.091239807 | E95: 1.11179381 | F95: 1.054661228 | G95: 0.9916011272 | H95: 0.9852454663 | I95: 1.158411739 | J95: 0.957165119 | K95: 1.001012619 | L95: 0.9993848009
A96: SK(di) | C96: =B62 -> -89.23956978 | D96: =C62 -> -2.654629326 | E96: -6.094965612e-05 | F96: -0.002650556987 | G96: -8.024145414e-07 | H96: 1.42453499e-06 | I96: -0.04295700877 | J96: 3.716377192e-05 | K96: 2.420728694e-15 | L96: 0

Sheet Triangle incurred Chain Ladder
C1: Incurred - Chain-ladder (Mack)
A3: UWY | B3: N | C3: N+1 | D3: N+2 | E3: N+3 | F3: N+4 | G3: N+5 | H3: N+6 | I3: N+7 | J3: N+8 | K3: N+9 | L3: N+10 | M3: Reserves | N3: CoV | O3: Skewness | P3: Kurtosis
A4: 2006 | B4: 161295.2588 | C4: 541537.7446 | D4: 1463061.099 | E4: 1659941.175 | F4: 1716881.402 | G4: 1709176.075 | H4: 1694521.406 | I4: 1710571.864 | J4: 1715090.909 | K4: 1716764.901 | L4: 1723579.279 | M4: 0 | N4: 0
A5: 2007 | B5: 8189.476752 | C5: 844616.5027 | D5: 8445206.278 | E5: 11710554.82 | F5: 10948955.13 | G5: 10945110.26 | H5: 11696665.69 | I5: 11809172 | J5: 11826188.85 | K5: 11855385.82 | L5: 0 | M5: 47057.74262 | N5: 0.00482102201 | O5: 0 | P5: 0
A6: 2008 | B6: 100001 | C6: 1520381.388 | D6: 2029839.226 | E6: 1958706.197 | F6: 2029409.826 | G6: 2232183.409 | H6: 3207023.988 | I6: 1901909.528 | J6: 1608241.601 | K6: 0 | L6: 0 | M6: 10064.58473 | N6: 0.2444951451 | O6: -0.5358995142 | P6: 0.5819121898
A7: 2009 | B7: 102001 | C7: 1321073.563 | D7: 2917220.662 | E7: 2988581.6 | F7: 3107580.16 | G7: 4083554.24 | H7: 3611622.591 | I7: 8030480.964 | J7: 0 | K7: 0 | L7: 0 | M7: -92337.69462 | N7: -5.424972329 | O7: -0.6218117458 | P7: 2.416338324
A8: 2010 | B8: 202741.4341 | C8: 888362.467 | D8: 16369437.31 | E8: 20190576.56 | F8: 21526660.98 | G8: 28665051.12 | H8: 27873128.27 | I8: 0 | J8: 0 | K8: 0 | L8: 0 | M8: 4099822.838 | N8: 2.661905601 | O8: 0.4237301946 | P8: 2.227544069
A9: 2011 | B9: 30001 | C9: 423676.1881 | D9: 1332416.217 | E9: 2076607.543 | F9: 4160813.46 | G9: 4186377.882 | H9: 0 | I9: 0 | J9: 0 | K9: 0 | L9: 0 | M9: 660920.9646 | N9: 4.778407101 | O9: 0.7141777277 | P9: 2.872581042
A10: 2012 | B10: 72056.76387 | C10: 230748.5661 | D10: 826076.5434 | E10: 3955425.916 | F10: 4742006.887 | G10: 0 | H10: 0 | I10: 0 | J10: 0 | K10: 0 | L10: 0 | M10: 1800447.772 | N10: 2.207255452 | O10: 0.6924708059 | P10: 3.018587395
A11: 2013 | B11: 344784.9927 | C11: 3483700.214 | D11: 4354423.539 | E11: 5478547.634 | F11: 0 | G11: 0 | H11: 0 | I11: 0 | J11: 0 | K11: 0 | L11: 0 | M11: 2706627.446 | N11: 1.841152035 | O11: 0.7763998856 | P11: 3.485535563
A12: 2014 | B12: 32799.28729 | C12: 6820576.174 | D12: 14857472.67 | E12: 0 | F12: 0 | G12: 0 | H12: 0 | I12: 0 | J12: 0 | K12: 0 | L12: 0 | M12: 14564159.41 | N12: 0.9967004041 | O12: 0.6912389143 | P12: 3.382348629
A13: 2015 | B13: 200001 | C13: 9172509.354 | E13: 0 | F13: 0 | G13: 0 | H13: 0 | I13: 0 | J13: 0 | K13: 0 | L13: 0 | M13: 50258563.34 | N13: 1.001234877 | O13: 0.9575144518 | P13: 3.78349858
A14: 2016 | B14: 213825.3027 | E14: 0 | F14: 0 | G14: 0 | H14: 0 | I14: 0 | J14: 0 | K14: 0 | L14: 0 | M14: 27682338.39 | N14: 1.87046755 | O14: 2.118208751 | P14: 10.11615337
L15: Total | M15: 101737664.8 | N15: 0.8839499781 | O15: 1.745503239 | P15: 3.858923181
N16: CoV | O16: Skewness | P16: Kurtosis
B17: Source:
B18: a - Aggregated data from the sheet data
B19: b - Reserves, CoV, Skewness, Kurtosis: Run macro Mack1999 (see ReadMe)
C20: See the article “an approximation of the nonlife reserve risk distribution using the cornish-fisher expansion” available under https://ssrn.com/abstract=2965384

Sheet Triangle nb UWY Reporting dvlpt
C2: Number of claims - Cumulative
A4: UWY | B4: ClaimNb | C4: X1 | D4: X2 | E4: X3 | F4: X4 | G4: X5 | H4: X6 | I4: X7 | J4: X8 | K4: X9 | L4: X10 | M4: X11 | P4: Étiquettes de lignes | Q4: Somme de X1 | R4: Somme de X2 | S4: Somme de X3 | T4: Somme de X4 | U4: Somme de X5 | V4: Somme de X6 | W4: Somme de X7 | X4: Somme de X8 | Y4: Somme de X9 | Z4: Somme de X10 | AA4: Somme de X11
A5: 2006 | B5: 145 | C5: =IF(Data!C5<>"",1,IF(Data!C5="","",0)) ->  | D5: =IF(Data!D5<>"",1,IF(Data!D5="","",0)) ->  | E5: =IF(Data!E5<>"",1,IF(Data!E5="","",0)) -> 1 | F5: =IF(Data!F5<>"",1,IF(Data!F5="","",0)) -> 1 | G5: =IF(Data!G5<>"",1,IF(Data!G5="","",0)) -> 1 | H5: =IF(Data!H5<>"",1,IF(Data!H5="","",0)) -> 1 | I5: =IF(Data!I5<>"",1,IF(Data!I5="","",0)) -> 1 | J5: =IF(Data!J5<>"",1,IF(Data!J5="","",0)) -> 1 | K5: =IF(Data!K5<>"",1,IF(Data!K5="","",0)) -> 1 | L5: =IF(Data!L5<>"",1,IF(Data!L5="","",0)) -> 1 | M5: =IF(Data!M5<>"",1,IF(Data!M5="","",0)) -> 1 | P5: 2006 | Q5: 3 | R5: 13 | S5: 21 | T5: 22 | U5: 24 | V5: 23 | W5: 23 | X5: 24 | Y5: 24 | Z5: 24 | AA5: 25
A6: 2006 | B6: 270 | C6: =IF(Data!C6<>"",1,IF(Data!C6="","",0)) ->  | D6: =IF(Data!D6<>"",1,IF(Data!D6="","",0)) -> 1 | E6: =IF(Data!E6<>"",1,IF(Data!E6="","",0)) -> 1 | F6: =IF(Data!F6<>"",1,IF(Data!F6="","",0)) -> 1 | G6: =IF(Data!G6<>"",1,IF(Data!G6="","",0)) -> 1 | H6: =IF(Data!H6<>"",1,IF(Data!H6="","",0)) -> 1 | I6: =IF(Data!I6<>"",1,IF(Data!I6="","",0)) -> 1 | J6: =IF(Data!J6<>"",1,IF(Data!J6="","",0)) -> 1 | K6: =IF(Data!K6<>"",1,IF(Data!K6="","",0)) -> 1 | L6: =IF(Data!L6<>"",1,IF(Data!L6="","",0)) -> 1 | M6: =IF(Data!M6<>"",1,IF(Data!M6="","",0)) -> 1 | P6: 2007 | Q6: 2 | R6: 20 | S6: 35 | T6: 41 | U6: 43 | V6: 42 | W6: 46 | X6: 47 | Y6: 48 | Z6: 49 | AA6: 0
A7: 2006 | B7: 342 | C7: =IF(Data!C7<>"",1,IF(Data!C7="","",0)) ->  | D7: =IF(Data!D7<>"",1,IF(Data!D7="","",0)) -> 1 | E7: =IF(Data!E7<>"",1,IF(Data!E7="","",0)) -> 1 | F7: =IF(Data!F7<>"",1,IF(Data!F7="","",0)) -> 1 | G7: =IF(Data!G7<>"",1,IF(Data!G7="","",0)) -> 1 | H7: =IF(Data!H7<>"",1,IF(Data!H7="","",0)) -> 1 | I7: =IF(Data!I7<>"",1,IF(Data!I7="","",0)) -> 1 | J7: =IF(Data!J7<>"",1,IF(Data!J7="","",0)) -> 1 | K7: =IF(Data!K7<>"",1,IF(Data!K7="","",0)) -> 1 | L7: =IF(Data!L7<>"",1,IF(Data!L7="","",0)) -> 1 | M7: =IF(Data!M7<>"",1,IF(Data!M7="","",0)) -> 1 | P7: 2008 | Q7: 1 | R7: 11 | S7: 15 | T7: 16 | U7: 18 | V7: 21 | W7: 26 | X7: 28 | Y7: 28 | Z7: 0 | AA7: 0
A8: 2006 | B8: 447 | C8: =IF(Data!C8<>"",1,IF(Data!C8="","",0)) ->  | D8: =IF(Data!D8<>"",1,IF(Data!D8="","",0)) -> 1 | E8: =IF(Data!E8<>"",1,IF(Data!E8="","",0)) -> 1 | F8: =IF(Data!F8<>"",1,IF(Data!F8="","",0)) -> 1 | G8: =IF(Data!G8<>"",1,IF(Data!G8="","",0)) -> 1 | H8: =IF(Data!H8<>"",1,IF(Data!H8="","",0)) -> 1 | I8: =IF(Data!I8<>"",1,IF(Data!I8="","",0)) -> 1 | J8: =IF(Data!J8<>"",1,IF(Data!J8="","",0)) -> 1 | K8: =IF(Data!K8<>"",1,IF(Data!K8="","",0)) -> 1 | L8: =IF(Data!L8<>"",1,IF(Data!L8="","",0)) -> 1 | M8: =IF(Data!M8<>"",1,IF(Data!M8="","",0)) -> 1 | P8: 2009 | Q8: 1 | R8: 13 | S8: 16 | T8: 22 | U8: 29 | V8: 31 | W8: 30 | X8: 31 | Y8: 0 | Z8: 0 | AA8: 0
A9: 2006 | B9: 467 | C9: =IF(Data!C9<>"",1,IF(Data!C9="","",0)) ->  | D9: =IF(Data!D9<>"",1,IF(Data!D9="","",0)) ->  | E9: =IF(Data!E9<>"",1,IF(Data!E9="","",0)) -> 1 | F9: =IF(Data!F9<>"",1,IF(Data!F9="","",0)) -> 1 | G9: =IF(Data!G9<>"",1,IF(Data!G9="","",0)) -> 1 | H9: =IF(Data!H9<>"",1,IF(Data!H9="","",0)) -> 1 | I9: =IF(Data!I9<>"",1,IF(Data!I9="","",0)) -> 1 | J9: =IF(Data!J9<>"",1,IF(Data!J9="","",0)) -> 1 | K9: =IF(Data!K9<>"",1,IF(Data!K9="","",0)) -> 1 | L9: =IF(Data!L9<>"",1,IF(Data!L9="","",0)) -> 1 | M9: =IF(Data!M9<>"",1,IF(Data!M9="","",0)) -> 1 | P9: 2010 | Q9: 4 | R9: 19 | S9: 25 | T9: 29 | U9: 38 | V9: 40 | W9: 40 | X9: 0 | Y9: 0 | Z9: 0 | AA9: 0
A10: 2006 | B10: 493 | C10: =IF(Data!C10<>"",1,IF(Data!C10="","",0)) ->  | D10: =IF(Data!D10<>"",1,IF(Data!D10="","",0)) ->  | E10: =IF(Data!E10<>"",1,IF(Data!E10="","",0)) -> 1 | F10: =IF(Data!F10<>"",1,IF(Data!F10="","",0)) -> 1 | G10: =IF(Data!G10<>"",1,IF(Data!G10="","",0)) -> 1 | H10: =IF(Data!H10<>"",1,IF(Data!H10="","",0)) -> 1 | I10: =IF(Data!I10<>"",1,IF(Data!I10="","",0)) -> 1 | J10: =IF(Data!J10<>"",1,IF(Data!J10="","",0)) -> 1 | K10: =IF(Data!K10<>"",1,IF(Data!K10="","",0)) -> 1 | L10: =IF(Data!L10<>"",1,IF(Data!L10="","",0)) -> 1 | M10: =IF(Data!M10<>"",1,IF(Data!M10="","",0)) -> 1 | P10: 2011 | Q10: 1 | R10: 9 | S10: 16 | T10: 38 | U10: 39 | V10: 41 | W10: 0 | X10: 0 | Y10: 0 | Z10: 0 | AA10: 0
A11: 2006 | B11: 617 | C11: =IF(Data!C11<>"",1,IF(Data!C11="","",0)) -> 1 | D11: =IF(Data!D11<>"",1,IF(Data!D11="","",0)) -> 1 | E11: =IF(Data!E11<>"",1,IF(Data!E11="","",0)) -> 1 | F11: =IF(Data!F11<>"",1,IF(Data!F11="","",0)) -> 1 | G11: =IF(Data!G11<>"",1,IF(Data!G11="","",0)) -> 1 | H11: =IF(Data!H11<>"",1,IF(Data!H11="","",0)) -> 1 | I11: =IF(Data!I11<>"",1,IF(Data!I11="","",0)) -> 1 | J11: =IF(Data!J11<>"",1,IF(Data!J11="","",0)) -> 1 | K11: =IF(Data!K11<>"",1,IF(Data!K11="","",0)) -> 1 | L11: =IF(Data!L11<>"",1,IF(Data!L11="","",0)) -> 1 | M11: =IF(Data!M11<>"",1,IF(Data!M11="","",0)) -> 1 | P11: 2012 | Q11: 4 | R11: 11 | S11: 29 | T11: 38 | U11: 45 | V11: 0 | W11: 0 | X11: 0 | Y11: 0 | Z11: 0 | AA11: 0
A12: 2006 | B12: 649 | C12: =IF(Data!C12<>"",1,IF(Data!C12="","",0)) ->  | D12: =IF(Data!D12<>"",1,IF(Data!D12="","",0)) ->  | E12: =IF(Data!E12<>"",1,IF(Data!E12="","",0)) -> 1 | F12: =IF(Data!F12<>"",1,IF(Data!F12="","",0)) -> 1 | G12: =IF(Data!G12<>"",1,IF(Data!G12="","",0)) -> 1 | H12: =IF(Data!H12<>"",1,IF(Data!H12="","",0)) -> 1 | I12: =IF(Data!I12<>"",1,IF(Data!I12="","",0)) -> 1 | J12: =IF(Data!J12<>"",1,IF(Data!J12="","",0)) -> 1 | K12: =IF(Data!K12<>"",1,IF(Data!K12="","",0)) -> 1 | L12: =IF(Data!L12<>"",1,IF(Data!L12="","",0)) -> 1 | M12: =IF(Data!M12<>"",1,IF(Data!M12="","",0)) -> 1 | P12: 2013 | Q12: 2 | R12: 12 | S12: 15 | T12: 20 | U12: 0 | V12: 0 | W12: 0 | X12: 0 | Y12: 0 | Z12: 0 | AA12: 0
A13: 2006 | B13: 656 | C13: =IF(Data!C13<>"",1,IF(Data!C13="","",0)) ->  | D13: =IF(Data!D13<>"",1,IF(Data!D13="","",0)) ->  | E13: =IF(Data!E13<>"",1,IF(Data!E13="","",0)) -> 1 | F13: =IF(Data!F13<>"",1,IF(Data!F13="","",0)) -> 1 | G13: =IF(Data!G13<>"",1,IF(Data!G13="","",0)) -> 1 | H13: =IF(Data!H13<>"",1,IF(Data!H13="","",0)) -> 1 | I13: =IF(Data!I13<>"",1,IF(Data!I13="","",0)) -> 1 | J13: =IF(Data!J13<>"",1,IF(Data!J13="","",0)) -> 1 | K13: =IF(Data!K13<>"",1,IF(Data!K13="","",0)) -> 1 | L13: =IF(Data!L13<>"",1,IF(Data!L13="","",0)) -> 1 | M13: =IF(Data!M13<>"",1,IF(Data!M13="","",0)) -> 1 | P13: 2014 | Q13: 3 | R13: 14 | S13: 20 | T13: 0 | U13: 0 | V13: 0 | W13: 0 | X13: 0 | Y13: 0 | Z13: 0 | AA13: 0
A14: 2006 | B14: 710 | C14: =IF(Data!C14<>"",1,IF(Data!C14="","",0)) ->  | D14: =IF(Data!D14<>"",1,IF(Data!D14="","",0)) ->  | E14: =IF(Data!E14<>"",1,IF(Data!E14="","",0)) ->  | F14: =IF(Data!F14<>"",1,IF(Data!F14="","",0)) ->  | G14: =IF(Data!G14<>"",1,IF(Data!G14="","",0)) -> 1 | H14: =IF(Data!H14<>"",1,IF(Data!H14="","",0)) -> 1 | I14: =IF(Data!I14<>"",1,IF(Data!I14="","",0)) -> 1 | J14: =IF(Data!J14<>"",1,IF(Data!J14="","",0)) -> 1 | K14: =IF(Data!K14<>"",1,IF(Data!K14="","",0)) -> 1 | L14: =IF(Data!L14<>"",1,IF(Data!L14="","",0)) -> 1 | M14: =IF(Data!M14<>"",1,IF(Data!M14="","",0)) -> 1 | P14: 2015 | Q14: 1 | R14: 6 | S14: 0 | T14: 0 | U14: 0 | V14: 0 | W14: 0 | X14: 0 | Y14: 0 | Z14: 0 | AA14: 0
A15: 2006 | B15: 875 | C15: =IF(Data!C15<>"",1,IF(Data!C15="","",0)) -> 1 | D15: =IF(Data!D15<>"",1,IF(Data!D15="","",0)) -> 1 | E15: =IF(Data!E15<>"",1,IF(Data!E15="","",0)) -> 1 | F15: =IF(Data!F15<>"",1,IF(Data!F15="","",0)) -> 1 | G15: =IF(Data!G15<>"",1,IF(Data!G15="","",0)) -> 1 | H15: =IF(Data!H15<>"",1,IF(Data!H15="","",0)) -> 1 | I15: =IF(Data!I15<>"",1,IF(Data!I15="","",0)) -> 1 | J15: =IF(Data!J15<>"",1,IF(Data!J15="","",0)) -> 1 | K15: =IF(Data!K15<>"",1,IF(Data!K15="","",0)) ->  | L15: =IF(Data!L15<>"",1,IF(Data!L15="","",0)) ->  | M15: =IF(Data!M15<>"",1,IF(Data!M15="","",0)) ->  | P15: 2016 | Q15: 2 | R15: 0 | S15: 0 | T15: 0 | U15: 0 | V15: 0 | W15: 0 | X15: 0 | Y15: 0 | Z15: 0 | AA15: 0
A16: 2006 | B16: 876 | C16: =IF(Data!C16<>"",1,IF(Data!C16="","",0)) ->  | D16: =IF(Data!D16<>"",1,IF(Data!D16="","",0)) -> 1 | E16: =IF(Data!E16<>"",1,IF(Data!E16="","",0)) -> 1 | F16: =IF(Data!F16<>"",1,IF(Data!F16="","",0)) -> 1 | G16: =IF(Data!G16<>"",1,IF(Data!G16="","",0)) -> 1 | H16: =IF(Data!H16<>"",1,IF(Data!H16="","",0)) -> 1 | I16: =IF(Data!I16<>"",1,IF(Data!I16="","",0)) -> 1 | J16: =IF(Data!J16<>"",1,IF(Data!J16="","",0)) -> 1 | K16: =IF(Data!K16<>"",1,IF(Data!K16="","",0)) -> 1 | L16: =IF(Data!L16<>"",1,IF(Data!L16="","",0)) -> 1 | M16: =IF(Data!M16<>"",1,IF(Data!M16="","",0)) -> 1 | P16: Total général | Q16: 24 | R16: 128 | S16: 192 | T16: 226 | U16: 236 | V16: 198 | W16: 165 | X16: 130 | Y16: 100 | Z16: 73 | AA16: 25
A17: 2006 | B17: 887 | C17: =IF(Data!C17<>"",1,IF(Data!C17="","",0)) ->  | D17: =IF(Data!D17<>"",1,IF(Data!D17="","",0)) ->  | E17: =IF(Data!E17<>"",1,IF(Data!E17="","",0)) -> 1 | F17: =IF(Data!F17<>"",1,IF(Data!F17="","",0)) -> 1 | G17: =IF(Data!G17<>"",1,IF(Data!G17="","",0)) -> 1 | H17: =IF(Data!H17<>"",1,IF(Data!H17="","",0)) -> 1 | I17: =IF(Data!I17<>"",1,IF(Data!I17="","",0)) -> 1 | J17: =IF(Data!J17<>"",1,IF(Data!J17="","",0)) -> 1 | K17: =IF(Data!K17<>"",1,IF(Data!K17="","",0)) -> 1 | L17: =IF(Data!L17<>"",1,IF(Data!L17="","",0)) -> 1 | M17: =IF(Data!M17<>"",1,IF(Data!M17="","",0)) -> 1
A18: 2006 | B18: 1027 | C18: =IF(Data!C18<>"",1,IF(Data!C18="","",0)) ->  | D18: =IF(Data!D18<>"",1,IF(Data!D18="","",0)) ->  | E18: =IF(Data!E18<>"",1,IF(Data!E18="","",0)) ->  | F18: =IF(Data!F18<>"",1,IF(Data!F18="","",0)) ->  | G18: =IF(Data!G18<>"",1,IF(Data!G18="","",0)) ->  | H18: =IF(Data!H18<>"",1,IF(Data!H18="","",0)) ->  | I18: =IF(Data!I18<>"",1,IF(Data!I18="","",0)) ->  | J18: =IF(Data!J18<>"",1,IF(Data!J18="","",0)) ->  | K18: =IF(Data!K18<>"",1,IF(Data!K18="","",0)) -> 1 | L18: =IF(Data!L18<>"",1,IF(Data!L18="","",0)) -> 1 | M18: =IF(Data!M18<>"",1,IF(Data!M18="","",0)) -> 1 | R18: Nb claims - Chain-ladder (Mack)
A19: 2006 | B19: 1038 | C19: =IF(Data!C19<>"",1,IF(Data!C19="","",0)) ->  | D19: =IF(Data!D19<>"",1,IF(Data!D19="","",0)) ->  | E19: =IF(Data!E19<>"",1,IF(Data!E19="","",0)) ->  | F19: =IF(Data!F19<>"",1,IF(Data!F19="","",0)) ->  | G19: =IF(Data!G19<>"",1,IF(Data!G19="","",0)) -> 1 | H19: =IF(Data!H19<>"",1,IF(Data!H19="","",0)) -> 1 | I19: =IF(Data!I19<>"",1,IF(Data!I19="","",0)) -> 1 | J19: =IF(Data!J19<>"",1,IF(Data!J19="","",0)) -> 1 | K19: =IF(Data!K19<>"",1,IF(Data!K19="","",0)) -> 1 | L19: =IF(Data!L19<>"",1,IF(Data!L19="","",0)) -> 1 | M19: =IF(Data!M19<>"",1,IF(Data!M19="","",0)) -> 1
A20: 2006 | B20: 1084 | C20: =IF(Data!C20<>"",1,IF(Data!C20="","",0)) ->  | D20: =IF(Data!D20<>"",1,IF(Data!D20="","",0)) ->  | E20: =IF(Data!E20<>"",1,IF(Data!E20="","",0)) ->  | F20: =IF(Data!F20<>"",1,IF(Data!F20="","",0)) ->  | G20: =IF(Data!G20<>"",1,IF(Data!G20="","",0)) ->  | H20: =IF(Data!H20<>"",1,IF(Data!H20="","",0)) ->  | I20: =IF(Data!I20<>"",1,IF(Data!I20="","",0)) ->  | J20: =IF(Data!J20<>"",1,IF(Data!J20="","",0)) -> 1 | K20: =IF(Data!K20<>"",1,IF(Data!K20="","",0)) -> 1 | L20: =IF(Data!L20<>"",1,IF(Data!L20="","",0)) -> 1 | M20: =IF(Data!M20<>"",1,IF(Data!M20="","",0)) -> 1 | P20: UWY | Q20: Somme de X1 | R20: Somme de X2 | S20: Somme de X3 | T20: Somme de X4 | U20: Somme de X5 | V20: Somme de X6 | W20: Somme de X7 | X20: Somme de X8 | Y20: Somme de X9 | Z20: Somme de X10 | AA20: Somme de X11 | AB20: Nb future claims | AC20: CoV | AD20: Skewness | AE20: Kurtosis
A21: 2006 | B21: 1096 | C21: =IF(Data!C21<>"",1,IF(Data!C21="","",0)) ->  | D21: =IF(Data!D21<>"",1,IF(Data!D21="","",0)) ->  | E21: =IF(Data!E21<>"",1,IF(Data!E21="","",0)) ->  | F21: =IF(Data!F21<>"",1,IF(Data!F21="","",0)) ->  | G21: =IF(Data!G21<>"",1,IF(Data!G21="","",0)) ->  | H21: =IF(Data!H21<>"",1,IF(Data!H21="","",0)) ->  | I21: =IF(Data!I21<>"",1,IF(Data!I21="","",0)) ->  | J21: =IF(Data!J21<>"",1,IF(Data!J21="","",0)) ->  | K21: =IF(Data!K21<>"",1,IF(Data!K21="","",0)) ->  | L21: =IF(Data!L21<>"",1,IF(Data!L21="","",0)) ->  | M21: =IF(Data!M21<>"",1,IF(Data!M21="","",0)) -> 1 | P21: 2006 | Q21: 3 | R21: 13 | S21: 21 | T21: 22 | U21: 24 | V21: 23 | W21: 23 | X21: 24 | Y21: 24 | Z21: 24 | AA21: 25 | AB21: 0 | AC21: 0
A22: 2006 | B22: 1412 | C22: =IF(Data!C22<>"",1,IF(Data!C22="","",0)) -> 1 | D22: =IF(Data!D22<>"",1,IF(Data!D22="","",0)) -> 1 | E22: =IF(Data!E22<>"",1,IF(Data!E22="","",0)) -> 1 | F22: =IF(Data!F22<>"",1,IF(Data!F22="","",0)) -> 1 | G22: =IF(Data!G22<>"",1,IF(Data!G22="","",0)) -> 1 | H22: =IF(Data!H22<>"",1,IF(Data!H22="","",0)) -> 1 | I22: =IF(Data!I22<>"",1,IF(Data!I22="","",0)) -> 1 | J22: =IF(Data!J22<>"",1,IF(Data!J22="","",0)) -> 1 | K22: =IF(Data!K22<>"",1,IF(Data!K22="","",0)) -> 1 | L22: =IF(Data!L22<>"",1,IF(Data!L22="","",0)) -> 1 | M22: =IF(Data!M22<>"",1,IF(Data!M22="","",0)) -> 1 | P22: 2007 | Q22: 2 | R22: 20 | S22: 35 | T22: 41 | U22: 43 | V22: 42 | W22: 46 | X22: 47 | Y22: 48 | Z22: 49 | AA22: 0 | AB22: 2.041666667 | AC22: 0.4469810986 | AD22: 0 | AE22: 0
A23: 2006 | B23: 1417 | C23: =IF(Data!C23<>"",1,IF(Data!C23="","",0)) ->  | D23: =IF(Data!D23<>"",1,IF(Data!D23="","",0)) -> 1 | E23: =IF(Data!E23<>"",1,IF(Data!E23="","",0)) -> 1 | F23: =IF(Data!F23<>"",1,IF(Data!F23="","",0)) -> 1 | G23: =IF(Data!G23<>"",1,IF(Data!G23="","",0)) -> 1 | H23: =IF(Data!H23<>"",1,IF(Data!H23="","",0)) -> 1 | I23: =IF(Data!I23<>"",1,IF(Data!I23="","",0)) -> 1 | J23: =IF(Data!J23<>"",1,IF(Data!J23="","",0)) -> 1 | K23: =IF(Data!K23<>"",1,IF(Data!K23="","",0)) -> 1 | L23: =IF(Data!L23<>"",1,IF(Data!L23="","",0)) -> 1 | M23: =IF(Data!M23<>"",1,IF(Data!M23="","",0)) -> 1 | P23: 2008 | Q23: 1 | R23: 11 | S23: 15 | T23: 16 | U23: 18 | V23: 21 | W23: 26 | X23: 28 | Y23: 28 | Z23: 0 | AA23: 0 | AB23: 1.571759259 | AC23: 0.5087082139 | AD23: -0.0447382261 | AE23: 2.130467073
A24: 2006 | B24: 1422 | C24: =IF(Data!C24<>"",1,IF(Data!C24="","",0)) ->  | D24: =IF(Data!D24<>"",1,IF(Data!D24="","",0)) -> 1 | E24: =IF(Data!E24<>"",1,IF(Data!E24="","",0)) -> 1 | F24: =IF(Data!F24<>"",1,IF(Data!F24="","",0)) -> 1 | G24: =IF(Data!G24<>"",1,IF(Data!G24="","",0)) -> 1 | H24: =IF(Data!H24<>"",1,IF(Data!H24="","",0)) -> 1 | I24: =IF(Data!I24<>"",1,IF(Data!I24="","",0)) -> 1 | J24: =IF(Data!J24<>"",1,IF(Data!J24="","",0)) -> 1 | K24: =IF(Data!K24<>"",1,IF(Data!K24="","",0)) -> 1 | L24: =IF(Data!L24<>"",1,IF(Data!L24="","",0)) -> 1 | M24: =IF(Data!M24<>"",1,IF(Data!M24="","",0)) -> 1 | P24: 2009 | Q24: 1 | R24: 13 | S24: 16 | T24: 22 | U24: 29 | V24: 31 | W24: 30 | X24: 31 | Y24: 0 | Z24: 0 | AA24: 0 | AB24: 2.070870744 | AC24: 0.4839396201 | AD24: -0.003602248571 | AE24: 2.334233204
A25: 2006 | B25: 1446 | C25: =IF(Data!C25<>"",1,IF(Data!C25="","",0)) ->  | D25: =IF(Data!D25<>"",1,IF(Data!D25="","",0)) -> 1 | E25: =IF(Data!E25<>"",1,IF(Data!E25="","",0)) -> 1 | F25: =IF(Data!F25<>"",1,IF(Data!F25="","",0)) -> 1 | G25: =IF(Data!G25<>"",1,IF(Data!G25="","",0)) -> 1 | H25: =IF(Data!H25<>"",1,IF(Data!H25="","",0)) -> 1 | I25: =IF(Data!I25<>"",1,IF(Data!I25="","",0)) -> 1 | J25: =IF(Data!J25<>"",1,IF(Data!J25="","",0)) -> 1 | K25: =IF(Data!K25<>"",1,IF(Data!K25="","",0)) -> 1 | L25: =IF(Data!L25<>"",1,IF(Data!L25="","",0)) -> 1 | M25: =IF(Data!M25<>"",1,IF(Data!M25="","",0)) -> 1 | P25: 2010 | Q25: 4 | R25: 19 | S25: 25 | T25: 29 | U25: 38 | V25: 40 | W25: 40 | X25: 0 | Y25: 0 | Z25: 0 | AA25: 0 | AB25: 4.378974935 | AC25: 0.366794004 | AD25: 0.1139223347 | AE25: 2.536450295
A26: 2006 | B26: 1447 | C26: =IF(Data!C26<>"",1,IF(Data!C26="","",0)) ->  | D26: =IF(Data!D26<>"",1,IF(Data!D26="","",0)) -> 1 | E26: =IF(Data!E26<>"",1,IF(Data!E26="","",0)) -> 1 | F26: =IF(Data!F26<>"",1,IF(Data!F26="","",0)) -> 1 | G26: =IF(Data!G26<>"",1,IF(Data!G26="","",0)) -> 1 | H26: =IF(Data!H26<>"",1,IF(Data!H26="","",0)) -> 1 | I26: =IF(Data!I26<>"",1,IF(Data!I26="","",0)) -> 1 | J26: =IF(Data!J26<>"",1,IF(Data!J26="","",0)) -> 1 | K26: =IF(Data!K26<>"",1,IF(Data!K26="","",0)) -> 1 | L26: =IF(Data!L26<>"",1,IF(Data!L26="","",0)) -> 1 | M26: =IF(Data!M26<>"",1,IF(Data!M26="","",0)) -> 1 | P26: 2011 | Q26: 1 | R26: 9 | S26: 16 | T26: 38 | U26: 39 | V26: 41 | W26: 0 | X26: 0 | Y26: 0 | Z26: 0 | AA26: 0 | AB26: 6.806332075 | AC26: 0.6874195721 | AD26: 0.4186018486 | AE26: 2.39148302
A27: 2006 | B27: 1448 | C27: =IF(Data!C27<>"",1,IF(Data!C27="","",0)) ->  | D27: =IF(Data!D27<>"",1,IF(Data!D27="","",0)) -> 1 | E27: =IF(Data!E27<>"",1,IF(Data!E27="","",0)) -> 1 | F27: =IF(Data!F27<>"",1,IF(Data!F27="","",0)) -> 1 | G27: =IF(Data!G27<>"",1,IF(Data!G27="","",0)) -> 1 | H27: =IF(Data!H27<>"",1,IF(Data!H27="","",0)) -> 1 | I27: =IF(Data!I27<>"",1,IF(Data!I27="","",0)) -> 1 | J27: =IF(Data!J27<>"",1,IF(Data!J27="","",0)) -> 1 | K27: =IF(Data!K27<>"",1,IF(Data!K27="","",0)) -> 1 | L27: =IF(Data!L27<>"",1,IF(Data!L27="","",0)) -> 1 | M27: =IF(Data!M27<>"",1,IF(Data!M27="","",0)) -> 1 | P27: 2012 | Q27: 4 | R27: 11 | S27: 29 | T27: 38 | U27: 45 | V27: 0 | W27: 0 | X27: 0 | Y27: 0 | Z27: 0 | AA27: 0 | AB27: 9.393362124 | AC27: 0.6351176748 | AD27: 0.3203743727 | AE27: 2.624027766
A28: 2006 | B28: 1451 | C28: =IF(Data!C28<>"",1,IF(Data!C28="","",0)) ->  | D28: =IF(Data!D28<>"",1,IF(Data!D28="","",0)) -> 1 | E28: =IF(Data!E28<>"",1,IF(Data!E28="","",0)) -> 1 | F28: =IF(Data!F28<>"",1,IF(Data!F28="","",0)) -> 1 | G28: =IF(Data!G28<>"",1,IF(Data!G28="","",0)) -> 1 | H28: =IF(Data!H28<>"",1,IF(Data!H28="","",0)) ->  | I28: =IF(Data!I28<>"",1,IF(Data!I28="","",0)) ->  | J28: =IF(Data!J28<>"",1,IF(Data!J28="","",0)) ->  | K28: =IF(Data!K28<>"",1,IF(Data!K28="","",0)) ->  | L28: =IF(Data!L28<>"",1,IF(Data!L28="","",0)) ->  | M28: =IF(Data!M28<>"",1,IF(Data!M28="","",0)) ->  | P28: 2013 | Q28: 2 | R28: 12 | S28: 15 | T28: 20 | U28: 0 | V28: 0 | W28: 0 | X28: 0 | Y28: 0 | Z28: 0 | AA28: 0 | AB28: 7.695433573 | AC28: 0.7040092495 | AD28: 0.3706147338 | AE28: 2.723295781
A29: 2006 | B29: 1453 | C29: =IF(Data!C29<>"",1,IF(Data!C29="","",0)) ->  | D29: =IF(Data!D29<>"",1,IF(Data!D29="","",0)) ->  | E29: =IF(Data!E29<>"",1,IF(Data!E29="","",0)) -> 1 | F29: =IF(Data!F29<>"",1,IF(Data!F29="","",0)) -> 1 | G29: =IF(Data!G29<>"",1,IF(Data!G29="","",0)) -> 1 | H29: =IF(Data!H29<>"",1,IF(Data!H29="","",0)) -> 1 | I29: =IF(Data!I29<>"",1,IF(Data!I29="","",0)) -> 1 | J29: =IF(Data!J29<>"",1,IF(Data!J29="","",0)) -> 1 | K29: =IF(Data!K29<>"",1,IF(Data!K29="","",0)) -> 1 | L29: =IF(Data!L29<>"",1,IF(Data!L29="","",0)) -> 1 | M29: =IF(Data!M29<>"",1,IF(Data!M29="","",0)) -> 1 | P29: 2014 | Q29: 3 | R29: 14 | S29: 20 | T29: 0 | U29: 0 | V29: 0 | W29: 0 | X29: 0 | Y29: 0 | Z29: 0 | AA29: 0 | AB29: 16.39051156 | AC29: 0.8029751443 | AD29: 1.179883033 | AE29: 5.017948598
A30: 2006 | B30: 1456 | C30: =IF(Data!C30<>"",1,IF(Data!C30="","",0)) ->  | D30: =IF(Data!D30<>"",1,IF(Data!D30="","",0)) ->  | E30: =IF(Data!E30<>"",1,IF(Data!E30="","",0)) -> 1 | F30: =IF(Data!F30<>"",1,IF(Data!F30="","",0)) -> 1 | G30: =IF(Data!G30<>"",1,IF(Data!G30="","",0)) -> 1 | H30: =IF(Data!H30<>"",1,IF(Data!H30="","",0)) -> 1 | I30: =IF(Data!I30<>"",1,IF(Data!I30="","",0)) -> 1 | J30: =IF(Data!J30<>"",1,IF(Data!J30="","",0)) -> 1 | K30: =IF(Data!K30<>"",1,IF(Data!K30="","",0)) -> 1 | L30: =IF(Data!L30<>"",1,IF(Data!L30="","",0)) -> 1 | M30: =IF(Data!M30<>"",1,IF(Data!M30="","",0)) -> 1 | P30: 2015 | Q30: 1 | R30: 6 | S30: 0 | T30: 0 | U30: 0 | V30: 0 | W30: 0 | X30: 0 | Y30: 0 | Z30: 0 | AA30: 0 | AB30: 11.18109398 | AC30: 0.9978097667 | AD30: 1.406220202 | AE30: 5.909657671
A31: 2006 | B31: 1472 | C31: =IF(Data!C31<>"",1,IF(Data!C31="","",0)) ->  | D31: =IF(Data!D31<>"",1,IF(Data!D31="","",0)) ->  | E31: =IF(Data!E31<>"",1,IF(Data!E31="","",0)) ->  | F31: =IF(Data!F31<>"",1,IF(Data!F31="","",0)) -> 1 | G31: =IF(Data!G31<>"",1,IF(Data!G31="","",0)) -> 1 | H31: =IF(Data!H31<>"",1,IF(Data!H31="","",0)) -> 1 | I31: =IF(Data!I31<>"",1,IF(Data!I31="","",0)) -> 1 | J31: =IF(Data!J31<>"",1,IF(Data!J31="","",0)) -> 1 | K31: =IF(Data!K31<>"",1,IF(Data!K31="","",0)) -> 1 | L31: =IF(Data!L31<>"",1,IF(Data!L31="","",0)) -> 1 | M31: =IF(Data!M31<>"",1,IF(Data!M31="","",0)) -> 1 | P31: 2016 | Q31: 2 | R31: 0 | S31: 0 | T31: 0 | U31: 0 | V31: 0 | W31: 0 | X31: 0 | Y31: 0 | Z31: 0 | AA31: 0 | AB31: 31.32090954 | AC31: 0.7847876266 | AD31: 1.045611334 | AE31: 4.30979252
A32: 2007 | B32: 17 | C32: =IF(Data!C32<>"",1,IF(Data!C32="","",0)) ->  | D32: =IF(Data!D32<>"",1,IF(Data!D32="","",0)) -> 1 | E32: =IF(Data!E32<>"",1,IF(Data!E32="","",0)) -> 1 | F32: =IF(Data!F32<>"",1,IF(Data!F32="","",0)) -> 1 | G32: =IF(Data!G32<>"",1,IF(Data!G32="","",0)) -> 1 | H32: =IF(Data!H32<>"",1,IF(Data!H32="","",0)) -> 1 | I32: =IF(Data!I32<>"",1,IF(Data!I32="","",0)) -> 1 | J32: =IF(Data!J32<>"",1,IF(Data!J32="","",0)) -> 1 | K32: =IF(Data!K32<>"",1,IF(Data!K32="","",0)) -> 1 | L32: =IF(Data!L32<>"",1,IF(Data!L32="","",0)) -> 1 | M32: =IF(Data!M32<>"",1,IF(Data!M32="","",0)) ->  | AA32: Total | AB32: 92.85091445 | AC32: 0.3722902414 | AD32: 0.6960399582 | AE32: 3.408138412
A33: 2007 | B33: 54 | C33: =IF(Data!C33<>"",1,IF(Data!C33="","",0)) ->  | D33: =IF(Data!D33<>"",1,IF(Data!D33="","",0)) -> 1 | E33: =IF(Data!E33<>"",1,IF(Data!E33="","",0)) -> 1 | F33: =IF(Data!F33<>"",1,IF(Data!F33="","",0)) -> 1 | G33: =IF(Data!G33<>"",1,IF(Data!G33="","",0)) -> 1 | H33: =IF(Data!H33<>"",1,IF(Data!H33="","",0)) -> 1 | I33: =IF(Data!I33<>"",1,IF(Data!I33="","",0)) -> 1 | J33: =IF(Data!J33<>"",1,IF(Data!J33="","",0)) -> 1 | K33: =IF(Data!K33<>"",1,IF(Data!K33="","",0)) -> 1 | L33: =IF(Data!L33<>"",1,IF(Data!L33="","",0)) -> 1 | M33: =IF(Data!M33<>"",1,IF(Data!M33="","",0)) ->  | R33: Source:
A34: 2007 | B34: 122 | C34: =IF(Data!C34<>"",1,IF(Data!C34="","",0)) -> 1 | D34: =IF(Data!D34<>"",1,IF(Data!D34="","",0)) -> 1 | E34: =IF(Data!E34<>"",1,IF(Data!E34="","",0)) -> 1 | F34: =IF(Data!F34<>"",1,IF(Data!F34="","",0)) -> 1 | G34: =IF(Data!G34<>"",1,IF(Data!G34="","",0)) -> 1 | H34: =IF(Data!H34<>"",1,IF(Data!H34="","",0)) ->  | I34: =IF(Data!I34<>"",1,IF(Data!I34="","",0)) ->  | J34: =IF(Data!J34<>"",1,IF(Data!J34="","",0)) ->  | K34: =IF(Data!K34<>"",1,IF(Data!K34="","",0)) ->  | L34: =IF(Data!L34<>"",1,IF(Data!L34="","",0)) ->  | M34: =IF(Data!M34<>"",1,IF(Data!M34="","",0)) ->  | R34: a - Aggregated data from the number of cumulative claims table on this sheet
A35: 2007 | B35: 123 | C35: =IF(Data!C35<>"",1,IF(Data!C35="","",0)) ->  | D35: =IF(Data!D35<>"",1,IF(Data!D35="","",0)) -> 1 | E35: =IF(Data!E35<>"",1,IF(Data!E35="","",0)) -> 1 | F35: =IF(Data!F35<>"",1,IF(Data!F35="","",0)) -> 1 | G35: =IF(Data!G35<>"",1,IF(Data!G35="","",0)) -> 1 | H35: =IF(Data!H35<>"",1,IF(Data!H35="","",0)) -> 1 | I35: =IF(Data!I35<>"",1,IF(Data!I35="","",0)) -> 1 | J35: =IF(Data!J35<>"",1,IF(Data!J35="","",0)) -> 1 | K35: =IF(Data!K35<>"",1,IF(Data!K35="","",0)) -> 1 | L35: =IF(Data!L35<>"",1,IF(Data!L35="","",0)) -> 1 | M35: =IF(Data!M35<>"",1,IF(Data!M35="","",0)) ->  | R35: b - Reserves, CoV, Skewness, Kurtosis: Run macro Mack1999 (see ReadMe)
A36: 2007 | B36: 135 | C36: =IF(Data!C36<>"",1,IF(Data!C36="","",0)) ->  | D36: =IF(Data!D36<>"",1,IF(Data!D36="","",0)) -> 1 | E36: =IF(Data!E36<>"",1,IF(Data!E36="","",0)) -> 1 | F36: =IF(Data!F36<>"",1,IF(Data!F36="","",0)) -> 1 | G36: =IF(Data!G36<>"",1,IF(Data!G36="","",0)) ->  | H36: =IF(Data!H36<>"",1,IF(Data!H36="","",0)) ->  | I36: =IF(Data!I36<>"",1,IF(Data!I36="","",0)) ->  | J36: =IF(Data!J36<>"",1,IF(Data!J36="","",0)) ->  | K36: =IF(Data!K36<>"",1,IF(Data!K36="","",0)) ->  | L36: =IF(Data!L36<>"",1,IF(Data!L36="","",0)) ->  | M36: =IF(Data!M36<>"",1,IF(Data!M36="","",0)) ->  | S36: See the article “an approximation of the nonlife reserve risk distribution using the cornish-fisher expansion” available under https://ssrn.com/abstract=2965384
A37: 2007 | B37: 268 | C37: =IF(Data!C37<>"",1,IF(Data!C37="","",0)) ->  | D37: =IF(Data!D37<>"",1,IF(Data!D37="","",0)) -> 1 | E37: =IF(Data!E37<>"",1,IF(Data!E37="","",0)) -> 1 | F37: =IF(Data!F37<>"",1,IF(Data!F37="","",0)) -> 1 | G37: =IF(Data!G37<>"",1,IF(Data!G37="","",0)) ->  | H37: =IF(Data!H37<>"",1,IF(Data!H37="","",0)) ->  | I37: =IF(Data!I37<>"",1,IF(Data!I37="","",0)) ->  | J37: =IF(Data!J37<>"",1,IF(Data!J37="","",0)) ->  | K37: =IF(Data!K37<>"",1,IF(Data!K37="","",0)) ->  | L37: =IF(Data!L37<>"",1,IF(Data!L37="","",0)) ->  | M37: =IF(Data!M37<>"",1,IF(Data!M37="","",0)) -> 
A38: 2007 | B38: 273 | C38: =IF(Data!C38<>"",1,IF(Data!C38="","",0)) ->  | D38: =IF(Data!D38<>"",1,IF(Data!D38="","",0)) -> 1 | E38: =IF(Data!E38<>"",1,IF(Data!E38="","",0)) -> 1 | F38: =IF(Data!F38<>"",1,IF(Data!F38="","",0)) -> 1 | G38: =IF(Data!G38<>"",1,IF(Data!G38="","",0)) -> 1 | H38: =IF(Data!H38<>"",1,IF(Data!H38="","",0)) -> 1 | I38: =IF(Data!I38<>"",1,IF(Data!I38="","",0)) -> 1 | J38: =IF(Data!J38<>"",1,IF(Data!J38="","",0)) -> 1 | K38: =IF(Data!K38<>"",1,IF(Data!K38="","",0)) -> 1 | L38: =IF(Data!L38<>"",1,IF(Data!L38="","",0)) -> 1 | M38: =IF(Data!M38<>"",1,IF(Data!M38="","",0)) -> 
A39: 2007 | B39: 285 | C39: =IF(Data!C39<>"",1,IF(Data!C39="","",0)) ->  | D39: =IF(Data!D39<>"",1,IF(Data!D39="","",0)) -> 1 | E39: =IF(Data!E39<>"",1,IF(Data!E39="","",0)) -> 1 | F39: =IF(Data!F39<>"",1,IF(Data!F39="","",0)) -> 1 | G39: =IF(Data!G39<>"",1,IF(Data!G39="","",0)) -> 1 | H39: =IF(Data!H39<>"",1,IF(Data!H39="","",0)) -> 1 | I39: =IF(Data!I39<>"",1,IF(Data!I39="","",0)) -> 1 | J39: =IF(Data!J39<>"",1,IF(Data!J39="","",0)) -> 1 | K39: =IF(Data!K39<>"",1,IF(Data!K39="","",0)) -> 1 | L39: =IF(Data!L39<>"",1,IF(Data!L39="","",0)) -> 1 | M39: =IF(Data!M39<>"",1,IF(Data!M39="","",0)) -> 
A40: 2007 | B40: 347 | C40: =IF(Data!C40<>"",1,IF(Data!C40="","",0)) ->  | D40: =IF(Data!D40<>"",1,IF(Data!D40="","",0)) -> 1 | E40: =IF(Data!E40<>"",1,IF(Data!E40="","",0)) -> 1 | F40: =IF(Data!F40<>"",1,IF(Data!F40="","",0)) -> 1 | G40: =IF(Data!G40<>"",1,IF(Data!G40="","",0)) -> 1 | H40: =IF(Data!H40<>"",1,IF(Data!H40="","",0)) -> 1 | I40: =IF(Data!I40<>"",1,IF(Data!I40="","",0)) -> 1 | J40: =IF(Data!J40<>"",1,IF(Data!J40="","",0)) -> 1 | K40: =IF(Data!K40<>"",1,IF(Data!K40="","",0)) -> 1 | L40: =IF(Data!L40<>"",1,IF(Data!L40="","",0)) -> 1 | M40: =IF(Data!M40<>"",1,IF(Data!M40="","",0)) -> 
A41: 2007 | B41: 613 | C41: =IF(Data!C41<>"",1,IF(Data!C41="","",0)) ->  | D41: =IF(Data!D41<>"",1,IF(Data!D41="","",0)) -> 1 | E41: =IF(Data!E41<>"",1,IF(Data!E41="","",0)) -> 1 | F41: =IF(Data!F41<>"",1,IF(Data!F41="","",0)) -> 1 | G41: =IF(Data!G41<>"",1,IF(Data!G41="","",0)) -> 1 | H41: =IF(Data!H41<>"",1,IF(Data!H41="","",0)) -> 1 | I41: =IF(Data!I41<>"",1,IF(Data!I41="","",0)) -> 1 | J41: =IF(Data!J41<>"",1,IF(Data!J41="","",0)) -> 1 | K41: =IF(Data!K41<>"",1,IF(Data!K41="","",0)) -> 1 | L41: =IF(Data!L41<>"",1,IF(Data!L41="","",0)) -> 1 | M41: =IF(Data!M41<>"",1,IF(Data!M41="","",0)) -> 
A42: 2007 | B42: 635 | C42: =IF(Data!C42<>"",1,IF(Data!C42="","",0)) ->  | D42: =IF(Data!D42<>"",1,IF(Data!D42="","",0)) -> 1 | E42: =IF(Data!E42<>"",1,IF(Data!E42="","",0)) -> 1 | F42: =IF(Data!F42<>"",1,IF(Data!F42="","",0)) -> 1 | G42: =IF(Data!G42<>"",1,IF(Data!G42="","",0)) -> 1 | H42: =IF(Data!H42<>"",1,IF(Data!H42="","",0)) -> 1 | I42: =IF(Data!I42<>"",1,IF(Data!I42="","",0)) -> 1 | J42: =IF(Data!J42<>"",1,IF(Data!J42="","",0)) -> 1 | K42: =IF(Data!K42<>"",1,IF(Data!K42="","",0)) -> 1 | L42: =IF(Data!L42<>"",1,IF(Data!L42="","",0)) -> 1 | M42: =IF(Data!M42<>"",1,IF(Data!M42="","",0)) -> 
A43: 2007 | B43: 645 | C43: =IF(Data!C43<>"",1,IF(Data!C43="","",0)) ->  | D43: =IF(Data!D43<>"",1,IF(Data!D43="","",0)) ->  | E43: =IF(Data!E43<>"",1,IF(Data!E43="","",0)) ->  | F43: =IF(Data!F43<>"",1,IF(Data!F43="","",0)) -> 1 | G43: =IF(Data!G43<>"",1,IF(Data!G43="","",0)) -> 1 | H43: =IF(Data!H43<>"",1,IF(Data!H43="","",0)) -> 1 | I43: =IF(Data!I43<>"",1,IF(Data!I43="","",0)) -> 1 | J43: =IF(Data!J43<>"",1,IF(Data!J43="","",0)) -> 1 | K43: =IF(Data!K43<>"",1,IF(Data!K43="","",0)) -> 1 | L43: =IF(Data!L43<>"",1,IF(Data!L43="","",0)) -> 1 | M43: =IF(Data!M43<>"",1,IF(Data!M43="","",0)) -> 
A44: 2007 | B44: 667 | C44: =IF(Data!C44<>"",1,IF(Data!C44="","",0)) ->  | D44: =IF(Data!D44<>"",1,IF(Data!D44="","",0)) -> 1 | E44: =IF(Data!E44<>"",1,IF(Data!E44="","",0)) -> 1 | F44: =IF(Data!F44<>"",1,IF(Data!F44="","",0)) -> 1 | G44: =IF(Data!G44<>"",1,IF(Data!G44="","",0)) -> 1 | H44: =IF(Data!H44<>"",1,IF(Data!H44="","",0)) -> 1 | I44: =IF(Data!I44<>"",1,IF(Data!I44="","",0)) -> 1 | J44: =IF(Data!J44<>"",1,IF(Data!J44="","",0)) -> 1 | K44: =IF(Data!K44<>"",1,IF(Data!K44="","",0)) -> 1 | L44: =IF(Data!L44<>"",1,IF(Data!L44="","",0)) -> 1 | M44: =IF(Data!M44<>"",1,IF(Data!M44="","",0)) -> 
A45: 2007 | B45: 670 | C45: =IF(Data!C45<>"",1,IF(Data!C45="","",0)) ->  | D45: =IF(Data!D45<>"",1,IF(Data!D45="","",0)) -> 1 | E45: =IF(Data!E45<>"",1,IF(Data!E45="","",0)) -> 1 | F45: =IF(Data!F45<>"",1,IF(Data!F45="","",0)) -> 1 | G45: =IF(Data!G45<>"",1,IF(Data!G45="","",0)) -> 1 | H45: =IF(Data!H45<>"",1,IF(Data!H45="","",0)) -> 1 | I45: =IF(Data!I45<>"",1,IF(Data!I45="","",0)) -> 1 | J45: =IF(Data!J45<>"",1,IF(Data!J45="","",0)) -> 1 | K45: =IF(Data!K45<>"",1,IF(Data!K45="","",0)) -> 1 | L45: =IF(Data!L45<>"",1,IF(Data!L45="","",0)) -> 1 | M45: =IF(Data!M45<>"",1,IF(Data!M45="","",0)) -> 
A46: 2007 | B46: 674 | C46: =IF(Data!C46<>"",1,IF(Data!C46="","",0)) ->  | D46: =IF(Data!D46<>"",1,IF(Data!D46="","",0)) ->  | E46: =IF(Data!E46<>"",1,IF(Data!E46="","",0)) -> 1 | F46: =IF(Data!F46<>"",1,IF(Data!F46="","",0)) -> 1 | G46: =IF(Data!G46<>"",1,IF(Data!G46="","",0)) -> 1 | H46: =IF(Data!H46<>"",1,IF(Data!H46="","",0)) -> 1 | I46: =IF(Data!I46<>"",1,IF(Data!I46="","",0)) -> 1 | J46: =IF(Data!J46<>"",1,IF(Data!J46="","",0)) -> 1 | K46: =IF(Data!K46<>"",1,IF(Data!K46="","",0)) -> 1 | L46: =IF(Data!L46<>"",1,IF(Data!L46="","",0)) -> 1 | M46: =IF(Data!M46<>"",1,IF(Data!M46="","",0)) -> 
A47: 2007 | B47: 675 | C47: =IF(Data!C47<>"",1,IF(Data!C47="","",0)) ->  | D47: =IF(Data!D47<>"",1,IF(Data!D47="","",0)) ->  | E47: =IF(Data!E47<>"",1,IF(Data!E47="","",0)) -> 1 | F47: =IF(Data!F47<>"",1,IF(Data!F47="","",0)) -> 1 | G47: =IF(Data!G47<>"",1,IF(Data!G47="","",0)) -> 1 | H47: =IF(Data!H47<>"",1,IF(Data!H47="","",0)) -> 1 | I47: =IF(Data!I47<>"",1,IF(Data!I47="","",0)) -> 1 | J47: =IF(Data!J47<>"",1,IF(Data!J47="","",0)) -> 1 | K47: =IF(Data!K47<>"",1,IF(Data!K47="","",0)) -> 1 | L47: =IF(Data!L47<>"",1,IF(Data!L47="","",0)) -> 1 | M47: =IF(Data!M47<>"",1,IF(Data!M47="","",0)) -> 
A48: 2007 | B48: 676 | C48: =IF(Data!C48<>"",1,IF(Data!C48="","",0)) ->  | D48: =IF(Data!D48<>"",1,IF(Data!D48="","",0)) ->  | E48: =IF(Data!E48<>"",1,IF(Data!E48="","",0)) -> 1 | F48: =IF(Data!F48<>"",1,IF(Data!F48="","",0)) -> 1 | G48: =IF(Data!G48<>"",1,IF(Data!G48="","",0)) -> 1 | H48: =IF(Data!H48<>"",1,IF(Data!H48="","",0)) -> 1 | I48: =IF(Data!I48<>"",1,IF(Data!I48="","",0)) -> 1 | J48: =IF(Data!J48<>"",1,IF(Data!J48="","",0)) -> 1 | K48: =IF(Data!K48<>"",1,IF(Data!K48="","",0)) -> 1 | L48: =IF(Data!L48<>"",1,IF(Data!L48="","",0)) -> 1 | M48: =IF(Data!M48<>"",1,IF(Data!M48="","",0)) -> 
A49: 2007 | B49: 677 | C49: =IF(Data!C49<>"",1,IF(Data!C49="","",0)) ->  | D49: =IF(Data!D49<>"",1,IF(Data!D49="","",0)) ->  | E49: =IF(Data!E49<>"",1,IF(Data!E49="","",0)) -> 1 | F49: =IF(Data!F49<>"",1,IF(Data!F49="","",0)) -> 1 | G49: =IF(Data!G49<>"",1,IF(Data!G49="","",0)) -> 1 | H49: =IF(Data!H49<>"",1,IF(Data!H49="","",0)) -> 1 | I49: =IF(Data!I49<>"",1,IF(Data!I49="","",0)) -> 1 | J49: =IF(Data!J49<>"",1,IF(Data!J49="","",0)) -> 1 | K49: =IF(Data!K49<>"",1,IF(Data!K49="","",0)) -> 1 | L49: =IF(Data!L49<>"",1,IF(Data!L49="","",0)) -> 1 | M49: =IF(Data!M49<>"",1,IF(Data!M49="","",0)) -> 
A50: 2007 | B50: 678 | C50: =IF(Data!C50<>"",1,IF(Data!C50="","",0)) ->  | D50: =IF(Data!D50<>"",1,IF(Data!D50="","",0)) ->  | E50: =IF(Data!E50<>"",1,IF(Data!E50="","",0)) -> 1 | F50: =IF(Data!F50<>"",1,IF(Data!F50="","",0)) -> 1 | G50: =IF(Data!G50<>"",1,IF(Data!G50="","",0)) -> 1 | H50: =IF(Data!H50<>"",1,IF(Data!H50="","",0)) -> 1 | I50: =IF(Data!I50<>"",1,IF(Data!I50="","",0)) -> 1 | J50: =IF(Data!J50<>"",1,IF(Data!J50="","",0)) -> 1 | K50: =IF(Data!K50<>"",1,IF(Data!K50="","",0)) -> 1 | L50: =IF(Data!L50<>"",1,IF(Data!L50="","",0)) -> 1 | M50: =IF(Data!M50<>"",1,IF(Data!M50="","",0)) -> 
A51: 2007 | B51: 679 | C51: =IF(Data!C51<>"",1,IF(Data!C51="","",0)) ->  | D51: =IF(Data!D51<>"",1,IF(Data!D51="","",0)) ->  | E51: =IF(Data!E51<>"",1,IF(Data!E51="","",0)) -> 1 | F51: =IF(Data!F51<>"",1,IF(Data!F51="","",0)) -> 1 | G51: =IF(Data!G51<>"",1,IF(Data!G51="","",0)) -> 1 | H51: =IF(Data!H51<>"",1,IF(Data!H51="","",0)) -> 1 | I51: =IF(Data!I51<>"",1,IF(Data!I51="","",0)) -> 1 | J51: =IF(Data!J51<>"",1,IF(Data!J51="","",0)) -> 1 | K51: =IF(Data!K51<>"",1,IF(Data!K51="","",0)) -> 1 | L51: =IF(Data!L51<>"",1,IF(Data!L51="","",0)) -> 1 | M51: =IF(Data!M51<>"",1,IF(Data!M51="","",0)) -> 
A52: 2007 | B52: 681 | C52: =IF(Data!C52<>"",1,IF(Data!C52="","",0)) ->  | D52: =IF(Data!D52<>"",1,IF(Data!D52="","",0)) ->  | E52: =IF(Data!E52<>"",1,IF(Data!E52="","",0)) -> 1 | F52: =IF(Data!F52<>"",1,IF(Data!F52="","",0)) -> 1 | G52: =IF(Data!G52<>"",1,IF(Data!G52="","",0)) -> 1 | H52: =IF(Data!H52<>"",1,IF(Data!H52="","",0)) -> 1 | I52: =IF(Data!I52<>"",1,IF(Data!I52="","",0)) -> 1 | J52: =IF(Data!J52<>"",1,IF(Data!J52="","",0)) -> 1 | K52: =IF(Data!K52<>"",1,IF(Data!K52="","",0)) -> 1 | L52: =IF(Data!L52<>"",1,IF(Data!L52="","",0)) -> 1 | M52: =IF(Data!M52<>"",1,IF(Data!M52="","",0)) -> 
A53: 2007 | B53: 683 | C53: =IF(Data!C53<>"",1,IF(Data!C53="","",0)) ->  | D53: =IF(Data!D53<>"",1,IF(Data!D53="","",0)) ->  | E53: =IF(Data!E53<>"",1,IF(Data!E53="","",0)) -> 1 | F53: =IF(Data!F53<>"",1,IF(Data!F53="","",0)) -> 1 | G53: =IF(Data!G53<>"",1,IF(Data!G53="","",0)) ->  | H53: =IF(Data!H53<>"",1,IF(Data!H53="","",0)) ->  | I53: =IF(Data!I53<>"",1,IF(Data!I53="","",0)) ->  | J53: =IF(Data!J53<>"",1,IF(Data!J53="","",0)) ->  | K53: =IF(Data!K53<>"",1,IF(Data!K53="","",0)) ->  | L53: =IF(Data!L53<>"",1,IF(Data!L53="","",0)) ->  | M53: =IF(Data!M53<>"",1,IF(Data!M53="","",0)) -> 
A54: 2007 | B54: 685 | C54: =IF(Data!C54<>"",1,IF(Data!C54="","",0)) ->  | D54: =IF(Data!D54<>"",1,IF(Data!D54="","",0)) ->  | E54: =IF(Data!E54<>"",1,IF(Data!E54="","",0)) -> 1 | F54: =IF(Data!F54<>"",1,IF(Data!F54="","",0)) -> 1 | G54: =IF(Data!G54<>"",1,IF(Data!G54="","",0)) -> 1 | H54: =IF(Data!H54<>"",1,IF(Data!H54="","",0)) -> 1 | I54: =IF(Data!I54<>"",1,IF(Data!I54="","",0)) -> 1 | J54: =IF(Data!J54<>"",1,IF(Data!J54="","",0)) -> 1 | K54: =IF(Data!K54<>"",1,IF(Data!K54="","",0)) -> 1 | L54: =IF(Data!L54<>"",1,IF(Data!L54="","",0)) -> 1 | M54: =IF(Data!M54<>"",1,IF(Data!M54="","",0)) -> 
A55: 2007 | B55: 704 | C55: =IF(Data!C55<>"",1,IF(Data!C55="","",0)) ->  | D55: =IF(Data!D55<>"",1,IF(Data!D55="","",0)) ->  | E55: =IF(Data!E55<>"",1,IF(Data!E55="","",0)) -> 1 | F55: =IF(Data!F55<>"",1,IF(Data!F55="","",0)) -> 1 | G55: =IF(Data!G55<>"",1,IF(Data!G55="","",0)) -> 1 | H55: =IF(Data!H55<>"",1,IF(Data!H55="","",0)) -> 1 | I55: =IF(Data!I55<>"",1,IF(Data!I55="","",0)) -> 1 | J55: =IF(Data!J55<>"",1,IF(Data!J55="","",0)) -> 1 | K55: =IF(Data!K55<>"",1,IF(Data!K55="","",0)) -> 1 | L55: =IF(Data!L55<>"",1,IF(Data!L55="","",0)) -> 1 | M55: =IF(Data!M55<>"",1,IF(Data!M55="","",0)) -> 
A56: 2007 | B56: 705 | C56: =IF(Data!C56<>"",1,IF(Data!C56="","",0)) ->  | D56: =IF(Data!D56<>"",1,IF(Data!D56="","",0)) ->  | E56: =IF(Data!E56<>"",1,IF(Data!E56="","",0)) -> 1 | F56: =IF(Data!F56<>"",1,IF(Data!F56="","",0)) -> 1 | G56: =IF(Data!G56<>"",1,IF(Data!G56="","",0)) -> 1 | H56: =IF(Data!H56<>"",1,IF(Data!H56="","",0)) -> 1 | I56: =IF(Data!I56<>"",1,IF(Data!I56="","",0)) -> 1 | J56: =IF(Data!J56<>"",1,IF(Data!J56="","",0)) -> 1 | K56: =IF(Data!K56<>"",1,IF(Data!K56="","",0)) -> 1 | L56: =IF(Data!L56<>"",1,IF(Data!L56="","",0)) -> 1 | M56: =IF(Data!M56<>"",1,IF(Data!M56="","",0)) -> 
A57: 2007 | B57: 706 | C57: =IF(Data!C57<>"",1,IF(Data!C57="","",0)) ->  | D57: =IF(Data!D57<>"",1,IF(Data!D57="","",0)) ->  | E57: =IF(Data!E57<>"",1,IF(Data!E57="","",0)) -> 1 | F57: =IF(Data!F57<>"",1,IF(Data!F57="","",0)) -> 1 | G57: =IF(Data!G57<>"",1,IF(Data!G57="","",0)) -> 1 | H57: =IF(Data!H57<>"",1,IF(Data!H57="","",0)) -> 1 | I57: =IF(Data!I57<>"",1,IF(Data!I57="","",0)) -> 1 | J57: =IF(Data!J57<>"",1,IF(Data!J57="","",0)) -> 1 | K57: =IF(Data!K57<>"",1,IF(Data!K57="","",0)) -> 1 | L57: =IF(Data!L57<>"",1,IF(Data!L57="","",0)) -> 1 | M57: =IF(Data!M57<>"",1,IF(Data!M57="","",0)) -> 
A58: 2007 | B58: 713 | C58: =IF(Data!C58<>"",1,IF(Data!C58="","",0)) ->  | D58: =IF(Data!D58<>"",1,IF(Data!D58="","",0)) ->  | E58: =IF(Data!E58<>"",1,IF(Data!E58="","",0)) ->  | F58: =IF(Data!F58<>"",1,IF(Data!F58="","",0)) -> 1 | G58: =IF(Data!G58<>"",1,IF(Data!G58="","",0)) -> 1 | H58: =IF(Data!H58<>"",1,IF(Data!H58="","",0)) -> 1 | I58: =IF(Data!I58<>"",1,IF(Data!I58="","",0)) -> 1 | J58: =IF(Data!J58<>"",1,IF(Data!J58="","",0)) -> 1 | K58: =IF(Data!K58<>"",1,IF(Data!K58="","",0)) -> 1 | L58: =IF(Data!L58<>"",1,IF(Data!L58="","",0)) -> 1 | M58: =IF(Data!M58<>"",1,IF(Data!M58="","",0)) -> 
A59: 2007 | B59: 716 | C59: =IF(Data!C59<>"",1,IF(Data!C59="","",0)) ->  | D59: =IF(Data!D59<>"",1,IF(Data!D59="","",0)) ->  | E59: =IF(Data!E59<>"",1,IF(Data!E59="","",0)) ->  | F59: =IF(Data!F59<>"",1,IF(Data!F59="","",0)) -> 1 | G59: =IF(Data!G59<>"",1,IF(Data!G59="","",0)) -> 1 | H59: =IF(Data!H59<>"",1,IF(Data!H59="","",0)) -> 1 | I59: =IF(Data!I59<>"",1,IF(Data!I59="","",0)) -> 1 | J59: =IF(Data!J59<>"",1,IF(Data!J59="","",0)) -> 1 | K59: =IF(Data!K59<>"",1,IF(Data!K59="","",0)) -> 1 | L59: =IF(Data!L59<>"",1,IF(Data!L59="","",0)) -> 1 | M59: =IF(Data!M59<>"",1,IF(Data!M59="","",0)) -> 
A60: 2007 | B60: 717 | C60: =IF(Data!C60<>"",1,IF(Data!C60="","",0)) ->  | D60: =IF(Data!D60<>"",1,IF(Data!D60="","",0)) ->  | E60: =IF(Data!E60<>"",1,IF(Data!E60="","",0)) ->  | F60: =IF(Data!F60<>"",1,IF(Data!F60="","",0)) -> 1 | G60: =IF(Data!G60<>"",1,IF(Data!G60="","",0)) -> 1 | H60: =IF(Data!H60<>"",1,IF(Data!H60="","",0)) -> 1 | I60: =IF(Data!I60<>"",1,IF(Data!I60="","",0)) -> 1 | J60: =IF(Data!J60<>"",1,IF(Data!J60="","",0)) -> 1 | K60: =IF(Data!K60<>"",1,IF(Data!K60="","",0)) -> 1 | L60: =IF(Data!L60<>"",1,IF(Data!L60="","",0)) -> 1 | M60: =IF(Data!M60<>"",1,IF(Data!M60="","",0)) -> 
A61: 2007 | B61: 724 | C61: =IF(Data!C61<>"",1,IF(Data!C61="","",0)) ->  | D61: =IF(Data!D61<>"",1,IF(Data!D61="","",0)) ->  | E61: =IF(Data!E61<>"",1,IF(Data!E61="","",0)) ->  | F61: =IF(Data!F61<>"",1,IF(Data!F61="","",0)) ->  | G61: =IF(Data!G61<>"",1,IF(Data!G61="","",0)) -> 1 | H61: =IF(Data!H61<>"",1,IF(Data!H61="","",0)) -> 1 | I61: =IF(Data!I61<>"",1,IF(Data!I61="","",0)) -> 1 | J61: =IF(Data!J61<>"",1,IF(Data!J61="","",0)) -> 1 | K61: =IF(Data!K61<>"",1,IF(Data!K61="","",0)) -> 1 | L61: =IF(Data!L61<>"",1,IF(Data!L61="","",0)) -> 1 | M61: =IF(Data!M61<>"",1,IF(Data!M61="","",0)) -> 
A62: 2007 | B62: 732 | C62: =IF(Data!C62<>"",1,IF(Data!C62="","",0)) ->  | D62: =IF(Data!D62<>"",1,IF(Data!D62="","",0)) ->  | E62: =IF(Data!E62<>"",1,IF(Data!E62="","",0)) ->  | F62: =IF(Data!F62<>"",1,IF(Data!F62="","",0)) ->  | G62: =IF(Data!G62<>"",1,IF(Data!G62="","",0)) -> 1 | H62: =IF(Data!H62<>"",1,IF(Data!H62="","",0)) -> 1 | I62: =IF(Data!I62<>"",1,IF(Data!I62="","",0)) -> 1 | J62: =IF(Data!J62<>"",1,IF(Data!J62="","",0)) -> 1 | K62: =IF(Data!K62<>"",1,IF(Data!K62="","",0)) -> 1 | L62: =IF(Data!L62<>"",1,IF(Data!L62="","",0)) -> 1 | M62: =IF(Data!M62<>"",1,IF(Data!M62="","",0)) -> 
A63: 2007 | B63: 743 | C63: =IF(Data!C63<>"",1,IF(Data!C63="","",0)) ->  | D63: =IF(Data!D63<>"",1,IF(Data!D63="","",0)) ->  | E63: =IF(Data!E63<>"",1,IF(Data!E63="","",0)) ->  | F63: =IF(Data!F63<>"",1,IF(Data!F63="","",0)) ->  | G63: =IF(Data!G63<>"",1,IF(Data!G63="","",0)) ->  | H63: =IF(Data!H63<>"",1,IF(Data!H63="","",0)) ->  | I63: =IF(Data!I63<>"",1,IF(Data!I63="","",0)) -> 1 | J63: =IF(Data!J63<>"",1,IF(Data!J63="","",0)) -> 1 | K63: =IF(Data!K63<>"",1,IF(Data!K63="","",0)) -> 1 | L63: =IF(Data!L63<>"",1,IF(Data!L63="","",0)) -> 1 | M63: =IF(Data!M63<>"",1,IF(Data!M63="","",0)) -> 
A64: 2007 | B64: 761 | C64: =IF(Data!C64<>"",1,IF(Data!C64="","",0)) ->  | D64: =IF(Data!D64<>"",1,IF(Data!D64="","",0)) ->  | E64: =IF(Data!E64<>"",1,IF(Data!E64="","",0)) ->  | F64: =IF(Data!F64<>"",1,IF(Data!F64="","",0)) ->  | G64: =IF(Data!G64<>"",1,IF(Data!G64="","",0)) ->  | H64: =IF(Data!H64<>"",1,IF(Data!H64="","",0)) ->  | I64: =IF(Data!I64<>"",1,IF(Data!I64="","",0)) ->  | J64: =IF(Data!J64<>"",1,IF(Data!J64="","",0)) ->  | K64: =IF(Data!K64<>"",1,IF(Data!K64="","",0)) ->  | L64: =IF(Data!L64<>"",1,IF(Data!L64="","",0)) -> 1 | M64: =IF(Data!M64<>"",1,IF(Data!M64="","",0)) -> 
A65: 2007 | B65: 823 | C65: =IF(Data!C65<>"",1,IF(Data!C65="","",0)) ->  | D65: =IF(Data!D65<>"",1,IF(Data!D65="","",0)) ->  | E65: =IF(Data!E65<>"",1,IF(Data!E65="","",0)) -> 1 | F65: =IF(Data!F65<>"",1,IF(Data!F65="","",0)) -> 1 | G65: =IF(Data!G65<>"",1,IF(Data!G65="","",0)) -> 1 | H65: =IF(Data!H65<>"",1,IF(Data!H65="","",0)) -> 1 | I65: =IF(Data!I65<>"",1,IF(Data!I65="","",0)) -> 1 | J65: =IF(Data!J65<>"",1,IF(Data!J65="","",0)) -> 1 | K65: =IF(Data!K65<>"",1,IF(Data!K65="","",0)) -> 1 | L65: =IF(Data!L65<>"",1,IF(Data!L65="","",0)) -> 1 | M65: =IF(Data!M65<>"",1,IF(Data!M65="","",0)) -> 
A66: 2007 | B66: 877 | C66: =IF(Data!C66<>"",1,IF(Data!C66="","",0)) ->  | D66: =IF(Data!D66<>"",1,IF(Data!D66="","",0)) -> 1 | E66: =IF(Data!E66<>"",1,IF(Data!E66="","",0)) -> 1 | F66: =IF(Data!F66<>"",1,IF(Data!F66="","",0)) -> 1 | G66: =IF(Data!G66<>"",1,IF(Data!G66="","",0)) -> 1 | H66: =IF(Data!H66<>"",1,IF(Data!H66="","",0)) -> 1 | I66: =IF(Data!I66<>"",1,IF(Data!I66="","",0)) -> 1 | J66: =IF(Data!J66<>"",1,IF(Data!J66="","",0)) -> 1 | K66: =IF(Data!K66<>"",1,IF(Data!K66="","",0)) -> 1 | L66: =IF(Data!L66<>"",1,IF(Data!L66="","",0)) -> 1 | M66: =IF(Data!M66<>"",1,IF(Data!M66="","",0)) -> 
A67: 2007 | B67: 895 | C67: =IF(Data!C67<>"",1,IF(Data!C67="","",0)) ->  | D67: =IF(Data!D67<>"",1,IF(Data!D67="","",0)) ->  | E67: =IF(Data!E67<>"",1,IF(Data!E67="","",0)) -> 1 | F67: =IF(Data!F67<>"",1,IF(Data!F67="","",0)) -> 1 | G67: =IF(Data!G67<>"",1,IF(Data!G67="","",0)) -> 1 | H67: =IF(Data!H67<>"",1,IF(Data!H67="","",0)) -> 1 | I67: =IF(Data!I67<>"",1,IF(Data!I67="","",0)) -> 1 | J67: =IF(Data!J67<>"",1,IF(Data!J67="","",0)) -> 1 | K67: =IF(Data!K67<>"",1,IF(Data!K67="","",0)) -> 1 | L67: =IF(Data!L67<>"",1,IF(Data!L67="","",0)) -> 1 | M67: =IF(Data!M67<>"",1,IF(Data!M67="","",0)) -> 
A68: 2007 | B68: 903 | C68: =IF(Data!C68<>"",1,IF(Data!C68="","",0)) ->  | D68: =IF(Data!D68<>"",1,IF(Data!D68="","",0)) ->  | E68: =IF(Data!E68<>"",1,IF(Data!E68="","",0)) ->  | F68: =IF(Data!F68<>"",1,IF(Data!F68="","",0)) -> 1 | G68: =IF(Data!G68<>"",1,IF(Data!G68="","",0)) -> 1 | H68: =IF(Data!H68<>"",1,IF(Data!H68="","",0)) -> 1 | I68: =IF(Data!I68<>"",1,IF(Data!I68="","",0)) -> 1 | J68: =IF(Data!J68<>"",1,IF(Data!J68="","",0)) -> 1 | K68: =IF(Data!K68<>"",1,IF(Data!K68="","",0)) -> 1 | L68: =IF(Data!L68<>"",1,IF(Data!L68="","",0)) -> 1 | M68: =IF(Data!M68<>"",1,IF(Data!M68="","",0)) -> 
A69: 2007 | B69: 1023 | C69: =IF(Data!C69<>"",1,IF(Data!C69="","",0)) ->  | D69: =IF(Data!D69<>"",1,IF(Data!D69="","",0)) -> 1 | E69: =IF(Data!E69<>"",1,IF(Data!E69="","",0)) -> 1 | F69: =IF(Data!F69<>"",1,IF(Data!F69="","",0)) -> 1 | G69: =IF(Data!G69<>"",1,IF(Data!G69="","",0)) -> 1 | H69: =IF(Data!H69<>"",1,IF(Data!H69="","",0)) -> 1 | I69: =IF(Data!I69<>"",1,IF(Data!I69="","",0)) -> 1 | J69: =IF(Data!J69<>"",1,IF(Data!J69="","",0)) -> 1 | K69: =IF(Data!K69<>"",1,IF(Data!K69="","",0)) -> 1 | L69: =IF(Data!L69<>"",1,IF(Data!L69="","",0)) -> 1 | M69: =IF(Data!M69<>"",1,IF(Data!M69="","",0)) -> 
A70: 2007 | B70: 1024 | C70: =IF(Data!C70<>"",1,IF(Data!C70="","",0)) ->  | D70: =IF(Data!D70<>"",1,IF(Data!D70="","",0)) ->  | E70: =IF(Data!E70<>"",1,IF(Data!E70="","",0)) ->  | F70: =IF(Data!F70<>"",1,IF(Data!F70="","",0)) ->  | G70: =IF(Data!G70<>"",1,IF(Data!G70="","",0)) ->  | H70: =IF(Data!H70<>"",1,IF(Data!H70="","",0)) ->  | I70: =IF(Data!I70<>"",1,IF(Data!I70="","",0)) -> 1 | J70: =IF(Data!J70<>"",1,IF(Data!J70="","",0)) -> 1 | K70: =IF(Data!K70<>"",1,IF(Data!K70="","",0)) -> 1 | L70: =IF(Data!L70<>"",1,IF(Data!L70="","",0)) -> 1 | M70: =IF(Data!M70<>"",1,IF(Data!M70="","",0)) -> 
A71: 2007 | B71: 1035 | C71: =IF(Data!C71<>"",1,IF(Data!C71="","",0)) ->  | D71: =IF(Data!D71<>"",1,IF(Data!D71="","",0)) ->  | E71: =IF(Data!E71<>"",1,IF(Data!E71="","",0)) ->  | F71: =IF(Data!F71<>"",1,IF(Data!F71="","",0)) -> 1 | G71: =IF(Data!G71<>"",1,IF(Data!G71="","",0)) -> 1 | H71: =IF(Data!H71<>"",1,IF(Data!H71="","",0)) -> 1 | I71: =IF(Data!I71<>"",1,IF(Data!I71="","",0)) -> 1 | J71: =IF(Data!J71<>"",1,IF(Data!J71="","",0)) -> 1 | K71: =IF(Data!K71<>"",1,IF(Data!K71="","",0)) -> 1 | L71: =IF(Data!L71<>"",1,IF(Data!L71="","",0)) -> 1 | M71: =IF(Data!M71<>"",1,IF(Data!M71="","",0)) -> 
A72: 2007 | B72: 1040 | C72: =IF(Data!C72<>"",1,IF(Data!C72="","",0)) ->  | D72: =IF(Data!D72<>"",1,IF(Data!D72="","",0)) ->  | E72: =IF(Data!E72<>"",1,IF(Data!E72="","",0)) ->  | F72: =IF(Data!F72<>"",1,IF(Data!F72="","",0)) ->  | G72: =IF(Data!G72<>"",1,IF(Data!G72="","",0)) -> 1 | H72: =IF(Data!H72<>"",1,IF(Data!H72="","",0)) -> 1 | I72: =IF(Data!I72<>"",1,IF(Data!I72="","",0)) -> 1 | J72: =IF(Data!J72<>"",1,IF(Data!J72="","",0)) -> 1 | K72: =IF(Data!K72<>"",1,IF(Data!K72="","",0)) -> 1 | L72: =IF(Data!L72<>"",1,IF(Data!L72="","",0)) -> 1 | M72: =IF(Data!M72<>"",1,IF(Data!M72="","",0)) -> 
A73: 2007 | B73: 1045 | C73: =IF(Data!C73<>"",1,IF(Data!C73="","",0)) ->  | D73: =IF(Data!D73<>"",1,IF(Data!D73="","",0)) ->  | E73: =IF(Data!E73<>"",1,IF(Data!E73="","",0)) ->  | F73: =IF(Data!F73<>"",1,IF(Data!F73="","",0)) ->  | G73: =IF(Data!G73<>"",1,IF(Data!G73="","",0)) -> 1 | H73: =IF(Data!H73<>"",1,IF(Data!H73="","",0)) -> 1 | I73: =IF(Data!I73<>"",1,IF(Data!I73="","",0)) -> 1 | J73: =IF(Data!J73<>"",1,IF(Data!J73="","",0)) -> 1 | K73: =IF(Data!K73<>"",1,IF(Data!K73="","",0)) -> 1 | L73: =IF(Data!L73<>"",1,IF(Data!L73="","",0)) -> 1 | M73: =IF(Data!M73<>"",1,IF(Data!M73="","",0)) -> 
A74: 2007 | B74: 1047 | C74: =IF(Data!C74<>"",1,IF(Data!C74="","",0)) ->  | D74: =IF(Data!D74<>"",1,IF(Data!D74="","",0)) ->  | E74: =IF(Data!E74<>"",1,IF(Data!E74="","",0)) -> 1 | F74: =IF(Data!F74<>"",1,IF(Data!F74="","",0)) -> 1 | G74: =IF(Data!G74<>"",1,IF(Data!G74="","",0)) -> 1 | H74: =IF(Data!H74<>"",1,IF(Data!H74="","",0)) -> 1 | I74: =IF(Data!I74<>"",1,IF(Data!I74="","",0)) -> 1 | J74: =IF(Data!J74<>"",1,IF(Data!J74="","",0)) -> 1 | K74: =IF(Data!K74<>"",1,IF(Data!K74="","",0)) -> 1 | L74: =IF(Data!L74<>"",1,IF(Data!L74="","",0)) -> 1 | M74: =IF(Data!M74<>"",1,IF(Data!M74="","",0)) -> 
A75: 2007 | B75: 1076 | C75: =IF(Data!C75<>"",1,IF(Data!C75="","",0)) ->  | D75: =IF(Data!D75<>"",1,IF(Data!D75="","",0)) ->  | E75: =IF(Data!E75<>"",1,IF(Data!E75="","",0)) ->  | F75: =IF(Data!F75<>"",1,IF(Data!F75="","",0)) ->  | G75: =IF(Data!G75<>"",1,IF(Data!G75="","",0)) -> 1 | H75: =IF(Data!H75<>"",1,IF(Data!H75="","",0)) -> 1 | I75: =IF(Data!I75<>"",1,IF(Data!I75="","",0)) -> 1 | J75: =IF(Data!J75<>"",1,IF(Data!J75="","",0)) -> 1 | K75: =IF(Data!K75<>"",1,IF(Data!K75="","",0)) -> 1 | L75: =IF(Data!L75<>"",1,IF(Data!L75="","",0)) -> 1 | M75: =IF(Data!M75<>"",1,IF(Data!M75="","",0)) -> 
A76: 2007 | B76: 1077 | C76: =IF(Data!C76<>"",1,IF(Data!C76="","",0)) ->  | D76: =IF(Data!D76<>"",1,IF(Data!D76="","",0)) ->  | E76: =IF(Data!E76<>"",1,IF(Data!E76="","",0)) ->  | F76: =IF(Data!F76<>"",1,IF(Data!F76="","",0)) ->  | G76: =IF(Data!G76<>"",1,IF(Data!G76="","",0)) ->  | H76: =IF(Data!H76<>"",1,IF(Data!H76="","",0)) ->  | I76: =IF(Data!I76<>"",1,IF(Data!I76="","",0)) -> 1 | J76: =IF(Data!J76<>"",1,IF(Data!J76="","",0)) -> 1 | K76: =IF(Data!K76<>"",1,IF(Data!K76="","",0)) -> 1 | L76: =IF(Data!L76<>"",1,IF(Data!L76="","",0)) -> 1 | M76: =IF(Data!M76<>"",1,IF(Data!M76="","",0)) -> 
A77: 2007 | B77: 1093 | C77: =IF(Data!C77<>"",1,IF(Data!C77="","",0)) ->  | D77: =IF(Data!D77<>"",1,IF(Data!D77="","",0)) ->  | E77: =IF(Data!E77<>"",1,IF(Data!E77="","",0)) ->  | F77: =IF(Data!F77<>"",1,IF(Data!F77="","",0)) ->  | G77: =IF(Data!G77<>"",1,IF(Data!G77="","",0)) ->  | H77: =IF(Data!H77<>"",1,IF(Data!H77="","",0)) ->  | I77: =IF(Data!I77<>"",1,IF(Data!I77="","",0)) ->  | J77: =IF(Data!J77<>"",1,IF(Data!J77="","",0)) ->  | K77: =IF(Data!K77<>"",1,IF(Data!K77="","",0)) -> 1 | L77: =IF(Data!L77<>"",1,IF(Data!L77="","",0)) -> 1 | M77: =IF(Data!M77<>"",1,IF(Data!M77="","",0)) -> 
A78: 2007 | B78: 1105 | C78: =IF(Data!C78<>"",1,IF(Data!C78="","",0)) ->  | D78: =IF(Data!D78<>"",1,IF(Data!D78="","",0)) ->  | E78: =IF(Data!E78<>"",1,IF(Data!E78="","",0)) ->  | F78: =IF(Data!F78<>"",1,IF(Data!F78="","",0)) ->  | G78: =IF(Data!G78<>"",1,IF(Data!G78="","",0)) ->  | H78: =IF(Data!H78<>"",1,IF(Data!H78="","",0)) ->  | I78: =IF(Data!I78<>"",1,IF(Data!I78="","",0)) -> 1 | J78: =IF(Data!J78<>"",1,IF(Data!J78="","",0)) -> 1 | K78: =IF(Data!K78<>"",1,IF(Data!K78="","",0)) -> 1 | L78: =IF(Data!L78<>"",1,IF(Data!L78="","",0)) -> 1 | M78: =IF(Data!M78<>"",1,IF(Data!M78="","",0)) -> 
A79: 2007 | B79: 1445 | C79: =IF(Data!C79<>"",1,IF(Data!C79="","",0)) -> 1 | D79: =IF(Data!D79<>"",1,IF(Data!D79="","",0)) -> 1 | E79: =IF(Data!E79<>"",1,IF(Data!E79="","",0)) -> 1 | F79: =IF(Data!F79<>"",1,IF(Data!F79="","",0)) -> 1 | G79: =IF(Data!G79<>"",1,IF(Data!G79="","",0)) -> 1 | H79: =IF(Data!H79<>"",1,IF(Data!H79="","",0)) -> 1 | I79: =IF(Data!I79<>"",1,IF(Data!I79="","",0)) -> 1 | J79: =IF(Data!J79<>"",1,IF(Data!J79="","",0)) -> 1 | K79: =IF(Data!K79<>"",1,IF(Data!K79="","",0)) -> 1 | L79: =IF(Data!L79<>"",1,IF(Data!L79="","",0)) -> 1 | M79: =IF(Data!M79<>"",1,IF(Data!M79="","",0)) -> 
A80: 2007 | B80: 1452 | C80: =IF(Data!C80<>"",1,IF(Data!C80="","",0)) ->  | D80: =IF(Data!D80<>"",1,IF(Data!D80="","",0)) -> 1 | E80: =IF(Data!E80<>"",1,IF(Data!E80="","",0)) -> 1 | F80: =IF(Data!F80<>"",1,IF(Data!F80="","",0)) -> 1 | G80: =IF(Data!G80<>"",1,IF(Data!G80="","",0)) -> 1 | H80: =IF(Data!H80<>"",1,IF(Data!H80="","",0)) -> 1 | I80: =IF(Data!I80<>"",1,IF(Data!I80="","",0)) -> 1 | J80: =IF(Data!J80<>"",1,IF(Data!J80="","",0)) -> 1 | K80: =IF(Data!K80<>"",1,IF(Data!K80="","",0)) -> 1 | L80: =IF(Data!L80<>"",1,IF(Data!L80="","",0)) -> 1 | M80: =IF(Data!M80<>"",1,IF(Data!M80="","",0)) -> 
A81: 2007 | B81: 1455 | C81: =IF(Data!C81<>"",1,IF(Data!C81="","",0)) ->  | D81: =IF(Data!D81<>"",1,IF(Data!D81="","",0)) -> 1 | E81: =IF(Data!E81<>"",1,IF(Data!E81="","",0)) -> 1 | F81: =IF(Data!F81<>"",1,IF(Data!F81="","",0)) -> 1 | G81: =IF(Data!G81<>"",1,IF(Data!G81="","",0)) -> 1 | H81: =IF(Data!H81<>"",1,IF(Data!H81="","",0)) -> 1 | I81: =IF(Data!I81<>"",1,IF(Data!I81="","",0)) -> 1 | J81: =IF(Data!J81<>"",1,IF(Data!J81="","",0)) -> 1 | K81: =IF(Data!K81<>"",1,IF(Data!K81="","",0)) -> 1 | L81: =IF(Data!L81<>"",1,IF(Data!L81="","",0)) -> 1 | M81: =IF(Data!M81<>"",1,IF(Data!M81="","",0)) -> 
A82: 2007 | B82: 1459 | C82: =IF(Data!C82<>"",1,IF(Data!C82="","",0)) ->  | D82: =IF(Data!D82<>"",1,IF(Data!D82="","",0)) -> 1 | E82: =IF(Data!E82<>"",1,IF(Data!E82="","",0)) -> 1 | F82: =IF(Data!F82<>"",1,IF(Data!F82="","",0)) -> 1 | G82: =IF(Data!G82<>"",1,IF(Data!G82="","",0)) -> 1 | H82: =IF(Data!H82<>"",1,IF(Data!H82="","",0)) -> 1 | I82: =IF(Data!I82<>"",1,IF(Data!I82="","",0)) -> 1 | J82: =IF(Data!J82<>"",1,IF(Data!J82="","",0)) -> 1 | K82: =IF(Data!K82<>"",1,IF(Data!K82="","",0)) -> 1 | L82: =IF(Data!L82<>"",1,IF(Data!L82="","",0)) -> 1 | M82: =IF(Data!M82<>"",1,IF(Data!M82="","",0)) -> 
A83: 2007 | B83: 1475 | C83: =IF(Data!C83<>"",1,IF(Data!C83="","",0)) ->  | D83: =IF(Data!D83<>"",1,IF(Data!D83="","",0)) -> 1 | E83: =IF(Data!E83<>"",1,IF(Data!E83="","",0)) -> 1 | F83: =IF(Data!F83<>"",1,IF(Data!F83="","",0)) -> 1 | G83: =IF(Data!G83<>"",1,IF(Data!G83="","",0)) -> 1 | H83: =IF(Data!H83<>"",1,IF(Data!H83="","",0)) -> 1 | I83: =IF(Data!I83<>"",1,IF(Data!I83="","",0)) -> 1 | J83: =IF(Data!J83<>"",1,IF(Data!J83="","",0)) -> 1 | K83: =IF(Data!K83<>"",1,IF(Data!K83="","",0)) -> 1 | L83: =IF(Data!L83<>"",1,IF(Data!L83="","",0)) -> 1 | M83: =IF(Data!M83<>"",1,IF(Data!M83="","",0)) -> 
A84: 2007 | B84: 1512 | C84: =IF(Data!C84<>"",1,IF(Data!C84="","",0)) ->  | D84: =IF(Data!D84<>"",1,IF(Data!D84="","",0)) ->  | E84: =IF(Data!E84<>"",1,IF(Data!E84="","",0)) ->  | F84: =IF(Data!F84<>"",1,IF(Data!F84="","",0)) ->  | G84: =IF(Data!G84<>"",1,IF(Data!G84="","",0)) ->  | H84: =IF(Data!H84<>"",1,IF(Data!H84="","",0)) ->  | I84: =IF(Data!I84<>"",1,IF(Data!I84="","",0)) ->  | J84: =IF(Data!J84<>"",1,IF(Data!J84="","",0)) -> 1 | K84: =IF(Data!K84<>"",1,IF(Data!K84="","",0)) -> 1 | L84: =IF(Data!L84<>"",1,IF(Data!L84="","",0)) -> 1 | M84: =IF(Data!M84<>"",1,IF(Data!M84="","",0)) -> 
A85: 2008 | B85: 817 | C85: =IF(Data!C85<>"",1,IF(Data!C85="","",0)) ->  | D85: =IF(Data!D85<>"",1,IF(Data!D85="","",0)) -> 1 | E85: =IF(Data!E85<>"",1,IF(Data!E85="","",0)) -> 1 | F85: =IF(Data!F85<>"",1,IF(Data!F85="","",0)) -> 1 | G85: =IF(Data!G85<>"",1,IF(Data!G85="","",0)) -> 1 | H85: =IF(Data!H85<>"",1,IF(Data!H85="","",0)) -> 1 | I85: =IF(Data!I85<>"",1,IF(Data!I85="","",0)) -> 1 | J85: =IF(Data!J85<>"",1,IF(Data!J85="","",0)) -> 1 | K85: =IF(Data!K85<>"",1,IF(Data!K85="","",0)) -> 1 | L85: =IF(Data!L85<>"",1,IF(Data!L85="","",0)) ->  | M85: =IF(Data!M85<>"",1,IF(Data!M85="","",0)) -> 
A86: 2008 | B86: 821 | C86: =IF(Data!C86<>"",1,IF(Data!C86="","",0)) -> 1 | D86: =IF(Data!D86<>"",1,IF(Data!D86="","",0)) -> 1 | E86: =IF(Data!E86<>"",1,IF(Data!E86="","",0)) -> 1 | F86: =IF(Data!F86<>"",1,IF(Data!F86="","",0)) -> 1 | G86: =IF(Data!G86<>"",1,IF(Data!G86="","",0)) -> 1 | H86: =IF(Data!H86<>"",1,IF(Data!H86="","",0)) -> 1 | I86: =IF(Data!I86<>"",1,IF(Data!I86="","",0)) -> 1 | J86: =IF(Data!J86<>"",1,IF(Data!J86="","",0)) -> 1 | K86: =IF(Data!K86<>"",1,IF(Data!K86="","",0)) -> 1 | L86: =IF(Data!L86<>"",1,IF(Data!L86="","",0)) ->  | M86: =IF(Data!M86<>"",1,IF(Data!M86="","",0)) -> 
A87: 2008 | B87: 822 | C87: =IF(Data!C87<>"",1,IF(Data!C87="","",0)) ->  | D87: =IF(Data!D87<>"",1,IF(Data!D87="","",0)) ->  | E87: =IF(Data!E87<>"",1,IF(Data!E87="","",0)) -> 1 | F87: =IF(Data!F87<>"",1,IF(Data!F87="","",0)) -> 1 | G87: =IF(Data!G87<>"",1,IF(Data!G87="","",0)) -> 1 | H87: =IF(Data!H87<>"",1,IF(Data!H87="","",0)) -> 1 | I87: =IF(Data!I87<>"",1,IF(Data!I87="","",0)) -> 1 | J87: =IF(Data!J87<>"",1,IF(Data!J87="","",0)) -> 1 | K87: =IF(Data!K87<>"",1,IF(Data!K87="","",0)) -> 1 | L87: =IF(Data!L87<>"",1,IF(Data!L87="","",0)) ->  | M87: =IF(Data!M87<>"",1,IF(Data!M87="","",0)) -> 
A88: 2008 | B88: 888 | C88: =IF(Data!C88<>"",1,IF(Data!C88="","",0)) ->  | D88: =IF(Data!D88<>"",1,IF(Data!D88="","",0)) -> 1 | E88: =IF(Data!E88<>"",1,IF(Data!E88="","",0)) -> 1 | F88: =IF(Data!F88<>"",1,IF(Data!F88="","",0)) -> 1 | G88: =IF(Data!G88<>"",1,IF(Data!G88="","",0)) -> 1 | H88: =IF(Data!H88<>"",1,IF(Data!H88="","",0)) -> 1 | I88: =IF(Data!I88<>"",1,IF(Data!I88="","",0)) -> 1 | J88: =IF(Data!J88<>"",1,IF(Data!J88="","",0)) -> 1 | K88: =IF(Data!K88<>"",1,IF(Data!K88="","",0)) -> 1 | L88: =IF(Data!L88<>"",1,IF(Data!L88="","",0)) ->  | M88: =IF(Data!M88<>"",1,IF(Data!M88="","",0)) -> 
A89: 2008 | B89: 892 | C89: =IF(Data!C89<>"",1,IF(Data!C89="","",0)) ->  | D89: =IF(Data!D89<>"",1,IF(Data!D89="","",0)) -> 1 | E89: =IF(Data!E89<>"",1,IF(Data!E89="","",0)) -> 1 | F89: =IF(Data!F89<>"",1,IF(Data!F89="","",0)) -> 1 | G89: =IF(Data!G89<>"",1,IF(Data!G89="","",0)) -> 1 | H89: =IF(Data!H89<>"",1,IF(Data!H89="","",0)) -> 1 | I89: =IF(Data!I89<>"",1,IF(Data!I89="","",0)) -> 1 | J89: =IF(Data!J89<>"",1,IF(Data!J89="","",0)) -> 1 | K89: =IF(Data!K89<>"",1,IF(Data!K89="","",0)) -> 1 | L89: =IF(Data!L89<>"",1,IF(Data!L89="","",0)) ->  | M89: =IF(Data!M89<>"",1,IF(Data!M89="","",0)) -> 
A90: 2008 | B90: 901 | C90: =IF(Data!C90<>"",1,IF(Data!C90="","",0)) ->  | D90: =IF(Data!D90<>"",1,IF(Data!D90="","",0)) -> 1 | E90: =IF(Data!E90<>"",1,IF(Data!E90="","",0)) -> 1 | F90: =IF(Data!F90<>"",1,IF(Data!F90="","",0)) -> 1 | G90: =IF(Data!G90<>"",1,IF(Data!G90="","",0)) -> 1 | H90: =IF(Data!H90<>"",1,IF(Data!H90="","",0)) -> 1 | I90: =IF(Data!I90<>"",1,IF(Data!I90="","",0)) -> 1 | J90: =IF(Data!J90<>"",1,IF(Data!J90="","",0)) -> 1 | K90: =IF(Data!K90<>"",1,IF(Data!K90="","",0)) -> 1 | L90: =IF(Data!L90<>"",1,IF(Data!L90="","",0)) ->  | M90: =IF(Data!M90<>"",1,IF(Data!M90="","",0)) -> 
A91: 2008 | B91: 906 | C91: =IF(Data!C91<>"",1,IF(Data!C91="","",0)) ->  | D91: =IF(Data!D91<>"",1,IF(Data!D91="","",0)) ->  | E91: =IF(Data!E91<>"",1,IF(Data!E91="","",0)) -> 1 | F91: =IF(Data!F91<>"",1,IF(Data!F91="","",0)) -> 1 | G91: =IF(Data!G91<>"",1,IF(Data!G91="","",0)) -> 1 | H91: =IF(Data!H91<>"",1,IF(Data!H91="","",0)) -> 1 | I91: =IF(Data!I91<>"",1,IF(Data!I91="","",0)) -> 1 | J91: =IF(Data!J91<>"",1,IF(Data!J91="","",0)) -> 1 | K91: =IF(Data!K91<>"",1,IF(Data!K91="","",0)) -> 1 | L91: =IF(Data!L91<>"",1,IF(Data!L91="","",0)) ->  | M91: =IF(Data!M91<>"",1,IF(Data!M91="","",0)) -> 
A92: 2008 | B92: 935 | C92: =IF(Data!C92<>"",1,IF(Data!C92="","",0)) ->  | D92: =IF(Data!D92<>"",1,IF(Data!D92="","",0)) ->  | E92: =IF(Data!E92<>"",1,IF(Data!E92="","",0)) ->  | F92: =IF(Data!F92<>"",1,IF(Data!F92="","",0)) ->  | G92: =IF(Data!G92<>"",1,IF(Data!G92="","",0)) -> 1 | H92: =IF(Data!H92<>"",1,IF(Data!H92="","",0)) -> 1 | I92: =IF(Data!I92<>"",1,IF(Data!I92="","",0)) -> 1 | J92: =IF(Data!J92<>"",1,IF(Data!J92="","",0)) -> 1 | K92: =IF(Data!K92<>"",1,IF(Data!K92="","",0)) -> 1 | L92: =IF(Data!L92<>"",1,IF(Data!L92="","",0)) ->  | M92: =IF(Data!M92<>"",1,IF(Data!M92="","",0)) -> 
A93: 2008 | B93: 964 | C93: =IF(Data!C93<>"",1,IF(Data!C93="","",0)) ->  | D93: =IF(Data!D93<>"",1,IF(Data!D93="","",0)) ->  | E93: =IF(Data!E93<>"",1,IF(Data!E93="","",0)) ->  | F93: =IF(Data!F93<>"",1,IF(Data!F93="","",0)) ->  | G93: =IF(Data!G93<>"",1,IF(Data!G93="","",0)) ->  | H93: =IF(Data!H93<>"",1,IF(Data!H93="","",0)) ->  | I93: =IF(Data!I93<>"",1,IF(Data!I93="","",0)) -> 1 | J93: =IF(Data!J93<>"",1,IF(Data!J93="","",0)) -> 1 | K93: =IF(Data!K93<>"",1,IF(Data!K93="","",0)) -> 1 | L93: =IF(Data!L93<>"",1,IF(Data!L93="","",0)) ->  | M93: =IF(Data!M93<>"",1,IF(Data!M93="","",0)) -> 
A94: 2008 | B94: 967 | C94: =IF(Data!C94<>"",1,IF(Data!C94="","",0)) ->  | D94: =IF(Data!D94<>"",1,IF(Data!D94="","",0)) -> 1 | E94: =IF(Data!E94<>"",1,IF(Data!E94="","",0)) -> 1 | F94: =IF(Data!F94<>"",1,IF(Data!F94="","",0)) -> 1 | G94: =IF(Data!G94<>"",1,IF(Data!G94="","",0)) -> 1 | H94: =IF(Data!H94<>"",1,IF(Data!H94="","",0)) -> 1 | I94: =IF(Data!I94<>"",1,IF(Data!I94="","",0)) -> 1 | J94: =IF(Data!J94<>"",1,IF(Data!J94="","",0)) -> 1 | K94: =IF(Data!K94<>"",1,IF(Data!K94="","",0)) -> 1 | L94: =IF(Data!L94<>"",1,IF(Data!L94="","",0)) ->  | M94: =IF(Data!M94<>"",1,IF(Data!M94="","",0)) -> 
A95: 2008 | B95: 969 | C95: =IF(Data!C95<>"",1,IF(Data!C95="","",0)) ->  | D95: =IF(Data!D95<>"",1,IF(Data!D95="","",0)) -> 1 | E95: =IF(Data!E95<>"",1,IF(Data!E95="","",0)) -> 1 | F95: =IF(Data!F95<>"",1,IF(Data!F95="","",0)) -> 1 | G95: =IF(Data!G95<>"",1,IF(Data!G95="","",0)) -> 1 | H95: =IF(Data!H95<>"",1,IF(Data!H95="","",0)) -> 1 | I95: =IF(Data!I95<>"",1,IF(Data!I95="","",0)) -> 1 | J95: =IF(Data!J95<>"",1,IF(Data!J95="","",0)) -> 1 | K95: =IF(Data!K95<>"",1,IF(Data!K95="","",0)) -> 1 | L95: =IF(Data!L95<>"",1,IF(Data!L95="","",0)) ->  | M95: =IF(Data!M95<>"",1,IF(Data!M95="","",0)) -> 
A96: 2008 | B96: 995 | C96: =IF(Data!C96<>"",1,IF(Data!C96="","",0)) ->  | D96: =IF(Data!D96<>"",1,IF(Data!D96="","",0)) -> 1 | E96: =IF(Data!E96<>"",1,IF(Data!E96="","",0)) -> 1 | F96: =IF(Data!F96<>"",1,IF(Data!F96="","",0)) -> 1 | G96: =IF(Data!G96<>"",1,IF(Data!G96="","",0)) -> 1 | H96: =IF(Data!H96<>"",1,IF(Data!H96="","",0)) -> 1 | I96: =IF(Data!I96<>"",1,IF(Data!I96="","",0)) -> 1 | J96: =IF(Data!J96<>"",1,IF(Data!J96="","",0)) -> 1 | K96: =IF(Data!K96<>"",1,IF(Data!K96="","",0)) -> 1 | L96: =IF(Data!L96<>"",1,IF(Data!L96="","",0)) ->  | M96: =IF(Data!M96<>"",1,IF(Data!M96="","",0)) -> 
A97: 2008 | B97: 1007 | C97: =IF(Data!C97<>"",1,IF(Data!C97="","",0)) ->  | D97: =IF(Data!D97<>"",1,IF(Data!D97="","",0)) ->  | E97: =IF(Data!E97<>"",1,IF(Data!E97="","",0)) ->  | F97: =IF(Data!F97<>"",1,IF(Data!F97="","",0)) ->  | G97: =IF(Data!G97<>"",1,IF(Data!G97="","",0)) ->  | H97: =IF(Data!H97<>"",1,IF(Data!H97="","",0)) ->  | I97: =IF(Data!I97<>"",1,IF(Data!I97="","",0)) ->  | J97: =IF(Data!J97<>"",1,IF(Data!J97="","",0)) -> 1 | K97: =IF(Data!K97<>"",1,IF(Data!K97="","",0)) -> 1 | L97: =IF(Data!L97<>"",1,IF(Data!L97="","",0)) ->  | M97: =IF(Data!M97<>"",1,IF(Data!M97="","",0)) -> 
A98: 2008 | B98: 1026 | C98: =IF(Data!C98<>"",1,IF(Data!C98="","",0)) ->  | D98: =IF(Data!D98<>"",1,IF(Data!D98="","",0)) -> 1 | E98: =IF(Data!E98<>"",1,IF(Data!E98="","",0)) -> 1 | F98: =IF(Data!F98<>"",1,IF(Data!F98="","",0)) -> 1 | G98: =IF(Data!G98<>"",1,IF(Data!G98="","",0)) -> 1 | H98: =IF(Data!H98<>"",1,IF(Data!H98="","",0)) -> 1 | I98: =IF(Data!I98<>"",1,IF(Data!I98="","",0)) -> 1 | J98: =IF(Data!J98<>"",1,IF(Data!J98="","",0)) -> 1 | K98: =IF(Data!K98<>"",1,IF(Data!K98="","",0)) -> 1 | L98: =IF(Data!L98<>"",1,IF(Data!L98="","",0)) ->  | M98: =IF(Data!M98<>"",1,IF(Data!M98="","",0)) -> 
A99: 2008 | B99: 1028 | C99: =IF(Data!C99<>"",1,IF(Data!C99="","",0)) ->  | D99: =IF(Data!D99<>"",1,IF(Data!D99="","",0)) -> 1 | E99: =IF(Data!E99<>"",1,IF(Data!E99="","",0)) -> 1 | F99: =IF(Data!F99<>"",1,IF(Data!F99="","",0)) -> 1 | G99: =IF(Data!G99<>"",1,IF(Data!G99="","",0)) -> 1 | H99: =IF(Data!H99<>"",1,IF(Data!H99="","",0)) -> 1 | I99: =IF(Data!I99<>"",1,IF(Data!I99="","",0)) -> 1 | J99: =IF(Data!J99<>"",1,IF(Data!J99="","",0)) -> 1 | K99: =IF(Data!K99<>"",1,IF(Data!K99="","",0)) -> 1 | L99: =IF(Data!L99<>"",1,IF(Data!L99="","",0)) ->  | M99: =IF(Data!M99<>"",1,IF(Data!M99="","",0)) -> 
A100: 2008 | B100: 1030 | C100: =IF(Data!C100<>"",1,IF(Data!C100="","",0)) ->  | D100: =IF(Data!D100<>"",1,IF(Data!D100="","",0)) ->  | E100: =IF(Data!E100<>"",1,IF(Data!E100="","",0)) ->  | F100: =IF(Data!F100<>"",1,IF(Data!F100="","",0)) -> 1 | G100: =IF(Data!G100<>"",1,IF(Data!G100="","",0)) -> 1 | H100: =IF(Data!H100<>"",1,IF(Data!H100="","",0)) -> 1 | I100: =IF(Data!I100<>"",1,IF(Data!I100="","",0)) -> 1 | J100: =IF(Data!J100<>"",1,IF(Data!J100="","",0)) -> 1 | K100: =IF(Data!K100<>"",1,IF(Data!K100="","",0)) -> 1 | L100: =IF(Data!L100<>"",1,IF(Data!L100="","",0)) ->  | M100: =IF(Data!M100<>"",1,IF(Data!M100="","",0)) -> 
A101: 2008 | B101: 1031 | C101: =IF(Data!C101<>"",1,IF(Data!C101="","",0)) ->  | D101: =IF(Data!D101<>"",1,IF(Data!D101="","",0)) -> 1 | E101: =IF(Data!E101<>"",1,IF(Data!E101="","",0)) -> 1 | F101: =IF(Data!F101<>"",1,IF(Data!F101="","",0)) -> 1 | G101: =IF(Data!G101<>"",1,IF(Data!G101="","",0)) -> 1 | H101: =IF(Data!H101<>"",1,IF(Data!H101="","",0)) -> 1 | I101: =IF(Data!I101<>"",1,IF(Data!I101="","",0)) -> 1 | J101: =IF(Data!J101<>"",1,IF(Data!J101="","",0)) -> 1 | K101: =IF(Data!K101<>"",1,IF(Data!K101="","",0)) -> 1 | L101: =IF(Data!L101<>"",1,IF(Data!L101="","",0)) ->  | M101: =IF(Data!M101<>"",1,IF(Data!M101="","",0)) -> 
A102: 2008 | B102: 1032 | C102: =IF(Data!C102<>"",1,IF(Data!C102="","",0)) ->  | D102: =IF(Data!D102<>"",1,IF(Data!D102="","",0)) ->  | E102: =IF(Data!E102<>"",1,IF(Data!E102="","",0)) -> 1 | F102: =IF(Data!F102<>"",1,IF(Data!F102="","",0)) -> 1 | G102: =IF(Data!G102<>"",1,IF(Data!G102="","",0)) -> 1 | H102: =IF(Data!H102<>"",1,IF(Data!H102="","",0)) -> 1 | I102: =IF(Data!I102<>"",1,IF(Data!I102="","",0)) -> 1 | J102: =IF(Data!J102<>"",1,IF(Data!J102="","",0)) -> 1 | K102: =IF(Data!K102<>"",1,IF(Data!K102="","",0)) -> 1 | L102: =IF(Data!L102<>"",1,IF(Data!L102="","",0)) ->  | M102: =IF(Data!M102<>"",1,IF(Data!M102="","",0)) -> 
A103: 2008 | B103: 1034 | C103: =IF(Data!C103<>"",1,IF(Data!C103="","",0)) ->  | D103: =IF(Data!D103<>"",1,IF(Data!D103="","",0)) ->  | E103: =IF(Data!E103<>"",1,IF(Data!E103="","",0)) -> 1 | F103: =IF(Data!F103<>"",1,IF(Data!F103="","",0)) -> 1 | G103: =IF(Data!G103<>"",1,IF(Data!G103="","",0)) ->  | H103: =IF(Data!H103<>"",1,IF(Data!H103="","",0)) ->  | I103: =IF(Data!I103<>"",1,IF(Data!I103="","",0)) ->  | J103: =IF(Data!J103<>"",1,IF(Data!J103="","",0)) ->  | K103: =IF(Data!K103<>"",1,IF(Data!K103="","",0)) ->  | L103: =IF(Data!L103<>"",1,IF(Data!L103="","",0)) ->  | M103: =IF(Data!M103<>"",1,IF(Data!M103="","",0)) -> 
A104: 2008 | B104: 1046 | C104: =IF(Data!C104<>"",1,IF(Data!C104="","",0)) ->  | D104: =IF(Data!D104<>"",1,IF(Data!D104="","",0)) ->  | E104: =IF(Data!E104<>"",1,IF(Data!E104="","",0)) ->  | F104: =IF(Data!F104<>"",1,IF(Data!F104="","",0)) ->  | G104: =IF(Data!G104<>"",1,IF(Data!G104="","",0)) ->  | H104: =IF(Data!H104<>"",1,IF(Data!H104="","",0)) ->  | I104: =IF(Data!I104<>"",1,IF(Data!I104="","",0)) -> 1 | J104: =IF(Data!J104<>"",1,IF(Data!J104="","",0)) -> 1 | K104: =IF(Data!K104<>"",1,IF(Data!K104="","",0)) -> 1 | L104: =IF(Data!L104<>"",1,IF(Data!L104="","",0)) ->  | M104: =IF(Data!M104<>"",1,IF(Data!M104="","",0)) -> 
A105: 2008 | B105: 1049 | C105: =IF(Data!C105<>"",1,IF(Data!C105="","",0)) ->  | D105: =IF(Data!D105<>"",1,IF(Data!D105="","",0)) ->  | E105: =IF(Data!E105<>"",1,IF(Data!E105="","",0)) ->  | F105: =IF(Data!F105<>"",1,IF(Data!F105="","",0)) ->  | G105: =IF(Data!G105<>"",1,IF(Data!G105="","",0)) ->  | H105: =IF(Data!H105<>"",1,IF(Data!H105="","",0)) ->  | I105: =IF(Data!I105<>"",1,IF(Data!I105="","",0)) -> 1 | J105: =IF(Data!J105<>"",1,IF(Data!J105="","",0)) -> 1 | K105: =IF(Data!K105<>"",1,IF(Data!K105="","",0)) -> 1 | L105: =IF(Data!L105<>"",1,IF(Data!L105="","",0)) ->  | M105: =IF(Data!M105<>"",1,IF(Data!M105="","",0)) -> 
A106: 2008 | B106: 1079 | C106: =IF(Data!C106<>"",1,IF(Data!C106="","",0)) ->  | D106: =IF(Data!D106<>"",1,IF(Data!D106="","",0)) ->  | E106: =IF(Data!E106<>"",1,IF(Data!E106="","",0)) ->  | F106: =IF(Data!F106<>"",1,IF(Data!F106="","",0)) ->  | G106: =IF(Data!G106<>"",1,IF(Data!G106="","",0)) ->  | H106: =IF(Data!H106<>"",1,IF(Data!H106="","",0)) -> 1 | I106: =IF(Data!I106<>"",1,IF(Data!I106="","",0)) -> 1 | J106: =IF(Data!J106<>"",1,IF(Data!J106="","",0)) -> 1 | K106: =IF(Data!K106<>"",1,IF(Data!K106="","",0)) -> 1 | L106: =IF(Data!L106<>"",1,IF(Data!L106="","",0)) ->  | M106: =IF(Data!M106<>"",1,IF(Data!M106="","",0)) -> 
A107: 2008 | B107: 1080 | C107: =IF(Data!C107<>"",1,IF(Data!C107="","",0)) ->  | D107: =IF(Data!D107<>"",1,IF(Data!D107="","",0)) ->  | E107: =IF(Data!E107<>"",1,IF(Data!E107="","",0)) ->  | F107: =IF(Data!F107<>"",1,IF(Data!F107="","",0)) ->  | G107: =IF(Data!G107<>"",1,IF(Data!G107="","",0)) ->  | H107: =IF(Data!H107<>"",1,IF(Data!H107="","",0)) -> 1 | I107: =IF(Data!I107<>"",1,IF(Data!I107="","",0)) -> 1 | J107: =IF(Data!J107<>"",1,IF(Data!J107="","",0)) -> 1 | K107: =IF(Data!K107<>"",1,IF(Data!K107="","",0)) -> 1 | L107: =IF(Data!L107<>"",1,IF(Data!L107="","",0)) ->  | M107: =IF(Data!M107<>"",1,IF(Data!M107="","",0)) -> 
A108: 2008 | B108: 1100 | C108: =IF(Data!C108<>"",1,IF(Data!C108="","",0)) ->  | D108: =IF(Data!D108<>"",1,IF(Data!D108="","",0)) ->  | E108: =IF(Data!E108<>"",1,IF(Data!E108="","",0)) ->  | F108: =IF(Data!F108<>"",1,IF(Data!F108="","",0)) ->  | G108: =IF(Data!G108<>"",1,IF(Data!G108="","",0)) ->  | H108: =IF(Data!H108<>"",1,IF(Data!H108="","",0)) -> 1 | I108: =IF(Data!I108<>"",1,IF(Data!I108="","",0)) -> 1 | J108: =IF(Data!J108<>"",1,IF(Data!J108="","",0)) -> 1 | K108: =IF(Data!K108<>"",1,IF(Data!K108="","",0)) -> 1 | L108: =IF(Data!L108<>"",1,IF(Data!L108="","",0)) ->  | M108: =IF(Data!M108<>"",1,IF(Data!M108="","",0)) -> 
A109: 2008 | B109: 1112 | C109: =IF(Data!C109<>"",1,IF(Data!C109="","",0)) ->  | D109: =IF(Data!D109<>"",1,IF(Data!D109="","",0)) ->  | E109: =IF(Data!E109<>"",1,IF(Data!E109="","",0)) ->  | F109: =IF(Data!F109<>"",1,IF(Data!F109="","",0)) ->  | G109: =IF(Data!G109<>"",1,IF(Data!G109="","",0)) ->  | H109: =IF(Data!H109<>"",1,IF(Data!H109="","",0)) ->  | I109: =IF(Data!I109<>"",1,IF(Data!I109="","",0)) -> 1 | J109: =IF(Data!J109<>"",1,IF(Data!J109="","",0)) -> 1 | K109: =IF(Data!K109<>"",1,IF(Data!K109="","",0)) -> 1 | L109: =IF(Data!L109<>"",1,IF(Data!L109="","",0)) ->  | M109: =IF(Data!M109<>"",1,IF(Data!M109="","",0)) -> 
A110: 2008 | B110: 1113 | C110: =IF(Data!C110<>"",1,IF(Data!C110="","",0)) ->  | D110: =IF(Data!D110<>"",1,IF(Data!D110="","",0)) ->  | E110: =IF(Data!E110<>"",1,IF(Data!E110="","",0)) ->  | F110: =IF(Data!F110<>"",1,IF(Data!F110="","",0)) ->  | G110: =IF(Data!G110<>"",1,IF(Data!G110="","",0)) ->  | H110: =IF(Data!H110<>"",1,IF(Data!H110="","",0)) ->  | I110: =IF(Data!I110<>"",1,IF(Data!I110="","",0)) -> 1 | J110: =IF(Data!J110<>"",1,IF(Data!J110="","",0)) -> 1 | K110: =IF(Data!K110<>"",1,IF(Data!K110="","",0)) -> 1 | L110: =IF(Data!L110<>"",1,IF(Data!L110="","",0)) ->  | M110: =IF(Data!M110<>"",1,IF(Data!M110="","",0)) -> 
A111: 2008 | B111: 1121 | C111: =IF(Data!C111<>"",1,IF(Data!C111="","",0)) ->  | D111: =IF(Data!D111<>"",1,IF(Data!D111="","",0)) ->  | E111: =IF(Data!E111<>"",1,IF(Data!E111="","",0)) ->  | F111: =IF(Data!F111<>"",1,IF(Data!F111="","",0)) ->  | G111: =IF(Data!G111<>"",1,IF(Data!G111="","",0)) ->  | H111: =IF(Data!H111<>"",1,IF(Data!H111="","",0)) ->  | I111: =IF(Data!I111<>"",1,IF(Data!I111="","",0)) -> 1 | J111: =IF(Data!J111<>"",1,IF(Data!J111="","",0)) -> 1 | K111: =IF(Data!K111<>"",1,IF(Data!K111="","",0)) -> 1 | L111: =IF(Data!L111<>"",1,IF(Data!L111="","",0)) ->  | M111: =IF(Data!M111<>"",1,IF(Data!M111="","",0)) -> 
A112: 2008 | B112: 1503 | C112: =IF(Data!C112<>"",1,IF(Data!C112="","",0)) ->  | D112: =IF(Data!D112<>"",1,IF(Data!D112="","",0)) ->  | E112: =IF(Data!E112<>"",1,IF(Data!E112="","",0)) ->  | F112: =IF(Data!F112<>"",1,IF(Data!F112="","",0)) ->  | G112: =IF(Data!G112<>"",1,IF(Data!G112="","",0)) -> 1 | H112: =IF(Data!H112<>"",1,IF(Data!H112="","",0)) -> 1 | I112: =IF(Data!I112<>"",1,IF(Data!I112="","",0)) -> 1 | J112: =IF(Data!J112<>"",1,IF(Data!J112="","",0)) -> 1 | K112: =IF(Data!K112<>"",1,IF(Data!K112="","",0)) -> 1 | L112: =IF(Data!L112<>"",1,IF(Data!L112="","",0)) ->  | M112: =IF(Data!M112<>"",1,IF(Data!M112="","",0)) -> 
A113: 2008 | B113: 1504 | C113: =IF(Data!C113<>"",1,IF(Data!C113="","",0)) ->  | D113: =IF(Data!D113<>"",1,IF(Data!D113="","",0)) ->  | E113: =IF(Data!E113<>"",1,IF(Data!E113="","",0)) ->  | F113: =IF(Data!F113<>"",1,IF(Data!F113="","",0)) ->  | G113: =IF(Data!G113<>"",1,IF(Data!G113="","",0)) -> 1 | H113: =IF(Data!H113<>"",1,IF(Data!H113="","",0)) -> 1 | I113: =IF(Data!I113<>"",1,IF(Data!I113="","",0)) ->  | J113: =IF(Data!J113<>"",1,IF(Data!J113="","",0)) -> 1 | K113: =IF(Data!K113<>"",1,IF(Data!K113="","",0)) -> 1 | L113: =IF(Data!L113<>"",1,IF(Data!L113="","",0)) ->  | M113: =IF(Data!M113<>"",1,IF(Data!M113="","",0)) -> 
A114: 2009 | B114: 708 | C114: =IF(Data!C114<>"",1,IF(Data!C114="","",0)) ->  | D114: =IF(Data!D114<>"",1,IF(Data!D114="","",0)) -> 1 | E114: =IF(Data!E114<>"",1,IF(Data!E114="","",0)) -> 1 | F114: =IF(Data!F114<>"",1,IF(Data!F114="","",0)) -> 1 | G114: =IF(Data!G114<>"",1,IF(Data!G114="","",0)) -> 1 | H114: =IF(Data!H114<>"",1,IF(Data!H114="","",0)) -> 1 | I114: =IF(Data!I114<>"",1,IF(Data!I114="","",0)) -> 1 | J114: =IF(Data!J114<>"",1,IF(Data!J114="","",0)) -> 1 | K114: =IF(Data!K114<>"",1,IF(Data!K114="","",0)) ->  | L114: =IF(Data!L114<>"",1,IF(Data!L114="","",0)) ->  | M114: =IF(Data!M114<>"",1,IF(Data!M114="","",0)) -> 
A115: 2009 | B115: 831 | C115: =IF(Data!C115<>"",1,IF(Data!C115="","",0)) ->  | D115: =IF(Data!D115<>"",1,IF(Data!D115="","",0)) -> 1 | E115: =IF(Data!E115<>"",1,IF(Data!E115="","",0)) -> 1 | F115: =IF(Data!F115<>"",1,IF(Data!F115="","",0)) -> 1 | G115: =IF(Data!G115<>"",1,IF(Data!G115="","",0)) -> 1 | H115: =IF(Data!H115<>"",1,IF(Data!H115="","",0)) -> 1 | I115: =IF(Data!I115<>"",1,IF(Data!I115="","",0)) -> 1 | J115: =IF(Data!J115<>"",1,IF(Data!J115="","",0)) -> 1 | K115: =IF(Data!K115<>"",1,IF(Data!K115="","",0)) ->  | L115: =IF(Data!L115<>"",1,IF(Data!L115="","",0)) ->  | M115: =IF(Data!M115<>"",1,IF(Data!M115="","",0)) -> 
A116: 2009 | B116: 832 | C116: =IF(Data!C116<>"",1,IF(Data!C116="","",0)) ->  | D116: =IF(Data!D116<>"",1,IF(Data!D116="","",0)) ->  | E116: =IF(Data!E116<>"",1,IF(Data!E116="","",0)) -> 1 | F116: =IF(Data!F116<>"",1,IF(Data!F116="","",0)) -> 1 | G116: =IF(Data!G116<>"",1,IF(Data!G116="","",0)) -> 1 | H116: =IF(Data!H116<>"",1,IF(Data!H116="","",0)) -> 1 | I116: =IF(Data!I116<>"",1,IF(Data!I116="","",0)) ->  | J116: =IF(Data!J116<>"",1,IF(Data!J116="","",0)) ->  | K116: =IF(Data!K116<>"",1,IF(Data!K116="","",0)) ->  | L116: =IF(Data!L116<>"",1,IF(Data!L116="","",0)) ->  | M116: =IF(Data!M116<>"",1,IF(Data!M116="","",0)) -> 
A117: 2009 | B117: 833 | C117: =IF(Data!C117<>"",1,IF(Data!C117="","",0)) -> 1 | D117: =IF(Data!D117<>"",1,IF(Data!D117="","",0)) -> 1 | E117: =IF(Data!E117<>"",1,IF(Data!E117="","",0)) -> 1 | F117: =IF(Data!F117<>"",1,IF(Data!F117="","",0)) -> 1 | G117: =IF(Data!G117<>"",1,IF(Data!G117="","",0)) -> 1 | H117: =IF(Data!H117<>"",1,IF(Data!H117="","",0)) -> 1 | I117: =IF(Data!I117<>"",1,IF(Data!I117="","",0)) -> 1 | J117: =IF(Data!J117<>"",1,IF(Data!J117="","",0)) -> 1 | K117: =IF(Data!K117<>"",1,IF(Data!K117="","",0)) ->  | L117: =IF(Data!L117<>"",1,IF(Data!L117="","",0)) ->  | M117: =IF(Data!M117<>"",1,IF(Data!M117="","",0)) -> 
A118: 2009 | B118: 836 | C118: =IF(Data!C118<>"",1,IF(Data!C118="","",0)) ->  | D118: =IF(Data!D118<>"",1,IF(Data!D118="","",0)) ->  | E118: =IF(Data!E118<>"",1,IF(Data!E118="","",0)) ->  | F118: =IF(Data!F118<>"",1,IF(Data!F118="","",0)) ->  | G118: =IF(Data!G118<>"",1,IF(Data!G118="","",0)) ->  | H118: =IF(Data!H118<>"",1,IF(Data!H118="","",0)) -> 1 | I118: =IF(Data!I118<>"",1,IF(Data!I118="","",0)) -> 1 | J118: =IF(Data!J118<>"",1,IF(Data!J118="","",0)) -> 1 | K118: =IF(Data!K118<>"",1,IF(Data!K118="","",0)) ->  | L118: =IF(Data!L118<>"",1,IF(Data!L118="","",0)) ->  | M118: =IF(Data!M118<>"",1,IF(Data!M118="","",0)) -> 
A119: 2009 | B119: 839 | C119: =IF(Data!C119<>"",1,IF(Data!C119="","",0)) ->  | D119: =IF(Data!D119<>"",1,IF(Data!D119="","",0)) ->  | E119: =IF(Data!E119<>"",1,IF(Data!E119="","",0)) ->  | F119: =IF(Data!F119<>"",1,IF(Data!F119="","",0)) ->  | G119: =IF(Data!G119<>"",1,IF(Data!G119="","",0)) ->  | H119: =IF(Data!H119<>"",1,IF(Data!H119="","",0)) -> 1 | I119: =IF(Data!I119<>"",1,IF(Data!I119="","",0)) -> 1 | J119: =IF(Data!J119<>"",1,IF(Data!J119="","",0)) -> 1 | K119: =IF(Data!K119<>"",1,IF(Data!K119="","",0)) ->  | L119: =IF(Data!L119<>"",1,IF(Data!L119="","",0)) ->  | M119: =IF(Data!M119<>"",1,IF(Data!M119="","",0)) -> 
A120: 2009 | B120: 900 | C120: =IF(Data!C120<>"",1,IF(Data!C120="","",0)) ->  | D120: =IF(Data!D120<>"",1,IF(Data!D120="","",0)) ->  | E120: =IF(Data!E120<>"",1,IF(Data!E120="","",0)) ->  | F120: =IF(Data!F120<>"",1,IF(Data!F120="","",0)) ->  | G120: =IF(Data!G120<>"",1,IF(Data!G120="","",0)) ->  | H120: =IF(Data!H120<>"",1,IF(Data!H120="","",0)) ->  | I120: =IF(Data!I120<>"",1,IF(Data!I120="","",0)) ->  | J120: =IF(Data!J120<>"",1,IF(Data!J120="","",0)) -> 1 | K120: =IF(Data!K120<>"",1,IF(Data!K120="","",0)) ->  | L120: =IF(Data!L120<>"",1,IF(Data!L120="","",0)) ->  | M120: =IF(Data!M120<>"",1,IF(Data!M120="","",0)) -> 
A121: 2009 | B121: 904 | C121: =IF(Data!C121<>"",1,IF(Data!C121="","",0)) ->  | D121: =IF(Data!D121<>"",1,IF(Data!D121="","",0)) -> 1 | E121: =IF(Data!E121<>"",1,IF(Data!E121="","",0)) -> 1 | F121: =IF(Data!F121<>"",1,IF(Data!F121="","",0)) -> 1 | G121: =IF(Data!G121<>"",1,IF(Data!G121="","",0)) -> 1 | H121: =IF(Data!H121<>"",1,IF(Data!H121="","",0)) -> 1 | I121: =IF(Data!I121<>"",1,IF(Data!I121="","",0)) -> 1 | J121: =IF(Data!J121<>"",1,IF(Data!J121="","",0)) -> 1 | K121: =IF(Data!K121<>"",1,IF(Data!K121="","",0)) ->  | L121: =IF(Data!L121<>"",1,IF(Data!L121="","",0)) ->  | M121: =IF(Data!M121<>"",1,IF(Data!M121="","",0)) -> 
A122: 2009 | B122: 909 | C122: =IF(Data!C122<>"",1,IF(Data!C122="","",0)) ->  | D122: =IF(Data!D122<>"",1,IF(Data!D122="","",0)) -> 1 | E122: =IF(Data!E122<>"",1,IF(Data!E122="","",0)) -> 1 | F122: =IF(Data!F122<>"",1,IF(Data!F122="","",0)) -> 1 | G122: =IF(Data!G122<>"",1,IF(Data!G122="","",0)) -> 1 | H122: =IF(Data!H122<>"",1,IF(Data!H122="","",0)) -> 1 | I122: =IF(Data!I122<>"",1,IF(Data!I122="","",0)) -> 1 | J122: =IF(Data!J122<>"",1,IF(Data!J122="","",0)) -> 1 | K122: =IF(Data!K122<>"",1,IF(Data!K122="","",0)) ->  | L122: =IF(Data!L122<>"",1,IF(Data!L122="","",0)) ->  | M122: =IF(Data!M122<>"",1,IF(Data!M122="","",0)) -> 
A123: 2009 | B123: 921 | C123: =IF(Data!C123<>"",1,IF(Data!C123="","",0)) ->  | D123: =IF(Data!D123<>"",1,IF(Data!D123="","",0)) ->  | E123: =IF(Data!E123<>"",1,IF(Data!E123="","",0)) -> 1 | F123: =IF(Data!F123<>"",1,IF(Data!F123="","",0)) -> 1 | G123: =IF(Data!G123<>"",1,IF(Data!G123="","",0)) -> 1 | H123: =IF(Data!H123<>"",1,IF(Data!H123="","",0)) -> 1 | I123: =IF(Data!I123<>"",1,IF(Data!I123="","",0)) -> 1 | J123: =IF(Data!J123<>"",1,IF(Data!J123="","",0)) -> 1 | K123: =IF(Data!K123<>"",1,IF(Data!K123="","",0)) ->  | L123: =IF(Data!L123<>"",1,IF(Data!L123="","",0)) ->  | M123: =IF(Data!M123<>"",1,IF(Data!M123="","",0)) -> 
A124: 2009 | B124: 922 | C124: =IF(Data!C124<>"",1,IF(Data!C124="","",0)) ->  | D124: =IF(Data!D124<>"",1,IF(Data!D124="","",0)) ->  | E124: =IF(Data!E124<>"",1,IF(Data!E124="","",0)) -> 1 | F124: =IF(Data!F124<>"",1,IF(Data!F124="","",0)) -> 1 | G124: =IF(Data!G124<>"",1,IF(Data!G124="","",0)) -> 1 | H124: =IF(Data!H124<>"",1,IF(Data!H124="","",0)) -> 1 | I124: =IF(Data!I124<>"",1,IF(Data!I124="","",0)) -> 1 | J124: =IF(Data!J124<>"",1,IF(Data!J124="","",0)) -> 1 | K124: =IF(Data!K124<>"",1,IF(Data!K124="","",0)) ->  | L124: =IF(Data!L124<>"",1,IF(Data!L124="","",0)) ->  | M124: =IF(Data!M124<>"",1,IF(Data!M124="","",0)) -> 
A125: 2009 | B125: 930 | C125: =IF(Data!C125<>"",1,IF(Data!C125="","",0)) ->  | D125: =IF(Data!D125<>"",1,IF(Data!D125="","",0)) ->  | E125: =IF(Data!E125<>"",1,IF(Data!E125="","",0)) ->  | F125: =IF(Data!F125<>"",1,IF(Data!F125="","",0)) -> 1 | G125: =IF(Data!G125<>"",1,IF(Data!G125="","",0)) -> 1 | H125: =IF(Data!H125<>"",1,IF(Data!H125="","",0)) -> 1 | I125: =IF(Data!I125<>"",1,IF(Data!I125="","",0)) -> 1 | J125: =IF(Data!J125<>"",1,IF(Data!J125="","",0)) -> 1 | K125: =IF(Data!K125<>"",1,IF(Data!K125="","",0)) ->  | L125: =IF(Data!L125<>"",1,IF(Data!L125="","",0)) ->  | M125: =IF(Data!M125<>"",1,IF(Data!M125="","",0)) -> 
A126: 2009 | B126: 931 | C126: =IF(Data!C126<>"",1,IF(Data!C126="","",0)) ->  | D126: =IF(Data!D126<>"",1,IF(Data!D126="","",0)) ->  | E126: =IF(Data!E126<>"",1,IF(Data!E126="","",0)) ->  | F126: =IF(Data!F126<>"",1,IF(Data!F126="","",0)) -> 1 | G126: =IF(Data!G126<>"",1,IF(Data!G126="","",0)) -> 1 | H126: =IF(Data!H126<>"",1,IF(Data!H126="","",0)) -> 1 | I126: =IF(Data!I126<>"",1,IF(Data!I126="","",0)) -> 1 | J126: =IF(Data!J126<>"",1,IF(Data!J126="","",0)) -> 1 | K126: =IF(Data!K126<>"",1,IF(Data!K126="","",0)) ->  | L126: =IF(Data!L126<>"",1,IF(Data!L126="","",0)) ->  | M126: =IF(Data!M126<>"",1,IF(Data!M126="","",0)) -> 
A127: 2009 | B127: 932 | C127: =IF(Data!C127<>"",1,IF(Data!C127="","",0)) ->  | D127: =IF(Data!D127<>"",1,IF(Data!D127="","",0)) ->  | E127: =IF(Data!E127<>"",1,IF(Data!E127="","",0)) ->  | F127: =IF(Data!F127<>"",1,IF(Data!F127="","",0)) -> 1 | G127: =IF(Data!G127<>"",1,IF(Data!G127="","",0)) -> 1 | H127: =IF(Data!H127<>"",1,IF(Data!H127="","",0)) -> 1 | I127: =IF(Data!I127<>"",1,IF(Data!I127="","",0)) -> 1 | J127: =IF(Data!J127<>"",1,IF(Data!J127="","",0)) -> 1 | K127: =IF(Data!K127<>"",1,IF(Data!K127="","",0)) ->  | L127: =IF(Data!L127<>"",1,IF(Data!L127="","",0)) ->  | M127: =IF(Data!M127<>"",1,IF(Data!M127="","",0)) -> 
A128: 2009 | B128: 939 | C128: =IF(Data!C128<>"",1,IF(Data!C128="","",0)) ->  | D128: =IF(Data!D128<>"",1,IF(Data!D128="","",0)) ->  | E128: =IF(Data!E128<>"",1,IF(Data!E128="","",0)) ->  | F128: =IF(Data!F128<>"",1,IF(Data!F128="","",0)) -> 1 | G128: =IF(Data!G128<>"",1,IF(Data!G128="","",0)) -> 1 | H128: =IF(Data!H128<>"",1,IF(Data!H128="","",0)) -> 1 | I128: =IF(Data!I128<>"",1,IF(Data!I128="","",0)) -> 1 | J128: =IF(Data!J128<>"",1,IF(Data!J128="","",0)) -> 1 | K128: =IF(Data!K128<>"",1,IF(Data!K128="","",0)) ->  | L128: =IF(Data!L128<>"",1,IF(Data!L128="","",0)) ->  | M128: =IF(Data!M128<>"",1,IF(Data!M128="","",0)) -> 
A129: 2009 | B129: 958 | C129: =IF(Data!C129<>"",1,IF(Data!C129="","",0)) ->  | D129: =IF(Data!D129<>"",1,IF(Data!D129="","",0)) ->  | E129: =IF(Data!E129<>"",1,IF(Data!E129="","",0)) ->  | F129: =IF(Data!F129<>"",1,IF(Data!F129="","",0)) ->  | G129: =IF(Data!G129<>"",1,IF(Data!G129="","",0)) -> 1 | H129: =IF(Data!H129<>"",1,IF(Data!H129="","",0)) -> 1 | I129: =IF(Data!I129<>"",1,IF(Data!I129="","",0)) -> 1 | J129: =IF(Data!J129<>"",1,IF(Data!J129="","",0)) -> 1 | K129: =IF(Data!K129<>"",1,IF(Data!K129="","",0)) ->  | L129: =IF(Data!L129<>"",1,IF(Data!L129="","",0)) ->  | M129: =IF(Data!M129<>"",1,IF(Data!M129="","",0)) -> 
A130: 2009 | B130: 959 | C130: =IF(Data!C130<>"",1,IF(Data!C130="","",0)) ->  | D130: =IF(Data!D130<>"",1,IF(Data!D130="","",0)) ->  | E130: =IF(Data!E130<>"",1,IF(Data!E130="","",0)) ->  | F130: =IF(Data!F130<>"",1,IF(Data!F130="","",0)) ->  | G130: =IF(Data!G130<>"",1,IF(Data!G130="","",0)) -> 1 | H130: =IF(Data!H130<>"",1,IF(Data!H130="","",0)) -> 1 | I130: =IF(Data!I130<>"",1,IF(Data!I130="","",0)) -> 1 | J130: =IF(Data!J130<>"",1,IF(Data!J130="","",0)) -> 1 | K130: =IF(Data!K130<>"",1,IF(Data!K130="","",0)) ->  | L130: =IF(Data!L130<>"",1,IF(Data!L130="","",0)) ->  | M130: =IF(Data!M130<>"",1,IF(Data!M130="","",0)) -> 
A131: 2009 | B131: 963 | C131: =IF(Data!C131<>"",1,IF(Data!C131="","",0)) ->  | D131: =IF(Data!D131<>"",1,IF(Data!D131="","",0)) ->  | E131: =IF(Data!E131<>"",1,IF(Data!E131="","",0)) ->  | F131: =IF(Data!F131<>"",1,IF(Data!F131="","",0)) ->  | G131: =IF(Data!G131<>"",1,IF(Data!G131="","",0)) ->  | H131: =IF(Data!H131<>"",1,IF(Data!H131="","",0)) -> 1 | I131: =IF(Data!I131<>"",1,IF(Data!I131="","",0)) -> 1 | J131: =IF(Data!J131<>"",1,IF(Data!J131="","",0)) -> 1 | K131: =IF(Data!K131<>"",1,IF(Data!K131="","",0)) ->  | L131: =IF(Data!L131<>"",1,IF(Data!L131="","",0)) ->  | M131: =IF(Data!M131<>"",1,IF(Data!M131="","",0)) -> 
A132: 2009 | B132: 1033 | C132: =IF(Data!C132<>"",1,IF(Data!C132="","",0)) ->  | D132: =IF(Data!D132<>"",1,IF(Data!D132="","",0)) -> 1 | E132: =IF(Data!E132<>"",1,IF(Data!E132="","",0)) -> 1 | F132: =IF(Data!F132<>"",1,IF(Data!F132="","",0)) ->  | G132: =IF(Data!G132<>"",1,IF(Data!G132="","",0)) ->  | H132: =IF(Data!H132<>"",1,IF(Data!H132="","",0)) ->  | I132: =IF(Data!I132<>"",1,IF(Data!I132="","",0)) ->  | J132: =IF(Data!J132<>"",1,IF(Data!J132="","",0)) ->  | K132: =IF(Data!K132<>"",1,IF(Data!K132="","",0)) ->  | L132: =IF(Data!L132<>"",1,IF(Data!L132="","",0)) ->  | M132: =IF(Data!M132<>"",1,IF(Data!M132="","",0)) -> 
A133: 2009 | B133: 1036 | C133: =IF(Data!C133<>"",1,IF(Data!C133="","",0)) ->  | D133: =IF(Data!D133<>"",1,IF(Data!D133="","",0)) ->  | E133: =IF(Data!E133<>"",1,IF(Data!E133="","",0)) ->  | F133: =IF(Data!F133<>"",1,IF(Data!F133="","",0)) ->  | G133: =IF(Data!G133<>"",1,IF(Data!G133="","",0)) -> 1 | H133: =IF(Data!H133<>"",1,IF(Data!H133="","",0)) -> 1 | I133: =IF(Data!I133<>"",1,IF(Data!I133="","",0)) -> 1 | J133: =IF(Data!J133<>"",1,IF(Data!J133="","",0)) -> 1 | K133: =IF(Data!K133<>"",1,IF(Data!K133="","",0)) ->  | L133: =IF(Data!L133<>"",1,IF(Data!L133="","",0)) ->  | M133: =IF(Data!M133<>"",1,IF(Data!M133="","",0)) -> 
A134: 2009 | B134: 1037 | C134: =IF(Data!C134<>"",1,IF(Data!C134="","",0)) ->  | D134: =IF(Data!D134<>"",1,IF(Data!D134="","",0)) -> 1 | E134: =IF(Data!E134<>"",1,IF(Data!E134="","",0)) -> 1 | F134: =IF(Data!F134<>"",1,IF(Data!F134="","",0)) -> 1 | G134: =IF(Data!G134<>"",1,IF(Data!G134="","",0)) -> 1 | H134: =IF(Data!H134<>"",1,IF(Data!H134="","",0)) -> 1 | I134: =IF(Data!I134<>"",1,IF(Data!I134="","",0)) -> 1 | J134: =IF(Data!J134<>"",1,IF(Data!J134="","",0)) -> 1 | K134: =IF(Data!K134<>"",1,IF(Data!K134="","",0)) ->  | L134: =IF(Data!L134<>"",1,IF(Data!L134="","",0)) ->  | M134: =IF(Data!M134<>"",1,IF(Data!M134="","",0)) -> 
A135: 2009 | B135: 1041 | C135: =IF(Data!C135<>"",1,IF(Data!C135="","",0)) ->  | D135: =IF(Data!D135<>"",1,IF(Data!D135="","",0)) -> 1 | E135: =IF(Data!E135<>"",1,IF(Data!E135="","",0)) -> 1 | F135: =IF(Data!F135<>"",1,IF(Data!F135="","",0)) -> 1 | G135: =IF(Data!G135<>"",1,IF(Data!G135="","",0)) -> 1 | H135: =IF(Data!H135<>"",1,IF(Data!H135="","",0)) -> 1 | I135: =IF(Data!I135<>"",1,IF(Data!I135="","",0)) -> 1 | J135: =IF(Data!J135<>"",1,IF(Data!J135="","",0)) -> 1 | K135: =IF(Data!K135<>"",1,IF(Data!K135="","",0)) ->  | L135: =IF(Data!L135<>"",1,IF(Data!L135="","",0)) ->  | M135: =IF(Data!M135<>"",1,IF(Data!M135="","",0)) -> 
A136: 2009 | B136: 1042 | C136: =IF(Data!C136<>"",1,IF(Data!C136="","",0)) ->  | D136: =IF(Data!D136<>"",1,IF(Data!D136="","",0)) -> 1 | E136: =IF(Data!E136<>"",1,IF(Data!E136="","",0)) -> 1 | F136: =IF(Data!F136<>"",1,IF(Data!F136="","",0)) -> 1 | G136: =IF(Data!G136<>"",1,IF(Data!G136="","",0)) -> 1 | H136: =IF(Data!H136<>"",1,IF(Data!H136="","",0)) -> 1 | I136: =IF(Data!I136<>"",1,IF(Data!I136="","",0)) -> 1 | J136: =IF(Data!J136<>"",1,IF(Data!J136="","",0)) -> 1 | K136: =IF(Data!K136<>"",1,IF(Data!K136="","",0)) ->  | L136: =IF(Data!L136<>"",1,IF(Data!L136="","",0)) ->  | M136: =IF(Data!M136<>"",1,IF(Data!M136="","",0)) -> 
A137: 2009 | B137: 1050 | C137: =IF(Data!C137<>"",1,IF(Data!C137="","",0)) ->  | D137: =IF(Data!D137<>"",1,IF(Data!D137="","",0)) ->  | E137: =IF(Data!E137<>"",1,IF(Data!E137="","",0)) ->  | F137: =IF(Data!F137<>"",1,IF(Data!F137="","",0)) -> 1 | G137: =IF(Data!G137<>"",1,IF(Data!G137="","",0)) -> 1 | H137: =IF(Data!H137<>"",1,IF(Data!H137="","",0)) -> 1 | I137: =IF(Data!I137<>"",1,IF(Data!I137="","",0)) -> 1 | J137: =IF(Data!J137<>"",1,IF(Data!J137="","",0)) -> 1 | K137: =IF(Data!K137<>"",1,IF(Data!K137="","",0)) ->  | L137: =IF(Data!L137<>"",1,IF(Data!L137="","",0)) ->  | M137: =IF(Data!M137<>"",1,IF(Data!M137="","",0)) -> 
A138: 2009 | B138: 1069 | C138: =IF(Data!C138<>"",1,IF(Data!C138="","",0)) ->  | D138: =IF(Data!D138<>"",1,IF(Data!D138="","",0)) -> 1 | E138: =IF(Data!E138<>"",1,IF(Data!E138="","",0)) -> 1 | F138: =IF(Data!F138<>"",1,IF(Data!F138="","",0)) -> 1 | G138: =IF(Data!G138<>"",1,IF(Data!G138="","",0)) -> 1 | H138: =IF(Data!H138<>"",1,IF(Data!H138="","",0)) -> 1 | I138: =IF(Data!I138<>"",1,IF(Data!I138="","",0)) -> 1 | J138: =IF(Data!J138<>"",1,IF(Data!J138="","",0)) -> 1 | K138: =IF(Data!K138<>"",1,IF(Data!K138="","",0)) ->  | L138: =IF(Data!L138<>"",1,IF(Data!L138="","",0)) ->  | M138: =IF(Data!M138<>"",1,IF(Data!M138="","",0)) -> 
A139: 2009 | B139: 1070 | C139: =IF(Data!C139<>"",1,IF(Data!C139="","",0)) ->  | D139: =IF(Data!D139<>"",1,IF(Data!D139="","",0)) ->  | E139: =IF(Data!E139<>"",1,IF(Data!E139="","",0)) ->  | F139: =IF(Data!F139<>"",1,IF(Data!F139="","",0)) -> 1 | G139: =IF(Data!G139<>"",1,IF(Data!G139="","",0)) -> 1 | H139: =IF(Data!H139<>"",1,IF(Data!H139="","",0)) ->  | I139: =IF(Data!I139<>"",1,IF(Data!I139="","",0)) ->  | J139: =IF(Data!J139<>"",1,IF(Data!J139="","",0)) ->  | K139: =IF(Data!K139<>"",1,IF(Data!K139="","",0)) ->  | L139: =IF(Data!L139<>"",1,IF(Data!L139="","",0)) ->  | M139: =IF(Data!M139<>"",1,IF(Data!M139="","",0)) -> 
A140: 2009 | B140: 1071 | C140: =IF(Data!C140<>"",1,IF(Data!C140="","",0)) ->  | D140: =IF(Data!D140<>"",1,IF(Data!D140="","",0)) -> 1 | E140: =IF(Data!E140<>"",1,IF(Data!E140="","",0)) -> 1 | F140: =IF(Data!F140<>"",1,IF(Data!F140="","",0)) -> 1 | G140: =IF(Data!G140<>"",1,IF(Data!G140="","",0)) -> 1 | H140: =IF(Data!H140<>"",1,IF(Data!H140="","",0)) -> 1 | I140: =IF(Data!I140<>"",1,IF(Data!I140="","",0)) -> 1 | J140: =IF(Data!J140<>"",1,IF(Data!J140="","",0)) -> 1 | K140: =IF(Data!K140<>"",1,IF(Data!K140="","",0)) ->  | L140: =IF(Data!L140<>"",1,IF(Data!L140="","",0)) ->  | M140: =IF(Data!M140<>"",1,IF(Data!M140="","",0)) -> 
A141: 2009 | B141: 1072 | C141: =IF(Data!C141<>"",1,IF(Data!C141="","",0)) ->  | D141: =IF(Data!D141<>"",1,IF(Data!D141="","",0)) -> 1 | E141: =IF(Data!E141<>"",1,IF(Data!E141="","",0)) -> 1 | F141: =IF(Data!F141<>"",1,IF(Data!F141="","",0)) -> 1 | G141: =IF(Data!G141<>"",1,IF(Data!G141="","",0)) -> 1 | H141: =IF(Data!H141<>"",1,IF(Data!H141="","",0)) -> 1 | I141: =IF(Data!I141<>"",1,IF(Data!I141="","",0)) -> 1 | J141: =IF(Data!J141<>"",1,IF(Data!J141="","",0)) -> 1 | K141: =IF(Data!K141<>"",1,IF(Data!K141="","",0)) ->  | L141: =IF(Data!L141<>"",1,IF(Data!L141="","",0)) ->  | M141: =IF(Data!M141<>"",1,IF(Data!M141="","",0)) -> 
A142: 2009 | B142: 1090 | C142: =IF(Data!C142<>"",1,IF(Data!C142="","",0)) ->  | D142: =IF(Data!D142<>"",1,IF(Data!D142="","",0)) ->  | E142: =IF(Data!E142<>"",1,IF(Data!E142="","",0)) ->  | F142: =IF(Data!F142<>"",1,IF(Data!F142="","",0)) -> 1 | G142: =IF(Data!G142<>"",1,IF(Data!G142="","",0)) -> 1 | H142: =IF(Data!H142<>"",1,IF(Data!H142="","",0)) -> 1 | I142: =IF(Data!I142<>"",1,IF(Data!I142="","",0)) -> 1 | J142: =IF(Data!J142<>"",1,IF(Data!J142="","",0)) -> 1 | K142: =IF(Data!K142<>"",1,IF(Data!K142="","",0)) ->  | L142: =IF(Data!L142<>"",1,IF(Data!L142="","",0)) ->  | M142: =IF(Data!M142<>"",1,IF(Data!M142="","",0)) -> 
A143: 2009 | B143: 1101 | C143: =IF(Data!C143<>"",1,IF(Data!C143="","",0)) ->  | D143: =IF(Data!D143<>"",1,IF(Data!D143="","",0)) ->  | E143: =IF(Data!E143<>"",1,IF(Data!E143="","",0)) ->  | F143: =IF(Data!F143<>"",1,IF(Data!F143="","",0)) ->  | G143: =IF(Data!G143<>"",1,IF(Data!G143="","",0)) -> 1 | H143: =IF(Data!H143<>"",1,IF(Data!H143="","",0)) -> 1 | I143: =IF(Data!I143<>"",1,IF(Data!I143="","",0)) -> 1 | J143: =IF(Data!J143<>"",1,IF(Data!J143="","",0)) -> 1 | K143: =IF(Data!K143<>"",1,IF(Data!K143="","",0)) ->  | L143: =IF(Data!L143<>"",1,IF(Data!L143="","",0)) ->  | M143: =IF(Data!M143<>"",1,IF(Data!M143="","",0)) -> 
A144: 2009 | B144: 1488 | C144: =IF(Data!C144<>"",1,IF(Data!C144="","",0)) ->  | D144: =IF(Data!D144<>"",1,IF(Data!D144="","",0)) ->  | E144: =IF(Data!E144<>"",1,IF(Data!E144="","",0)) ->  | F144: =IF(Data!F144<>"",1,IF(Data!F144="","",0)) ->  | G144: =IF(Data!G144<>"",1,IF(Data!G144="","",0)) -> 1 | H144: =IF(Data!H144<>"",1,IF(Data!H144="","",0)) -> 1 | I144: =IF(Data!I144<>"",1,IF(Data!I144="","",0)) -> 1 | J144: =IF(Data!J144<>"",1,IF(Data!J144="","",0)) -> 1 | K144: =IF(Data!K144<>"",1,IF(Data!K144="","",0)) ->  | L144: =IF(Data!L144<>"",1,IF(Data!L144="","",0)) ->  | M144: =IF(Data!M144<>"",1,IF(Data!M144="","",0)) -> 
A145: 2009 | B145: 1494 | C145: =IF(Data!C145<>"",1,IF(Data!C145="","",0)) ->  | D145: =IF(Data!D145<>"",1,IF(Data!D145="","",0)) -> 1 | E145: =IF(Data!E145<>"",1,IF(Data!E145="","",0)) -> 1 | F145: =IF(Data!F145<>"",1,IF(Data!F145="","",0)) -> 1 | G145: =IF(Data!G145<>"",1,IF(Data!G145="","",0)) -> 1 | H145: =IF(Data!H145<>"",1,IF(Data!H145="","",0)) -> 1 | I145: =IF(Data!I145<>"",1,IF(Data!I145="","",0)) -> 1 | J145: =IF(Data!J145<>"",1,IF(Data!J145="","",0)) -> 1 | K145: =IF(Data!K145<>"",1,IF(Data!K145="","",0)) ->  | L145: =IF(Data!L145<>"",1,IF(Data!L145="","",0)) ->  | M145: =IF(Data!M145<>"",1,IF(Data!M145="","",0)) -> 
A146: 2009 | B146: 1501 | C146: =IF(Data!C146<>"",1,IF(Data!C146="","",0)) ->  | D146: =IF(Data!D146<>"",1,IF(Data!D146="","",0)) ->  | E146: =IF(Data!E146<>"",1,IF(Data!E146="","",0)) ->  | F146: =IF(Data!F146<>"",1,IF(Data!F146="","",0)) ->  | G146: =IF(Data!G146<>"",1,IF(Data!G146="","",0)) -> 1 | H146: =IF(Data!H146<>"",1,IF(Data!H146="","",0)) -> 1 | I146: =IF(Data!I146<>"",1,IF(Data!I146="","",0)) -> 1 | J146: =IF(Data!J146<>"",1,IF(Data!J146="","",0)) -> 1 | K146: =IF(Data!K146<>"",1,IF(Data!K146="","",0)) ->  | L146: =IF(Data!L146<>"",1,IF(Data!L146="","",0)) ->  | M146: =IF(Data!M146<>"",1,IF(Data!M146="","",0)) -> 
A147: 2009 | B147: 1510 | C147: =IF(Data!C147<>"",1,IF(Data!C147="","",0)) ->  | D147: =IF(Data!D147<>"",1,IF(Data!D147="","",0)) ->  | E147: =IF(Data!E147<>"",1,IF(Data!E147="","",0)) ->  | F147: =IF(Data!F147<>"",1,IF(Data!F147="","",0)) ->  | G147: =IF(Data!G147<>"",1,IF(Data!G147="","",0)) -> 1 | H147: =IF(Data!H147<>"",1,IF(Data!H147="","",0)) -> 1 | I147: =IF(Data!I147<>"",1,IF(Data!I147="","",0)) -> 1 | J147: =IF(Data!J147<>"",1,IF(Data!J147="","",0)) -> 1 | K147: =IF(Data!K147<>"",1,IF(Data!K147="","",0)) ->  | L147: =IF(Data!L147<>"",1,IF(Data!L147="","",0)) ->  | M147: =IF(Data!M147<>"",1,IF(Data!M147="","",0)) -> 
A148: 2010 | B148: 837 | C148: =IF(Data!C148<>"",1,IF(Data!C148="","",0)) ->  | D148: =IF(Data!D148<>"",1,IF(Data!D148="","",0)) ->  | E148: =IF(Data!E148<>"",1,IF(Data!E148="","",0)) ->  | F148: =IF(Data!F148<>"",1,IF(Data!F148="","",0)) -> 1 | G148: =IF(Data!G148<>"",1,IF(Data!G148="","",0)) ->  | H148: =IF(Data!H148<>"",1,IF(Data!H148="","",0)) ->  | I148: =IF(Data!I148<>"",1,IF(Data!I148="","",0)) ->  | J148: =IF(Data!J148<>"",1,IF(Data!J148="","",0)) ->  | K148: =IF(Data!K148<>"",1,IF(Data!K148="","",0)) ->  | L148: =IF(Data!L148<>"",1,IF(Data!L148="","",0)) ->  | M148: =IF(Data!M148<>"",1,IF(Data!M148="","",0)) -> 
A149: 2010 | B149: 838 | C149: =IF(Data!C149<>"",1,IF(Data!C149="","",0)) ->  | D149: =IF(Data!D149<>"",1,IF(Data!D149="","",0)) ->  | E149: =IF(Data!E149<>"",1,IF(Data!E149="","",0)) -> 1 | F149: =IF(Data!F149<>"",1,IF(Data!F149="","",0)) -> 1 | G149: =IF(Data!G149<>"",1,IF(Data!G149="","",0)) -> 1 | H149: =IF(Data!H149<>"",1,IF(Data!H149="","",0)) -> 1 | I149: =IF(Data!I149<>"",1,IF(Data!I149="","",0)) -> 1 | J149: =IF(Data!J149<>"",1,IF(Data!J149="","",0)) ->  | K149: =IF(Data!K149<>"",1,IF(Data!K149="","",0)) ->  | L149: =IF(Data!L149<>"",1,IF(Data!L149="","",0)) ->  | M149: =IF(Data!M149<>"",1,IF(Data!M149="","",0)) -> 
A150: 2010 | B150: 910 | C150: =IF(Data!C150<>"",1,IF(Data!C150="","",0)) -> 1 | D150: =IF(Data!D150<>"",1,IF(Data!D150="","",0)) -> 1 | E150: =IF(Data!E150<>"",1,IF(Data!E150="","",0)) -> 1 | F150: =IF(Data!F150<>"",1,IF(Data!F150="","",0)) -> 1 | G150: =IF(Data!G150<>"",1,IF(Data!G150="","",0)) -> 1 | H150: =IF(Data!H150<>"",1,IF(Data!H150="","",0)) -> 1 | I150: =IF(Data!I150<>"",1,IF(Data!I150="","",0)) -> 1 | J150: =IF(Data!J150<>"",1,IF(Data!J150="","",0)) ->  | K150: =IF(Data!K150<>"",1,IF(Data!K150="","",0)) ->  | L150: =IF(Data!L150<>"",1,IF(Data!L150="","",0)) ->  | M150: =IF(Data!M150<>"",1,IF(Data!M150="","",0)) -> 
A151: 2010 | B151: 911 | C151: =IF(Data!C151<>"",1,IF(Data!C151="","",0)) ->  | D151: =IF(Data!D151<>"",1,IF(Data!D151="","",0)) -> 1 | E151: =IF(Data!E151<>"",1,IF(Data!E151="","",0)) -> 1 | F151: =IF(Data!F151<>"",1,IF(Data!F151="","",0)) -> 1 | G151: =IF(Data!G151<>"",1,IF(Data!G151="","",0)) -> 1 | H151: =IF(Data!H151<>"",1,IF(Data!H151="","",0)) -> 1 | I151: =IF(Data!I151<>"",1,IF(Data!I151="","",0)) -> 1 | J151: =IF(Data!J151<>"",1,IF(Data!J151="","",0)) ->  | K151: =IF(Data!K151<>"",1,IF(Data!K151="","",0)) ->  | L151: =IF(Data!L151<>"",1,IF(Data!L151="","",0)) ->  | M151: =IF(Data!M151<>"",1,IF(Data!M151="","",0)) -> 
A152: 2010 | B152: 916 | C152: =IF(Data!C152<>"",1,IF(Data!C152="","",0)) ->  | D152: =IF(Data!D152<>"",1,IF(Data!D152="","",0)) -> 1 | E152: =IF(Data!E152<>"",1,IF(Data!E152="","",0)) -> 1 | F152: =IF(Data!F152<>"",1,IF(Data!F152="","",0)) -> 1 | G152: =IF(Data!G152<>"",1,IF(Data!G152="","",0)) -> 1 | H152: =IF(Data!H152<>"",1,IF(Data!H152="","",0)) -> 1 | I152: =IF(Data!I152<>"",1,IF(Data!I152="","",0)) -> 1 | J152: =IF(Data!J152<>"",1,IF(Data!J152="","",0)) ->  | K152: =IF(Data!K152<>"",1,IF(Data!K152="","",0)) ->  | L152: =IF(Data!L152<>"",1,IF(Data!L152="","",0)) ->  | M152: =IF(Data!M152<>"",1,IF(Data!M152="","",0)) -> 
A153: 2010 | B153: 917 | C153: =IF(Data!C153<>"",1,IF(Data!C153="","",0)) ->  | D153: =IF(Data!D153<>"",1,IF(Data!D153="","",0)) -> 1 | E153: =IF(Data!E153<>"",1,IF(Data!E153="","",0)) -> 1 | F153: =IF(Data!F153<>"",1,IF(Data!F153="","",0)) -> 1 | G153: =IF(Data!G153<>"",1,IF(Data!G153="","",0)) -> 1 | H153: =IF(Data!H153<>"",1,IF(Data!H153="","",0)) -> 1 | I153: =IF(Data!I153<>"",1,IF(Data!I153="","",0)) -> 1 | J153: =IF(Data!J153<>"",1,IF(Data!J153="","",0)) ->  | K153: =IF(Data!K153<>"",1,IF(Data!K153="","",0)) ->  | L153: =IF(Data!L153<>"",1,IF(Data!L153="","",0)) ->  | M153: =IF(Data!M153<>"",1,IF(Data!M153="","",0)) -> 
A154: 2010 | B154: 918 | C154: =IF(Data!C154<>"",1,IF(Data!C154="","",0)) ->  | D154: =IF(Data!D154<>"",1,IF(Data!D154="","",0)) -> 1 | E154: =IF(Data!E154<>"",1,IF(Data!E154="","",0)) -> 1 | F154: =IF(Data!F154<>"",1,IF(Data!F154="","",0)) -> 1 | G154: =IF(Data!G154<>"",1,IF(Data!G154="","",0)) -> 1 | H154: =IF(Data!H154<>"",1,IF(Data!H154="","",0)) -> 1 | I154: =IF(Data!I154<>"",1,IF(Data!I154="","",0)) -> 1 | J154: =IF(Data!J154<>"",1,IF(Data!J154="","",0)) ->  | K154: =IF(Data!K154<>"",1,IF(Data!K154="","",0)) ->  | L154: =IF(Data!L154<>"",1,IF(Data!L154="","",0)) ->  | M154: =IF(Data!M154<>"",1,IF(Data!M154="","",0)) -> 
A155: 2010 | B155: 920 | C155: =IF(Data!C155<>"",1,IF(Data!C155="","",0)) ->  | D155: =IF(Data!D155<>"",1,IF(Data!D155="","",0)) -> 1 | E155: =IF(Data!E155<>"",1,IF(Data!E155="","",0)) -> 1 | F155: =IF(Data!F155<>"",1,IF(Data!F155="","",0)) -> 1 | G155: =IF(Data!G155<>"",1,IF(Data!G155="","",0)) -> 1 | H155: =IF(Data!H155<>"",1,IF(Data!H155="","",0)) -> 1 | I155: =IF(Data!I155<>"",1,IF(Data!I155="","",0)) -> 1 | J155: =IF(Data!J155<>"",1,IF(Data!J155="","",0)) ->  | K155: =IF(Data!K155<>"",1,IF(Data!K155="","",0)) ->  | L155: =IF(Data!L155<>"",1,IF(Data!L155="","",0)) ->  | M155: =IF(Data!M155<>"",1,IF(Data!M155="","",0)) -> 
A156: 2010 | B156: 923 | C156: =IF(Data!C156<>"",1,IF(Data!C156="","",0)) ->  | D156: =IF(Data!D156<>"",1,IF(Data!D156="","",0)) -> 1 | E156: =IF(Data!E156<>"",1,IF(Data!E156="","",0)) -> 1 | F156: =IF(Data!F156<>"",1,IF(Data!F156="","",0)) -> 1 | G156: =IF(Data!G156<>"",1,IF(Data!G156="","",0)) -> 1 | H156: =IF(Data!H156<>"",1,IF(Data!H156="","",0)) -> 1 | I156: =IF(Data!I156<>"",1,IF(Data!I156="","",0)) -> 1 | J156: =IF(Data!J156<>"",1,IF(Data!J156="","",0)) ->  | K156: =IF(Data!K156<>"",1,IF(Data!K156="","",0)) ->  | L156: =IF(Data!L156<>"",1,IF(Data!L156="","",0)) ->  | M156: =IF(Data!M156<>"",1,IF(Data!M156="","",0)) -> 
A157: 2010 | B157: 924 | C157: =IF(Data!C157<>"",1,IF(Data!C157="","",0)) ->  | D157: =IF(Data!D157<>"",1,IF(Data!D157="","",0)) -> 1 | E157: =IF(Data!E157<>"",1,IF(Data!E157="","",0)) -> 1 | F157: =IF(Data!F157<>"",1,IF(Data!F157="","",0)) -> 1 | G157: =IF(Data!G157<>"",1,IF(Data!G157="","",0)) -> 1 | H157: =IF(Data!H157<>"",1,IF(Data!H157="","",0)) -> 1 | I157: =IF(Data!I157<>"",1,IF(Data!I157="","",0)) -> 1 | J157: =IF(Data!J157<>"",1,IF(Data!J157="","",0)) ->  | K157: =IF(Data!K157<>"",1,IF(Data!K157="","",0)) ->  | L157: =IF(Data!L157<>"",1,IF(Data!L157="","",0)) ->  | M157: =IF(Data!M157<>"",1,IF(Data!M157="","",0)) -> 
A158: 2010 | B158: 925 | C158: =IF(Data!C158<>"",1,IF(Data!C158="","",0)) ->  | D158: =IF(Data!D158<>"",1,IF(Data!D158="","",0)) -> 1 | E158: =IF(Data!E158<>"",1,IF(Data!E158="","",0)) -> 1 | F158: =IF(Data!F158<>"",1,IF(Data!F158="","",0)) -> 1 | G158: =IF(Data!G158<>"",1,IF(Data!G158="","",0)) -> 1 | H158: =IF(Data!H158<>"",1,IF(Data!H158="","",0)) -> 1 | I158: =IF(Data!I158<>"",1,IF(Data!I158="","",0)) -> 1 | J158: =IF(Data!J158<>"",1,IF(Data!J158="","",0)) ->  | K158: =IF(Data!K158<>"",1,IF(Data!K158="","",0)) ->  | L158: =IF(Data!L158<>"",1,IF(Data!L158="","",0)) ->  | M158: =IF(Data!M158<>"",1,IF(Data!M158="","",0)) -> 
A159: 2010 | B159: 926 | C159: =IF(Data!C159<>"",1,IF(Data!C159="","",0)) ->  | D159: =IF(Data!D159<>"",1,IF(Data!D159="","",0)) -> 1 | E159: =IF(Data!E159<>"",1,IF(Data!E159="","",0)) -> 1 | F159: =IF(Data!F159<>"",1,IF(Data!F159="","",0)) -> 1 | G159: =IF(Data!G159<>"",1,IF(Data!G159="","",0)) -> 1 | H159: =IF(Data!H159<>"",1,IF(Data!H159="","",0)) -> 1 | I159: =IF(Data!I159<>"",1,IF(Data!I159="","",0)) -> 1 | J159: =IF(Data!J159<>"",1,IF(Data!J159="","",0)) ->  | K159: =IF(Data!K159<>"",1,IF(Data!K159="","",0)) ->  | L159: =IF(Data!L159<>"",1,IF(Data!L159="","",0)) ->  | M159: =IF(Data!M159<>"",1,IF(Data!M159="","",0)) -> 
A160: 2010 | B160: 927 | C160: =IF(Data!C160<>"",1,IF(Data!C160="","",0)) ->  | D160: =IF(Data!D160<>"",1,IF(Data!D160="","",0)) -> 1 | E160: =IF(Data!E160<>"",1,IF(Data!E160="","",0)) -> 1 | F160: =IF(Data!F160<>"",1,IF(Data!F160="","",0)) -> 1 | G160: =IF(Data!G160<>"",1,IF(Data!G160="","",0)) -> 1 | H160: =IF(Data!H160<>"",1,IF(Data!H160="","",0)) -> 1 | I160: =IF(Data!I160<>"",1,IF(Data!I160="","",0)) -> 1 | J160: =IF(Data!J160<>"",1,IF(Data!J160="","",0)) ->  | K160: =IF(Data!K160<>"",1,IF(Data!K160="","",0)) ->  | L160: =IF(Data!L160<>"",1,IF(Data!L160="","",0)) ->  | M160: =IF(Data!M160<>"",1,IF(Data!M160="","",0)) -> 
A161: 2010 | B161: 928 | C161: =IF(Data!C161<>"",1,IF(Data!C161="","",0)) ->  | D161: =IF(Data!D161<>"",1,IF(Data!D161="","",0)) -> 1 | E161: =IF(Data!E161<>"",1,IF(Data!E161="","",0)) -> 1 | F161: =IF(Data!F161<>"",1,IF(Data!F161="","",0)) -> 1 | G161: =IF(Data!G161<>"",1,IF(Data!G161="","",0)) -> 1 | H161: =IF(Data!H161<>"",1,IF(Data!H161="","",0)) -> 1 | I161: =IF(Data!I161<>"",1,IF(Data!I161="","",0)) -> 1 | J161: =IF(Data!J161<>"",1,IF(Data!J161="","",0)) ->  | K161: =IF(Data!K161<>"",1,IF(Data!K161="","",0)) ->  | L161: =IF(Data!L161<>"",1,IF(Data!L161="","",0)) ->  | M161: =IF(Data!M161<>"",1,IF(Data!M161="","",0)) -> 
A162: 2010 | B162: 929 | C162: =IF(Data!C162<>"",1,IF(Data!C162="","",0)) ->  | D162: =IF(Data!D162<>"",1,IF(Data!D162="","",0)) -> 1 | E162: =IF(Data!E162<>"",1,IF(Data!E162="","",0)) -> 1 | F162: =IF(Data!F162<>"",1,IF(Data!F162="","",0)) -> 1 | G162: =IF(Data!G162<>"",1,IF(Data!G162="","",0)) -> 1 | H162: =IF(Data!H162<>"",1,IF(Data!H162="","",0)) -> 1 | I162: =IF(Data!I162<>"",1,IF(Data!I162="","",0)) -> 1 | J162: =IF(Data!J162<>"",1,IF(Data!J162="","",0)) ->  | K162: =IF(Data!K162<>"",1,IF(Data!K162="","",0)) ->  | L162: =IF(Data!L162<>"",1,IF(Data!L162="","",0)) ->  | M162: =IF(Data!M162<>"",1,IF(Data!M162="","",0)) -> 
A163: 2010 | B163: 934 | C163: =IF(Data!C163<>"",1,IF(Data!C163="","",0)) ->  | D163: =IF(Data!D163<>"",1,IF(Data!D163="","",0)) ->  | E163: =IF(Data!E163<>"",1,IF(Data!E163="","",0)) -> 1 | F163: =IF(Data!F163<>"",1,IF(Data!F163="","",0)) -> 1 | G163: =IF(Data!G163<>"",1,IF(Data!G163="","",0)) -> 1 | H163: =IF(Data!H163<>"",1,IF(Data!H163="","",0)) -> 1 | I163: =IF(Data!I163<>"",1,IF(Data!I163="","",0)) -> 1 | J163: =IF(Data!J163<>"",1,IF(Data!J163="","",0)) ->  | K163: =IF(Data!K163<>"",1,IF(Data!K163="","",0)) ->  | L163: =IF(Data!L163<>"",1,IF(Data!L163="","",0)) ->  | M163: =IF(Data!M163<>"",1,IF(Data!M163="","",0)) -> 
A164: 2010 | B164: 946 | C164: =IF(Data!C164<>"",1,IF(Data!C164="","",0)) ->  | D164: =IF(Data!D164<>"",1,IF(Data!D164="","",0)) ->  | E164: =IF(Data!E164<>"",1,IF(Data!E164="","",0)) -> 1 | F164: =IF(Data!F164<>"",1,IF(Data!F164="","",0)) -> 1 | G164: =IF(Data!G164<>"",1,IF(Data!G164="","",0)) -> 1 | H164: =IF(Data!H164<>"",1,IF(Data!H164="","",0)) -> 1 | I164: =IF(Data!I164<>"",1,IF(Data!I164="","",0)) -> 1 | J164: =IF(Data!J164<>"",1,IF(Data!J164="","",0)) ->  | K164: =IF(Data!K164<>"",1,IF(Data!K164="","",0)) ->  | L164: =IF(Data!L164<>"",1,IF(Data!L164="","",0)) ->  | M164: =IF(Data!M164<>"",1,IF(Data!M164="","",0)) -> 
A165: 2010 | B165: 953 | C165: =IF(Data!C165<>"",1,IF(Data!C165="","",0)) ->  | D165: =IF(Data!D165<>"",1,IF(Data!D165="","",0)) ->  | E165: =IF(Data!E165<>"",1,IF(Data!E165="","",0)) ->  | F165: =IF(Data!F165<>"",1,IF(Data!F165="","",0)) -> 1 | G165: =IF(Data!G165<>"",1,IF(Data!G165="","",0)) -> 1 | H165: =IF(Data!H165<>"",1,IF(Data!H165="","",0)) -> 1 | I165: =IF(Data!I165<>"",1,IF(Data!I165="","",0)) -> 1 | J165: =IF(Data!J165<>"",1,IF(Data!J165="","",0)) ->  | K165: =IF(Data!K165<>"",1,IF(Data!K165="","",0)) ->  | L165: =IF(Data!L165<>"",1,IF(Data!L165="","",0)) ->  | M165: =IF(Data!M165<>"",1,IF(Data!M165="","",0)) -> 
A166: 2010 | B166: 966 | C166: =IF(Data!C166<>"",1,IF(Data!C166="","",0)) ->  | D166: =IF(Data!D166<>"",1,IF(Data!D166="","",0)) ->  | E166: =IF(Data!E166<>"",1,IF(Data!E166="","",0)) ->  | F166: =IF(Data!F166<>"",1,IF(Data!F166="","",0)) ->  | G166: =IF(Data!G166<>"",1,IF(Data!G166="","",0)) -> 1 | H166: =IF(Data!H166<>"",1,IF(Data!H166="","",0)) -> 1 | I166: =IF(Data!I166<>"",1,IF(Data!I166="","",0)) -> 1 | J166: =IF(Data!J166<>"",1,IF(Data!J166="","",0)) ->  | K166: =IF(Data!K166<>"",1,IF(Data!K166="","",0)) ->  | L166: =IF(Data!L166<>"",1,IF(Data!L166="","",0)) ->  | M166: =IF(Data!M166<>"",1,IF(Data!M166="","",0)) -> 
A167: 2010 | B167: 994 | C167: =IF(Data!C167<>"",1,IF(Data!C167="","",0)) ->  | D167: =IF(Data!D167<>"",1,IF(Data!D167="","",0)) ->  | E167: =IF(Data!E167<>"",1,IF(Data!E167="","",0)) ->  | F167: =IF(Data!F167<>"",1,IF(Data!F167="","",0)) ->  | G167: =IF(Data!G167<>"",1,IF(Data!G167="","",0)) -> 1 | H167: =IF(Data!H167<>"",1,IF(Data!H167="","",0)) -> 1 | I167: =IF(Data!I167<>"",1,IF(Data!I167="","",0)) -> 1 | J167: =IF(Data!J167<>"",1,IF(Data!J167="","",0)) ->  | K167: =IF(Data!K167<>"",1,IF(Data!K167="","",0)) ->  | L167: =IF(Data!L167<>"",1,IF(Data!L167="","",0)) ->  | M167: =IF(Data!M167<>"",1,IF(Data!M167="","",0)) -> 
A168: 2010 | B168: 996 | C168: =IF(Data!C168<>"",1,IF(Data!C168="","",0)) ->  | D168: =IF(Data!D168<>"",1,IF(Data!D168="","",0)) ->  | E168: =IF(Data!E168<>"",1,IF(Data!E168="","",0)) ->  | F168: =IF(Data!F168<>"",1,IF(Data!F168="","",0)) ->  | G168: =IF(Data!G168<>"",1,IF(Data!G168="","",0)) -> 1 | H168: =IF(Data!H168<>"",1,IF(Data!H168="","",0)) -> 1 | I168: =IF(Data!I168<>"",1,IF(Data!I168="","",0)) -> 1 | J168: =IF(Data!J168<>"",1,IF(Data!J168="","",0)) ->  | K168: =IF(Data!K168<>"",1,IF(Data!K168="","",0)) ->  | L168: =IF(Data!L168<>"",1,IF(Data!L168="","",0)) ->  | M168: =IF(Data!M168<>"",1,IF(Data!M168="","",0)) -> 
A169: 2010 | B169: 997 | C169: =IF(Data!C169<>"",1,IF(Data!C169="","",0)) ->  | D169: =IF(Data!D169<>"",1,IF(Data!D169="","",0)) ->  | E169: =IF(Data!E169<>"",1,IF(Data!E169="","",0)) ->  | F169: =IF(Data!F169<>"",1,IF(Data!F169="","",0)) ->  | G169: =IF(Data!G169<>"",1,IF(Data!G169="","",0)) -> 1 | H169: =IF(Data!H169<>"",1,IF(Data!H169="","",0)) -> 1 | I169: =IF(Data!I169<>"",1,IF(Data!I169="","",0)) -> 1 | J169: =IF(Data!J169<>"",1,IF(Data!J169="","",0)) ->  | K169: =IF(Data!K169<>"",1,IF(Data!K169="","",0)) ->  | L169: =IF(Data!L169<>"",1,IF(Data!L169="","",0)) ->  | M169: =IF(Data!M169<>"",1,IF(Data!M169="","",0)) -> 
A170: 2010 | B170: 998 | C170: =IF(Data!C170<>"",1,IF(Data!C170="","",0)) ->  | D170: =IF(Data!D170<>"",1,IF(Data!D170="","",0)) ->  | E170: =IF(Data!E170<>"",1,IF(Data!E170="","",0)) ->  | F170: =IF(Data!F170<>"",1,IF(Data!F170="","",0)) ->  | G170: =IF(Data!G170<>"",1,IF(Data!G170="","",0)) -> 1 | H170: =IF(Data!H170<>"",1,IF(Data!H170="","",0)) -> 1 | I170: =IF(Data!I170<>"",1,IF(Data!I170="","",0)) -> 1 | J170: =IF(Data!J170<>"",1,IF(Data!J170="","",0)) ->  | K170: =IF(Data!K170<>"",1,IF(Data!K170="","",0)) ->  | L170: =IF(Data!L170<>"",1,IF(Data!L170="","",0)) ->  | M170: =IF(Data!M170<>"",1,IF(Data!M170="","",0)) -> 
A171: 2010 | B171: 999 | C171: =IF(Data!C171<>"",1,IF(Data!C171="","",0)) ->  | D171: =IF(Data!D171<>"",1,IF(Data!D171="","",0)) ->  | E171: =IF(Data!E171<>"",1,IF(Data!E171="","",0)) ->  | F171: =IF(Data!F171<>"",1,IF(Data!F171="","",0)) ->  | G171: =IF(Data!G171<>"",1,IF(Data!G171="","",0)) -> 1 | H171: =IF(Data!H171<>"",1,IF(Data!H171="","",0)) -> 1 | I171: =IF(Data!I171<>"",1,IF(Data!I171="","",0)) -> 1 | J171: =IF(Data!J171<>"",1,IF(Data!J171="","",0)) ->  | K171: =IF(Data!K171<>"",1,IF(Data!K171="","",0)) ->  | L171: =IF(Data!L171<>"",1,IF(Data!L171="","",0)) ->  | M171: =IF(Data!M171<>"",1,IF(Data!M171="","",0)) -> 
A172: 2010 | B172: 1000 | C172: =IF(Data!C172<>"",1,IF(Data!C172="","",0)) ->  | D172: =IF(Data!D172<>"",1,IF(Data!D172="","",0)) ->  | E172: =IF(Data!E172<>"",1,IF(Data!E172="","",0)) ->  | F172: =IF(Data!F172<>"",1,IF(Data!F172="","",0)) ->  | G172: =IF(Data!G172<>"",1,IF(Data!G172="","",0)) -> 1 | H172: =IF(Data!H172<>"",1,IF(Data!H172="","",0)) -> 1 | I172: =IF(Data!I172<>"",1,IF(Data!I172="","",0)) -> 1 | J172: =IF(Data!J172<>"",1,IF(Data!J172="","",0)) ->  | K172: =IF(Data!K172<>"",1,IF(Data!K172="","",0)) ->  | L172: =IF(Data!L172<>"",1,IF(Data!L172="","",0)) ->  | M172: =IF(Data!M172<>"",1,IF(Data!M172="","",0)) -> 
A173: 2010 | B173: 1001 | C173: =IF(Data!C173<>"",1,IF(Data!C173="","",0)) ->  | D173: =IF(Data!D173<>"",1,IF(Data!D173="","",0)) ->  | E173: =IF(Data!E173<>"",1,IF(Data!E173="","",0)) ->  | F173: =IF(Data!F173<>"",1,IF(Data!F173="","",0)) ->  | G173: =IF(Data!G173<>"",1,IF(Data!G173="","",0)) -> 1 | H173: =IF(Data!H173<>"",1,IF(Data!H173="","",0)) -> 1 | I173: =IF(Data!I173<>"",1,IF(Data!I173="","",0)) -> 1 | J173: =IF(Data!J173<>"",1,IF(Data!J173="","",0)) ->  | K173: =IF(Data!K173<>"",1,IF(Data!K173="","",0)) ->  | L173: =IF(Data!L173<>"",1,IF(Data!L173="","",0)) ->  | M173: =IF(Data!M173<>"",1,IF(Data!M173="","",0)) -> 
A174: 2010 | B174: 1002 | C174: =IF(Data!C174<>"",1,IF(Data!C174="","",0)) ->  | D174: =IF(Data!D174<>"",1,IF(Data!D174="","",0)) ->  | E174: =IF(Data!E174<>"",1,IF(Data!E174="","",0)) ->  | F174: =IF(Data!F174<>"",1,IF(Data!F174="","",0)) ->  | G174: =IF(Data!G174<>"",1,IF(Data!G174="","",0)) -> 1 | H174: =IF(Data!H174<>"",1,IF(Data!H174="","",0)) -> 1 | I174: =IF(Data!I174<>"",1,IF(Data!I174="","",0)) -> 1 | J174: =IF(Data!J174<>"",1,IF(Data!J174="","",0)) ->  | K174: =IF(Data!K174<>"",1,IF(Data!K174="","",0)) ->  | L174: =IF(Data!L174<>"",1,IF(Data!L174="","",0)) ->  | M174: =IF(Data!M174<>"",1,IF(Data!M174="","",0)) -> 
A175: 2010 | B175: 1003 | C175: =IF(Data!C175<>"",1,IF(Data!C175="","",0)) ->  | D175: =IF(Data!D175<>"",1,IF(Data!D175="","",0)) ->  | E175: =IF(Data!E175<>"",1,IF(Data!E175="","",0)) ->  | F175: =IF(Data!F175<>"",1,IF(Data!F175="","",0)) ->  | G175: =IF(Data!G175<>"",1,IF(Data!G175="","",0)) -> 1 | H175: =IF(Data!H175<>"",1,IF(Data!H175="","",0)) -> 1 | I175: =IF(Data!I175<>"",1,IF(Data!I175="","",0)) -> 1 | J175: =IF(Data!J175<>"",1,IF(Data!J175="","",0)) ->  | K175: =IF(Data!K175<>"",1,IF(Data!K175="","",0)) ->  | L175: =IF(Data!L175<>"",1,IF(Data!L175="","",0)) ->  | M175: =IF(Data!M175<>"",1,IF(Data!M175="","",0)) -> 
A176: 2010 | B176: 1051 | C176: =IF(Data!C176<>"",1,IF(Data!C176="","",0)) ->  | D176: =IF(Data!D176<>"",1,IF(Data!D176="","",0)) -> 1 | E176: =IF(Data!E176<>"",1,IF(Data!E176="","",0)) -> 1 | F176: =IF(Data!F176<>"",1,IF(Data!F176="","",0)) -> 1 | G176: =IF(Data!G176<>"",1,IF(Data!G176="","",0)) -> 1 | H176: =IF(Data!H176<>"",1,IF(Data!H176="","",0)) -> 1 | I176: =IF(Data!I176<>"",1,IF(Data!I176="","",0)) -> 1 | J176: =IF(Data!J176<>"",1,IF(Data!J176="","",0)) ->  | K176: =IF(Data!K176<>"",1,IF(Data!K176="","",0)) ->  | L176: =IF(Data!L176<>"",1,IF(Data!L176="","",0)) ->  | M176: =IF(Data!M176<>"",1,IF(Data!M176="","",0)) -> 
A177: 2010 | B177: 1067 | C177: =IF(Data!C177<>"",1,IF(Data!C177="","",0)) -> 1 | D177: =IF(Data!D177<>"",1,IF(Data!D177="","",0)) -> 1 | E177: =IF(Data!E177<>"",1,IF(Data!E177="","",0)) -> 1 | F177: =IF(Data!F177<>"",1,IF(Data!F177="","",0)) -> 1 | G177: =IF(Data!G177<>"",1,IF(Data!G177="","",0)) -> 1 | H177: =IF(Data!H177<>"",1,IF(Data!H177="","",0)) -> 1 | I177: =IF(Data!I177<>"",1,IF(Data!I177="","",0)) -> 1 | J177: =IF(Data!J177<>"",1,IF(Data!J177="","",0)) ->  | K177: =IF(Data!K177<>"",1,IF(Data!K177="","",0)) ->  | L177: =IF(Data!L177<>"",1,IF(Data!L177="","",0)) ->  | M177: =IF(Data!M177<>"",1,IF(Data!M177="","",0)) -> 
A178: 2010 | B178: 1073 | C178: =IF(Data!C178<>"",1,IF(Data!C178="","",0)) -> 1 | D178: =IF(Data!D178<>"",1,IF(Data!D178="","",0)) -> 1 | E178: =IF(Data!E178<>"",1,IF(Data!E178="","",0)) -> 1 | F178: =IF(Data!F178<>"",1,IF(Data!F178="","",0)) -> 1 | G178: =IF(Data!G178<>"",1,IF(Data!G178="","",0)) -> 1 | H178: =IF(Data!H178<>"",1,IF(Data!H178="","",0)) -> 1 | I178: =IF(Data!I178<>"",1,IF(Data!I178="","",0)) -> 1 | J178: =IF(Data!J178<>"",1,IF(Data!J178="","",0)) ->  | K178: =IF(Data!K178<>"",1,IF(Data!K178="","",0)) ->  | L178: =IF(Data!L178<>"",1,IF(Data!L178="","",0)) ->  | M178: =IF(Data!M178<>"",1,IF(Data!M178="","",0)) -> 
A179: 2010 | B179: 1075 | C179: =IF(Data!C179<>"",1,IF(Data!C179="","",0)) -> 1 | D179: =IF(Data!D179<>"",1,IF(Data!D179="","",0)) -> 1 | E179: =IF(Data!E179<>"",1,IF(Data!E179="","",0)) -> 1 | F179: =IF(Data!F179<>"",1,IF(Data!F179="","",0)) -> 1 | G179: =IF(Data!G179<>"",1,IF(Data!G179="","",0)) -> 1 | H179: =IF(Data!H179<>"",1,IF(Data!H179="","",0)) -> 1 | I179: =IF(Data!I179<>"",1,IF(Data!I179="","",0)) -> 1 | J179: =IF(Data!J179<>"",1,IF(Data!J179="","",0)) ->  | K179: =IF(Data!K179<>"",1,IF(Data!K179="","",0)) ->  | L179: =IF(Data!L179<>"",1,IF(Data!L179="","",0)) ->  | M179: =IF(Data!M179<>"",1,IF(Data!M179="","",0)) -> 
A180: 2010 | B180: 1081 | C180: =IF(Data!C180<>"",1,IF(Data!C180="","",0)) ->  | D180: =IF(Data!D180<>"",1,IF(Data!D180="","",0)) ->  | E180: =IF(Data!E180<>"",1,IF(Data!E180="","",0)) ->  | F180: =IF(Data!F180<>"",1,IF(Data!F180="","",0)) ->  | G180: =IF(Data!G180<>"",1,IF(Data!G180="","",0)) ->  | H180: =IF(Data!H180<>"",1,IF(Data!H180="","",0)) -> 1 | I180: =IF(Data!I180<>"",1,IF(Data!I180="","",0)) -> 1 | J180: =IF(Data!J180<>"",1,IF(Data!J180="","",0)) ->  | K180: =IF(Data!K180<>"",1,IF(Data!K180="","",0)) ->  | L180: =IF(Data!L180<>"",1,IF(Data!L180="","",0)) ->  | M180: =IF(Data!M180<>"",1,IF(Data!M180="","",0)) -> 
A181: 2010 | B181: 1083 | C181: =IF(Data!C181<>"",1,IF(Data!C181="","",0)) ->  | D181: =IF(Data!D181<>"",1,IF(Data!D181="","",0)) ->  | E181: =IF(Data!E181<>"",1,IF(Data!E181="","",0)) -> 1 | F181: =IF(Data!F181<>"",1,IF(Data!F181="","",0)) -> 1 | G181: =IF(Data!G181<>"",1,IF(Data!G181="","",0)) -> 1 | H181: =IF(Data!H181<>"",1,IF(Data!H181="","",0)) -> 1 | I181: =IF(Data!I181<>"",1,IF(Data!I181="","",0)) -> 1 | J181: =IF(Data!J181<>"",1,IF(Data!J181="","",0)) ->  | K181: =IF(Data!K181<>"",1,IF(Data!K181="","",0)) ->  | L181: =IF(Data!L181<>"",1,IF(Data!L181="","",0)) ->  | M181: =IF(Data!M181<>"",1,IF(Data!M181="","",0)) -> 
A182: 2010 | B182: 1087 | C182: =IF(Data!C182<>"",1,IF(Data!C182="","",0)) ->  | D182: =IF(Data!D182<>"",1,IF(Data!D182="","",0)) ->  | E182: =IF(Data!E182<>"",1,IF(Data!E182="","",0)) -> 1 | F182: =IF(Data!F182<>"",1,IF(Data!F182="","",0)) -> 1 | G182: =IF(Data!G182<>"",1,IF(Data!G182="","",0)) -> 1 | H182: =IF(Data!H182<>"",1,IF(Data!H182="","",0)) -> 1 | I182: =IF(Data!I182<>"",1,IF(Data!I182="","",0)) -> 1 | J182: =IF(Data!J182<>"",1,IF(Data!J182="","",0)) ->  | K182: =IF(Data!K182<>"",1,IF(Data!K182="","",0)) ->  | L182: =IF(Data!L182<>"",1,IF(Data!L182="","",0)) ->  | M182: =IF(Data!M182<>"",1,IF(Data!M182="","",0)) -> 
A183: 2010 | B183: 1097 | C183: =IF(Data!C183<>"",1,IF(Data!C183="","",0)) ->  | D183: =IF(Data!D183<>"",1,IF(Data!D183="","",0)) ->  | E183: =IF(Data!E183<>"",1,IF(Data!E183="","",0)) -> 1 | F183: =IF(Data!F183<>"",1,IF(Data!F183="","",0)) -> 1 | G183: =IF(Data!G183<>"",1,IF(Data!G183="","",0)) -> 1 | H183: =IF(Data!H183<>"",1,IF(Data!H183="","",0)) -> 1 | I183: =IF(Data!I183<>"",1,IF(Data!I183="","",0)) -> 1 | J183: =IF(Data!J183<>"",1,IF(Data!J183="","",0)) ->  | K183: =IF(Data!K183<>"",1,IF(Data!K183="","",0)) ->  | L183: =IF(Data!L183<>"",1,IF(Data!L183="","",0)) ->  | M183: =IF(Data!M183<>"",1,IF(Data!M183="","",0)) -> 
A184: 2010 | B184: 1099 | C184: =IF(Data!C184<>"",1,IF(Data!C184="","",0)) ->  | D184: =IF(Data!D184<>"",1,IF(Data!D184="","",0)) ->  | E184: =IF(Data!E184<>"",1,IF(Data!E184="","",0)) ->  | F184: =IF(Data!F184<>"",1,IF(Data!F184="","",0)) -> 1 | G184: =IF(Data!G184<>"",1,IF(Data!G184="","",0)) -> 1 | H184: =IF(Data!H184<>"",1,IF(Data!H184="","",0)) -> 1 | I184: =IF(Data!I184<>"",1,IF(Data!I184="","",0)) -> 1 | J184: =IF(Data!J184<>"",1,IF(Data!J184="","",0)) ->  | K184: =IF(Data!K184<>"",1,IF(Data!K184="","",0)) ->  | L184: =IF(Data!L184<>"",1,IF(Data!L184="","",0)) ->  | M184: =IF(Data!M184<>"",1,IF(Data!M184="","",0)) -> 
A185: 2010 | B185: 1498 | C185: =IF(Data!C185<>"",1,IF(Data!C185="","",0)) ->  | D185: =IF(Data!D185<>"",1,IF(Data!D185="","",0)) -> 1 | E185: =IF(Data!E185<>"",1,IF(Data!E185="","",0)) -> 1 | F185: =IF(Data!F185<>"",1,IF(Data!F185="","",0)) -> 1 | G185: =IF(Data!G185<>"",1,IF(Data!G185="","",0)) -> 1 | H185: =IF(Data!H185<>"",1,IF(Data!H185="","",0)) -> 1 | I185: =IF(Data!I185<>"",1,IF(Data!I185="","",0)) -> 1 | J185: =IF(Data!J185<>"",1,IF(Data!J185="","",0)) ->  | K185: =IF(Data!K185<>"",1,IF(Data!K185="","",0)) ->  | L185: =IF(Data!L185<>"",1,IF(Data!L185="","",0)) ->  | M185: =IF(Data!M185<>"",1,IF(Data!M185="","",0)) -> 
A186: 2010 | B186: 1500 | C186: =IF(Data!C186<>"",1,IF(Data!C186="","",0)) ->  | D186: =IF(Data!D186<>"",1,IF(Data!D186="","",0)) -> 1 | E186: =IF(Data!E186<>"",1,IF(Data!E186="","",0)) -> 1 | F186: =IF(Data!F186<>"",1,IF(Data!F186="","",0)) -> 1 | G186: =IF(Data!G186<>"",1,IF(Data!G186="","",0)) -> 1 | H186: =IF(Data!H186<>"",1,IF(Data!H186="","",0)) -> 1 | I186: =IF(Data!I186<>"",1,IF(Data!I186="","",0)) -> 1 | J186: =IF(Data!J186<>"",1,IF(Data!J186="","",0)) ->  | K186: =IF(Data!K186<>"",1,IF(Data!K186="","",0)) ->  | L186: =IF(Data!L186<>"",1,IF(Data!L186="","",0)) ->  | M186: =IF(Data!M186<>"",1,IF(Data!M186="","",0)) -> 
A187: 2010 | B187: 1509 | C187: =IF(Data!C187<>"",1,IF(Data!C187="","",0)) ->  | D187: =IF(Data!D187<>"",1,IF(Data!D187="","",0)) ->  | E187: =IF(Data!E187<>"",1,IF(Data!E187="","",0)) ->  | F187: =IF(Data!F187<>"",1,IF(Data!F187="","",0)) -> 1 | G187: =IF(Data!G187<>"",1,IF(Data!G187="","",0)) -> 1 | H187: =IF(Data!H187<>"",1,IF(Data!H187="","",0)) -> 1 | I187: =IF(Data!I187<>"",1,IF(Data!I187="","",0)) -> 1 | J187: =IF(Data!J187<>"",1,IF(Data!J187="","",0)) ->  | K187: =IF(Data!K187<>"",1,IF(Data!K187="","",0)) ->  | L187: =IF(Data!L187<>"",1,IF(Data!L187="","",0)) ->  | M187: =IF(Data!M187<>"",1,IF(Data!M187="","",0)) -> 
A188: 2010 | B188: 1513 | C188: =IF(Data!C188<>"",1,IF(Data!C188="","",0)) ->  | D188: =IF(Data!D188<>"",1,IF(Data!D188="","",0)) ->  | E188: =IF(Data!E188<>"",1,IF(Data!E188="","",0)) ->  | F188: =IF(Data!F188<>"",1,IF(Data!F188="","",0)) ->  | G188: =IF(Data!G188<>"",1,IF(Data!G188="","",0)) ->  | H188: =IF(Data!H188<>"",1,IF(Data!H188="","",0)) -> 1 | I188: =IF(Data!I188<>"",1,IF(Data!I188="","",0)) -> 1 | J188: =IF(Data!J188<>"",1,IF(Data!J188="","",0)) ->  | K188: =IF(Data!K188<>"",1,IF(Data!K188="","",0)) ->  | L188: =IF(Data!L188<>"",1,IF(Data!L188="","",0)) ->  | M188: =IF(Data!M188<>"",1,IF(Data!M188="","",0)) -> 
A189: 2011 | B189: 840 | C189: =IF(Data!C189<>"",1,IF(Data!C189="","",0)) ->  | D189: =IF(Data!D189<>"",1,IF(Data!D189="","",0)) ->  | E189: =IF(Data!E189<>"",1,IF(Data!E189="","",0)) ->  | F189: =IF(Data!F189<>"",1,IF(Data!F189="","",0)) -> 1 | G189: =IF(Data!G189<>"",1,IF(Data!G189="","",0)) -> 1 | H189: =IF(Data!H189<>"",1,IF(Data!H189="","",0)) -> 1 | I189: =IF(Data!I189<>"",1,IF(Data!I189="","",0)) ->  | J189: =IF(Data!J189<>"",1,IF(Data!J189="","",0)) ->  | K189: =IF(Data!K189<>"",1,IF(Data!K189="","",0)) ->  | L189: =IF(Data!L189<>"",1,IF(Data!L189="","",0)) ->  | M189: =IF(Data!M189<>"",1,IF(Data!M189="","",0)) -> 
A190: 2011 | B190: 841 | C190: =IF(Data!C190<>"",1,IF(Data!C190="","",0)) ->  | D190: =IF(Data!D190<>"",1,IF(Data!D190="","",0)) ->  | E190: =IF(Data!E190<>"",1,IF(Data!E190="","",0)) ->  | F190: =IF(Data!F190<>"",1,IF(Data!F190="","",0)) -> 1 | G190: =IF(Data!G190<>"",1,IF(Data!G190="","",0)) -> 1 | H190: =IF(Data!H190<>"",1,IF(Data!H190="","",0)) -> 1 | I190: =IF(Data!I190<>"",1,IF(Data!I190="","",0)) ->  | J190: =IF(Data!J190<>"",1,IF(Data!J190="","",0)) ->  | K190: =IF(Data!K190<>"",1,IF(Data!K190="","",0)) ->  | L190: =IF(Data!L190<>"",1,IF(Data!L190="","",0)) ->  | M190: =IF(Data!M190<>"",1,IF(Data!M190="","",0)) -> 
A191: 2011 | B191: 842 | C191: =IF(Data!C191<>"",1,IF(Data!C191="","",0)) ->  | D191: =IF(Data!D191<>"",1,IF(Data!D191="","",0)) ->  | E191: =IF(Data!E191<>"",1,IF(Data!E191="","",0)) -> 1 | F191: =IF(Data!F191<>"",1,IF(Data!F191="","",0)) -> 1 | G191: =IF(Data!G191<>"",1,IF(Data!G191="","",0)) -> 1 | H191: =IF(Data!H191<>"",1,IF(Data!H191="","",0)) -> 1 | I191: =IF(Data!I191<>"",1,IF(Data!I191="","",0)) ->  | J191: =IF(Data!J191<>"",1,IF(Data!J191="","",0)) ->  | K191: =IF(Data!K191<>"",1,IF(Data!K191="","",0)) ->  | L191: =IF(Data!L191<>"",1,IF(Data!L191="","",0)) ->  | M191: =IF(Data!M191<>"",1,IF(Data!M191="","",0)) -> 
A192: 2011 | B192: 843 | C192: =IF(Data!C192<>"",1,IF(Data!C192="","",0)) ->  | D192: =IF(Data!D192<>"",1,IF(Data!D192="","",0)) ->  | E192: =IF(Data!E192<>"",1,IF(Data!E192="","",0)) -> 1 | F192: =IF(Data!F192<>"",1,IF(Data!F192="","",0)) -> 1 | G192: =IF(Data!G192<>"",1,IF(Data!G192="","",0)) -> 1 | H192: =IF(Data!H192<>"",1,IF(Data!H192="","",0)) -> 1 | I192: =IF(Data!I192<>"",1,IF(Data!I192="","",0)) ->  | J192: =IF(Data!J192<>"",1,IF(Data!J192="","",0)) ->  | K192: =IF(Data!K192<>"",1,IF(Data!K192="","",0)) ->  | L192: =IF(Data!L192<>"",1,IF(Data!L192="","",0)) ->  | M192: =IF(Data!M192<>"",1,IF(Data!M192="","",0)) -> 
A193: 2011 | B193: 844 | C193: =IF(Data!C193<>"",1,IF(Data!C193="","",0)) ->  | D193: =IF(Data!D193<>"",1,IF(Data!D193="","",0)) ->  | E193: =IF(Data!E193<>"",1,IF(Data!E193="","",0)) ->  | F193: =IF(Data!F193<>"",1,IF(Data!F193="","",0)) -> 1 | G193: =IF(Data!G193<>"",1,IF(Data!G193="","",0)) -> 1 | H193: =IF(Data!H193<>"",1,IF(Data!H193="","",0)) -> 1 | I193: =IF(Data!I193<>"",1,IF(Data!I193="","",0)) ->  | J193: =IF(Data!J193<>"",1,IF(Data!J193="","",0)) ->  | K193: =IF(Data!K193<>"",1,IF(Data!K193="","",0)) ->  | L193: =IF(Data!L193<>"",1,IF(Data!L193="","",0)) ->  | M193: =IF(Data!M193<>"",1,IF(Data!M193="","",0)) -> 
A194: 2011 | B194: 845 | C194: =IF(Data!C194<>"",1,IF(Data!C194="","",0)) ->  | D194: =IF(Data!D194<>"",1,IF(Data!D194="","",0)) ->  | E194: =IF(Data!E194<>"",1,IF(Data!E194="","",0)) ->  | F194: =IF(Data!F194<>"",1,IF(Data!F194="","",0)) -> 1 | G194: =IF(Data!G194<>"",1,IF(Data!G194="","",0)) -> 1 | H194: =IF(Data!H194<>"",1,IF(Data!H194="","",0)) -> 1 | I194: =IF(Data!I194<>"",1,IF(Data!I194="","",0)) ->  | J194: =IF(Data!J194<>"",1,IF(Data!J194="","",0)) ->  | K194: =IF(Data!K194<>"",1,IF(Data!K194="","",0)) ->  | L194: =IF(Data!L194<>"",1,IF(Data!L194="","",0)) ->  | M194: =IF(Data!M194<>"",1,IF(Data!M194="","",0)) -> 
A195: 2011 | B195: 846 | C195: =IF(Data!C195<>"",1,IF(Data!C195="","",0)) ->  | D195: =IF(Data!D195<>"",1,IF(Data!D195="","",0)) ->  | E195: =IF(Data!E195<>"",1,IF(Data!E195="","",0)) ->  | F195: =IF(Data!F195<>"",1,IF(Data!F195="","",0)) -> 1 | G195: =IF(Data!G195<>"",1,IF(Data!G195="","",0)) -> 1 | H195: =IF(Data!H195<>"",1,IF(Data!H195="","",0)) -> 1 | I195: =IF(Data!I195<>"",1,IF(Data!I195="","",0)) ->  | J195: =IF(Data!J195<>"",1,IF(Data!J195="","",0)) ->  | K195: =IF(Data!K195<>"",1,IF(Data!K195="","",0)) ->  | L195: =IF(Data!L195<>"",1,IF(Data!L195="","",0)) ->  | M195: =IF(Data!M195<>"",1,IF(Data!M195="","",0)) -> 
A196: 2011 | B196: 899 | C196: =IF(Data!C196<>"",1,IF(Data!C196="","",0)) ->  | D196: =IF(Data!D196<>"",1,IF(Data!D196="","",0)) ->  | E196: =IF(Data!E196<>"",1,IF(Data!E196="","",0)) ->  | F196: =IF(Data!F196<>"",1,IF(Data!F196="","",0)) ->  | G196: =IF(Data!G196<>"",1,IF(Data!G196="","",0)) ->  | H196: =IF(Data!H196<>"",1,IF(Data!H196="","",0)) -> 1 | I196: =IF(Data!I196<>"",1,IF(Data!I196="","",0)) ->  | J196: =IF(Data!J196<>"",1,IF(Data!J196="","",0)) ->  | K196: =IF(Data!K196<>"",1,IF(Data!K196="","",0)) ->  | L196: =IF(Data!L196<>"",1,IF(Data!L196="","",0)) ->  | M196: =IF(Data!M196<>"",1,IF(Data!M196="","",0)) -> 
A197: 2011 | B197: 933 | C197: =IF(Data!C197<>"",1,IF(Data!C197="","",0)) -> 1 | D197: =IF(Data!D197<>"",1,IF(Data!D197="","",0)) -> 1 | E197: =IF(Data!E197<>"",1,IF(Data!E197="","",0)) -> 1 | F197: =IF(Data!F197<>"",1,IF(Data!F197="","",0)) -> 1 | G197: =IF(Data!G197<>"",1,IF(Data!G197="","",0)) -> 1 | H197: =IF(Data!H197<>"",1,IF(Data!H197="","",0)) -> 1 | I197: =IF(Data!I197<>"",1,IF(Data!I197="","",0)) ->  | J197: =IF(Data!J197<>"",1,IF(Data!J197="","",0)) ->  | K197: =IF(Data!K197<>"",1,IF(Data!K197="","",0)) ->  | L197: =IF(Data!L197<>"",1,IF(Data!L197="","",0)) ->  | M197: =IF(Data!M197<>"",1,IF(Data!M197="","",0)) -> 
A198: 2011 | B198: 937 | C198: =IF(Data!C198<>"",1,IF(Data!C198="","",0)) ->  | D198: =IF(Data!D198<>"",1,IF(Data!D198="","",0)) -> 1 | E198: =IF(Data!E198<>"",1,IF(Data!E198="","",0)) -> 1 | F198: =IF(Data!F198<>"",1,IF(Data!F198="","",0)) -> 1 | G198: =IF(Data!G198<>"",1,IF(Data!G198="","",0)) -> 1 | H198: =IF(Data!H198<>"",1,IF(Data!H198="","",0)) -> 1 | I198: =IF(Data!I198<>"",1,IF(Data!I198="","",0)) ->  | J198: =IF(Data!J198<>"",1,IF(Data!J198="","",0)) ->  | K198: =IF(Data!K198<>"",1,IF(Data!K198="","",0)) ->  | L198: =IF(Data!L198<>"",1,IF(Data!L198="","",0)) ->  | M198: =IF(Data!M198<>"",1,IF(Data!M198="","",0)) -> 
A199: 2011 | B199: 938 | C199: =IF(Data!C199<>"",1,IF(Data!C199="","",0)) ->  | D199: =IF(Data!D199<>"",1,IF(Data!D199="","",0)) -> 1 | E199: =IF(Data!E199<>"",1,IF(Data!E199="","",0)) -> 1 | F199: =IF(Data!F199<>"",1,IF(Data!F199="","",0)) ->  | G199: =IF(Data!G199<>"",1,IF(Data!G199="","",0)) ->  | H199: =IF(Data!H199<>"",1,IF(Data!H199="","",0)) ->  | I199: =IF(Data!I199<>"",1,IF(Data!I199="","",0)) ->  | J199: =IF(Data!J199<>"",1,IF(Data!J199="","",0)) ->  | K199: =IF(Data!K199<>"",1,IF(Data!K199="","",0)) ->  | L199: =IF(Data!L199<>"",1,IF(Data!L199="","",0)) ->  | M199: =IF(Data!M199<>"",1,IF(Data!M199="","",0)) -> 
A200: 2011 | B200: 940 | C200: =IF(Data!C200<>"",1,IF(Data!C200="","",0)) ->  | D200: =IF(Data!D200<>"",1,IF(Data!D200="","",0)) -> 1 | E200: =IF(Data!E200<>"",1,IF(Data!E200="","",0)) -> 1 | F200: =IF(Data!F200<>"",1,IF(Data!F200="","",0)) -> 1 | G200: =IF(Data!G200<>"",1,IF(Data!G200="","",0)) -> 1 | H200: =IF(Data!H200<>"",1,IF(Data!H200="","",0)) -> 1 | I200: =IF(Data!I200<>"",1,IF(Data!I200="","",0)) ->  | J200: =IF(Data!J200<>"",1,IF(Data!J200="","",0)) ->  | K200: =IF(Data!K200<>"",1,IF(Data!K200="","",0)) ->  | L200: =IF(Data!L200<>"",1,IF(Data!L200="","",0)) ->  | M200: =IF(Data!M200<>"",1,IF(Data!M200="","",0)) -> 
A201: 2011 | B201: 949 | C201: =IF(Data!C201<>"",1,IF(Data!C201="","",0)) ->  | D201: =IF(Data!D201<>"",1,IF(Data!D201="","",0)) -> 1 | E201: =IF(Data!E201<>"",1,IF(Data!E201="","",0)) -> 1 | F201: =IF(Data!F201<>"",1,IF(Data!F201="","",0)) -> 1 | G201: =IF(Data!G201<>"",1,IF(Data!G201="","",0)) -> 1 | H201: =IF(Data!H201<>"",1,IF(Data!H201="","",0)) -> 1 | I201: =IF(Data!I201<>"",1,IF(Data!I201="","",0)) ->  | J201: =IF(Data!J201<>"",1,IF(Data!J201="","",0)) ->  | K201: =IF(Data!K201<>"",1,IF(Data!K201="","",0)) ->  | L201: =IF(Data!L201<>"",1,IF(Data!L201="","",0)) ->  | M201: =IF(Data!M201<>"",1,IF(Data!M201="","",0)) -> 
A202: 2011 | B202: 951 | C202: =IF(Data!C202<>"",1,IF(Data!C202="","",0)) ->  | D202: =IF(Data!D202<>"",1,IF(Data!D202="","",0)) -> 1 | E202: =IF(Data!E202<>"",1,IF(Data!E202="","",0)) -> 1 | F202: =IF(Data!F202<>"",1,IF(Data!F202="","",0)) -> 1 | G202: =IF(Data!G202<>"",1,IF(Data!G202="","",0)) -> 1 | H202: =IF(Data!H202<>"",1,IF(Data!H202="","",0)) -> 1 | I202: =IF(Data!I202<>"",1,IF(Data!I202="","",0)) ->  | J202: =IF(Data!J202<>"",1,IF(Data!J202="","",0)) ->  | K202: =IF(Data!K202<>"",1,IF(Data!K202="","",0)) ->  | L202: =IF(Data!L202<>"",1,IF(Data!L202="","",0)) ->  | M202: =IF(Data!M202<>"",1,IF(Data!M202="","",0)) -> 
... 122 more rows

Sheet Summary
D2: Reserves, volatility and skewness based on individual claims analysis
C4: UWY | D4: Known claims | E4: Known claims incurred | F4: IBNER | G4: Future claims | H4: CoV (N) | I4: Stdev(N) | J4: Var(N) | K4: SK(N) | L4: Stdev (SIC) | M4: Var(SIC) | N4: E(SIC) | O4: Reserves (indiv based) | P4: Reserves (chain-ladder) | Q4: Var (IBNER) factor | R4: Standard deviation (indiv based) | S4: Standard deviation chain-ladder | T4: SK(SIC) | U4: SK IBNER factor | V4: Skewness (indiv based) | W4: Skewness coef (indiv based) | X4: Skewness coef chain ladder | Y4: Standard deviation per future claim | Z4: Standard deviation per future claim (CL) | AA4: Skewness^(1/3) per future claim | AB4: Skewness^(1/3) per future claim (CL) | AC4: E(X)xVar(X)
B5: 0 | C5: 2007 | D5: =OFFSET('Triangle nb UWY Reporting dvlpt'!Z22,0,Summary!B5) -> 49 | E5: =OFFSET('Triangle incurred Chain Ladder'!K5,0,Summary!B5) -> 11855385.82 | F5: =E5*(OFFSET(Data!$AI$329,0,Summary!B5)-1) -> -7293.422553 | G5: ='Triangle nb UWY Reporting dvlpt'!AB22 -> 2.041666667 | H5: ='Triangle nb UWY Reporting dvlpt'!AC22 -> 0.4469810986 | I5: =H5*G5 -> 0.9125864097 | J5: =I5^2 -> 0.8328139552 | K5: ='Triangle nb UWY Reporting dvlpt'!AD22*Summary!I5^3 -> 0 | L5: =OFFSET(Data!$X$326,0,Summary!B5) -> 1596.914654 | M5: =L5^2 -> 2550136.412 | N5: =MAX(0,OFFSET(Data!$X$329,0,Summary!B5)) -> 272.5751217 | O5: =G5*SUM(N$5:N5)+F5 -> -6736.915012 | P5: ='Triangle incurred Chain Ladder'!M5 -> 47057.74262 | Q5: ='Triangle Di Schnieper'!M68 -> 0 | R5: =SQRT(SUM(M$5:M5)*(G5)+J5*SUM(N$5:N5)^2+E5^2*Q5) -> 2295.300471 | S5: ='Triangle incurred Chain Ladder'!N5*'Triangle incurred Chain Ladder'!M5 -> 226.8664129 | T5: =OFFSET(Data!$X$328,0,Summary!B5) -> 1.973777552e+10 | U5: ='Triangle Di Schnieper'!M85 -> 0 | V5: =SUM(T$5:T5)*(G5)+SUM(N$5:N5)^3*K5+3*J5*SUM(N$5:N5)*SUM(M$5:M5)-E5*U5 -> 4.203463464e+10 | W5: =V5/R5^3 -> 3.476071009 | X5: ='Triangle incurred Chain Ladder'!O5 -> 0 | Y5: =R5/G5 -> 1124.228802 | Z5: =S5/G5 -> 111.1182431 | AA5: =V5^(1/3)/G5 -> 1703.011526 | AB5: =X5^(1/3)*S5/G5 -> 0 | AC5: =N5*M5 -> 695103743.1
B6: -1 | C6: 2008 | D6: =OFFSET('Triangle nb UWY Reporting dvlpt'!Z23,0,Summary!B6) -> 28 | E6: =OFFSET('Triangle incurred Chain Ladder'!K6,0,Summary!B6) -> 1608241.601 | F6: =E6*(OFFSET(Data!$AI$329,0,Summary!B6)-1) -> 638.1448993 | G6: ='Triangle nb UWY Reporting dvlpt'!AB23 -> 1.571759259 | H6: ='Triangle nb UWY Reporting dvlpt'!AC23 -> 0.5087082139 | I6: 0.7995668455 | J6: 0.6393071404 | K6: ='Triangle nb UWY Reporting dvlpt'!AD23*Summary!I6^3 -> -0.02286878506 | L6: =OFFSET(Data!$X$326,0,Summary!B6) -> 2441.224122 | M6: 5959575.216 | N6: =MAX(0,OFFSET(Data!$X$329,0,Summary!B6)) -> 422.8899452 | O6: =G6*SUM(N$5:N6)+F6 -> 1731.248558 | P6: ='Triangle incurred Chain Ladder'!M6 -> 10064.58473 | Q6: ='Triangle Di Schnieper'!M69 -> 0 | R6: =SQRT(SUM(M$5:M6)*(G6)+J6*SUM(N$5:N6)^2+E6^2*Q6) -> 3699.247598 | S6: ='Triangle incurred Chain Ladder'!N6*'Triangle incurred Chain Ladder'!M6 -> 2460.742103 | T6: =OFFSET(Data!$X$328,0,Summary!B6) -> 8.926958262e+10 | U6: ='Triangle Di Schnieper'!M86 -> 0 | V6: =SUM(T$5:T6)*(G6)+SUM(N$5:N6)^3*K6+3*J6*SUM(N$5:N6)*SUM(M$5:M6)-E6*U6 -> 1.826762883e+11 | W6: 3.608626859 | X6: ='Triangle incurred Chain Ladder'!O6 -> -0.5358995142 | Y6: 2353.571373 | Z6: 1565.597332 | AA6: 3610.006901 | AB6: -1271.670296 | AC6: 2520244437
B7: -2 | C7: 2009 | D7: =OFFSET('Triangle nb UWY Reporting dvlpt'!Z24,0,Summary!B7) -> 31 | E7: =OFFSET('Triangle incurred Chain Ladder'!K7,0,Summary!B7) -> 8030480.964 | F7: =E7*(OFFSET(Data!$AI$329,0,Summary!B7)-1) -> -340934.72 | G7: ='Triangle nb UWY Reporting dvlpt'!AB24 -> 2.070870744 | H7: ='Triangle nb UWY Reporting dvlpt'!AC24 -> 0.4839396201 | I7: 1.002176401 | J7: 1.00435754 | K7: ='Triangle nb UWY Reporting dvlpt'!AD24*Summary!I7^3 -> -0.003625819614 | L7: =OFFSET(Data!$X$326,0,Summary!B7) -> 59555.09394 | M7: 3546809214 | N7: =MAX(0,OFFSET(Data!$X$329,0,Summary!B7)) -> 0 | O7: =G7*SUM(N$5:N7)+F7 -> -339494.5017 | P7: ='Triangle incurred Chain Ladder'!M7 -> -92337.69462 | Q7: ='Triangle Di Schnieper'!M70 -> 1.938397006e-10 | R7: =SQRT(SUM(M$5:M7)*(G7)+J7*SUM(N$5:N7)^2+E7^2*Q7) -> 85808.53239 | S7: ='Triangle incurred Chain Ladder'!N7*'Triangle incurred Chain Ladder'!M7 -> 500929.4382 | T7: =OFFSET(Data!$X$328,0,Summary!B7) -> -4.010569762e+13 | U7: ='Triangle Di Schnieper'!M87 -> 2.416263752e-15 | V7: =SUM(T$5:T7)*(G7)+SUM(N$5:N7)^3*K7+3*J7*SUM(N$5:N7)*SUM(M$5:M7)-E7*U7 -> -7.537785325e+13 | W7: -0.1193032685 | X7: ='Triangle incurred Chain Ladder'!O7 -> -0.6218117458 | Y7: 41435.96727 | Z7: 241893.1455 | AA7: -20398.34481 | AB7: -206463.4606 | AC7: 0
B8: -3 | C8: 2010 | D8: =OFFSET('Triangle nb UWY Reporting dvlpt'!Z25,0,Summary!B8) -> 40 | E8: =OFFSET('Triangle incurred Chain Ladder'!K8,0,Summary!B8) -> 27873128.27 | F8: =E8*(OFFSET(Data!$AI$329,0,Summary!B8)-1) -> 3044617.325 | G8: ='Triangle nb UWY Reporting dvlpt'!AB25 -> 4.378974935 | H8: ='Triangle nb UWY Reporting dvlpt'!AC25 -> 0.366794004 | I8: 1.60618175 | J8: 2.579819813 | K8: ='Triangle nb UWY Reporting dvlpt'!AD25*Summary!I8^3 -> 0.4720553647 | L8: =OFFSET(Data!$X$326,0,Summary!B8) -> 408681.6671 | M8: 1.67020705e+11 | N8: =MAX(0,OFFSET(Data!$X$329,0,Summary!B8)) -> 24940.77447 | O8: =G8*SUM(N$5:N8)+F8 -> 3156877.775 | P8: ='Triangle incurred Chain Ladder'!M8 -> 4099822.838 | Q8: ='Triangle Di Schnieper'!M71 -> 0.0009310387238 | R8: =SQRT(SUM(M$5:M8)*(G8)+J8*SUM(N$5:N8)^2+E8^2*Q8) -> 1213251.054 | S8: ='Triangle incurred Chain Ladder'!N8*'Triangle incurred Chain Ladder'!M8 -> 10913341.38 | T8: =OFFSET(Data!$X$328,0,Summary!B8) -> 6.661990774e+17 | U8: ='Triangle Di Schnieper'!M88 -> 3.720802886e-05 | V8: =SUM(T$5:T8)*(G8)+SUM(N$5:N8)^3*K8+3*J8*SUM(N$5:N8)*SUM(M$5:M8)-E8*U8 -> 2.950945968e+18 | W8: 1.652377321 | X8: ='Triangle incurred Chain Ladder'!O8 -> 0.4237301946 | Y8: 277062.7994 | Z8: 2492213.712 | AA8: 327552.7827 | AB8: 1871896.154 | AC8: 4165625734953300
B9: -4 | C9: 2011 | D9: =OFFSET('Triangle nb UWY Reporting dvlpt'!Z26,0,Summary!B9) -> 41 | E9: =OFFSET('Triangle incurred Chain Ladder'!K9,0,Summary!B9) -> 4186377.882 | F9: =E9*(OFFSET(Data!$AI$329,0,Summary!B9)-1) -> 388768.3348 | G9: ='Triangle nb UWY Reporting dvlpt'!AB26 -> 6.806332075 | H9: ='Triangle nb UWY Reporting dvlpt'!AC26 -> 0.6874195721 | I9: 4.678805883 | J9: 21.89122449 | K9: ='Triangle nb UWY Reporting dvlpt'!AD26*Summary!I9^3 -> 42.87520641 | L9: =OFFSET(Data!$X$326,0,Summary!B9) -> 103043.9486 | M9: 1.061805535e+10 | N9: =MAX(0,OFFSET(Data!$X$329,0,Summary!B9)) -> 2740.405047 | O9: =G9*SUM(N$5:N9)+F9 -> 581909.201 | P9: ='Triangle incurred Chain Ladder'!M9 -> 660920.9646 | Q9: ='Triangle Di Schnieper'!M72 -> 0.08298434847 | R9: =SQRT(SUM(M$5:M9)*(G9)+J9*SUM(N$5:N9)^2+E9^2*Q9) -> 1644766.97 | S9: ='Triangle incurred Chain Ladder'!N9*'Triangle incurred Chain Ladder'!M9 -> 3158149.431 | T9: =OFFSET(Data!$X$328,0,Summary!B9) -> -1145912450844342 | U9: ='Triangle Di Schnieper'!M89 -> -0.0376775652 | V9: =SUM(T$5:T9)*(G9)+SUM(N$5:N9)^3*K9+3*J9*SUM(N$5:N9)*SUM(M$5:M9)-E9*U9 -> 4.864953162e+18 | W9: 1.093365926 | X9: ='Triangle incurred Chain Ladder'!O9 -> 0.7141777277 | Y9: 241652.4719 | Z9: 464001.6673 | AA9: 248950.5482 | AB9: 414751.8276 | AC9: 2.909777247e+13
B10: -5 | C10: 2012 | D10: =OFFSET('Triangle nb UWY Reporting dvlpt'!Z27,0,Summary!B10) -> 45 | E10: =OFFSET('Triangle incurred Chain Ladder'!K10,0,Summary!B10) -> 4742006.887 | F10: =E10*(OFFSET(Data!$AI$329,0,Summary!B10)-1) -> 396840.771 | G10: ='Triangle nb UWY Reporting dvlpt'!AB27 -> 9.393362124 | H10: ='Triangle nb UWY Reporting dvlpt'!AC27 -> 0.6351176748 | I10: 5.965890311 | J10: 35.5918472 | K10: ='Triangle nb UWY Reporting dvlpt'!AD27*Summary!I10^3 -> 68.02735123 | L10: =OFFSET(Data!$X$326,0,Summary!B10) -> 531209.6135 | M10: 2.821836534e+11 | N10: =MAX(0,OFFSET(Data!$X$329,0,Summary!B10)) -> 42248.77122 | O10: =G10*SUM(N$5:N10)+F10 -> 1060250.877 | P10: ='Triangle incurred Chain Ladder'!M10 -> 1800447.772 | Q10: ='Triangle Di Schnieper'!M73 -> 0.08359068213 | R10: =SQRT(SUM(M$5:M10)*(G10)+J10*SUM(N$5:N10)^2+E10^2*Q10) -> 2531773.659 | S10: ='Triangle incurred Chain Ladder'!N10*'Triangle incurred Chain Ladder'!M10 -> 3974048.161 | T10: =OFFSET(Data!$X$328,0,Summary!B10) -> 2.040366334e+18 | U10: ='Triangle Di Schnieper'!M90 -> -0.03767562101 | V10: =SUM(T$5:T10)*(G10)+SUM(N$5:N10)^3*K10+3*J10*SUM(N$5:N10)*SUM(M$5:M10)-E10*U10 -> 2.893093628e+19 | W10: 1.782739379 | X10: ='Triangle incurred Chain Ladder'!O10 -> 0.6924708059 | Y10: 269527.9523 | Z10: 423069.8347 | AA10: 326813.3317 | AB10: 374293.7285 | AC10: 1.192191262e+16
B11: -6 | C11: 2013 | D11: =OFFSET('Triangle nb UWY Reporting dvlpt'!Z28,0,Summary!B11) -> 20 | E11: =OFFSET('Triangle incurred Chain Ladder'!K11,0,Summary!B11) -> 5478547.634 | F11: =E11*(OFFSET(Data!$AI$329,0,Summary!B11)-1) -> 783004.2776 | G11: ='Triangle nb UWY Reporting dvlpt'!AB28 -> 7.695433573 | H11: ='Triangle nb UWY Reporting dvlpt'!AC28 -> 0.7040092495 | I11: 5.417656414 | J11: 29.35100102 | K11: ='Triangle nb UWY Reporting dvlpt'!AD28*Summary!I11^3 -> 58.93279746 | L11: =OFFSET(Data!$X$326,0,Summary!B11) -> 177257.3881 | M11: 3.142018164e+10 | N11: =MAX(0,OFFSET(Data!$X$329,0,Summary!B11)) -> 16022.70944 | O11: =G11*SUM(N$5:N11)+F11 -> 1449799.17 | P11: ='Triangle incurred Chain Ladder'!M11 -> 2706627.446 | Q11: ='Triangle Di Schnieper'!M74 -> 0.08367253618 | R11: =SQRT(SUM(M$5:M11)*(G11)+J11*SUM(N$5:N11)^2+E11^2*Q11) -> 2557232.255 | S11: ='Triangle incurred Chain Ladder'!N11*'Triangle incurred Chain Ladder'!M11 -> 4983312.629 | T11: =OFFSET(Data!$X$328,0,Summary!B11) -> 2.830040159e+16 | U11: ='Triangle Di Schnieper'!M91 -> -0.03767666838 | V11: =SUM(T$5:T11)*(G11)+SUM(N$5:N11)^3*K11+3*J11*SUM(N$5:N11)*SUM(M$5:M11)-E11*U11 -> 2.48503144e+19 | W11: 1.48600875 | X11: ='Triangle incurred Chain Ladder'!O11 -> 0.7763998856 | Y11: 332305.1561 | Z11: 647567.4933 | AA11: 379208.039 | AB11: 595177.9878 | AC11: 5.03436441e+14
B12: -7 | C12: 2014 | D12: =OFFSET('Triangle nb UWY Reporting dvlpt'!Z29,0,Summary!B12) -> 20 | E12: =OFFSET('Triangle incurred Chain Ladder'!K12,0,Summary!B12) -> 14857472.67 | F12: =E12*(OFFSET(Data!$AI$329,0,Summary!B12)-1) -> 4021820.704 | G12: ='Triangle nb UWY Reporting dvlpt'!AB29 -> 16.39051156 | H12: ='Triangle nb UWY Reporting dvlpt'!AC29 -> 0.8029751443 | I12: 13.16117338 | J12: 173.2164848 | K12: ='Triangle nb UWY Reporting dvlpt'!AD29*Summary!I12^3 -> 2689.817329 | L12: =OFFSET(Data!$X$326,0,Summary!B12) -> 332358.1289 | M12: 1.104619258e+11 | N12: =MAX(0,OFFSET(Data!$X$329,0,Summary!B12)) -> 54385.61729 | O12: =G12*SUM(N$5:N12)+F12 -> 6333435.891 | P12: ='Triangle incurred Chain Ladder'!M12 -> 14564159.41 | Q12: ='Triangle Di Schnieper'!M75 -> 0.0931770369 | R12: =SQRT(SUM(M$5:M12)*(G12)+J12*SUM(N$5:N12)^2+E12^2*Q12) -> 5825307 | S12: ='Triangle incurred Chain Ladder'!N12*'Triangle incurred Chain Ladder'!M12 -> 14516103.57 | T12: =OFFSET(Data!$X$328,0,Summary!B12) -> 3.329247553e+17 | U12: ='Triangle Di Schnieper'!M92 -> -0.04104991298 | V12: =SUM(T$5:T12)*(G12)+SUM(N$5:N12)^3*K12+3*J12*SUM(N$5:N12)*SUM(M$5:M12)-E12*U12 -> 1.021671342e+20 | W12: 0.5168383811 | X12: ='Triangle incurred Chain Ladder'!O12 -> 0.6912389143 | Y12: 355407.2721 | Z12: 885640.6662 | AA12: 285218.634 | AB12: 783069.4416 | AC12: 6007540023176210
B13: -8 | C13: 2015 | D13: =OFFSET('Triangle nb UWY Reporting dvlpt'!Z30,0,Summary!B13) -> 6 | E13: =OFFSET('Triangle incurred Chain Ladder'!K13,0,Summary!B13) -> 9172509.354 | F13: =E13*(OFFSET(Data!$AI$329,0,Summary!B13)-1) -> 15201826.76 | G13: ='Triangle nb UWY Reporting dvlpt'!AB30 -> 11.18109398 | H13: ='Triangle nb UWY Reporting dvlpt'!AC30 -> 0.9978097667 | I13: 11.15660478 | J13: 124.4698301 | K13: ='Triangle nb UWY Reporting dvlpt'!AD30*Summary!I13^3 -> 1952.762732 | L13: =OFFSET(Data!$X$326,0,Summary!B13) -> 970351.6728 | M13: 9.415823689e+11 | N13: =MAX(0,OFFSET(Data!$X$329,0,Summary!B13)) -> 190389.0708 | O13: =G13*SUM(N$5:N13)+F13 -> 18907496.38 | P13: ='Triangle incurred Chain Ladder'!M13 -> 50258563.34 | Q13: ='Triangle Di Schnieper'!M76 -> 0.09551687409 | R13: =SQRT(SUM(M$5:M13)*(G13)+J13*SUM(N$5:N13)^2+E13^2*Q13) -> 6245285.754 | S13: ='Triangle incurred Chain Ladder'!N13*'Triangle incurred Chain Ladder'!M13 -> 50320626.47 | T13: =OFFSET(Data!$X$328,0,Summary!B13) -> 5.744582706e+18 | U13: ='Triangle Di Schnieper'!M93 -> -0.04114090868 | V13: =SUM(T$5:T13)*(G13)+SUM(N$5:N13)^3*K13+3*J13*SUM(N$5:N13)*SUM(M$5:M13)-E13*U13 -> 3.610384364e+20 | W13: 1.482164806 | X13: ='Triangle incurred Chain Ladder'!O13 -> 0.9575144518 | Y13: 558557.6657 | Z13: 4500510.108 | AA13: 636844.6656 | AB13: 4435850.021 | AC13: 1.792669923e+17
B14: -9 | C14: 2016 | D14: =OFFSET('Triangle nb UWY Reporting dvlpt'!Z31,0,Summary!B14) -> 2 | E14: =OFFSET('Triangle incurred Chain Ladder'!K14,0,Summary!B14) -> 213825.3027 | F14: =E14*(OFFSET(Data!$AI$329,0,Summary!B14)-1) -> 3700157.285 | G14: ='Triangle nb UWY Reporting dvlpt'!AB31 -> 31.32090954 | H14: ='Triangle nb UWY Reporting dvlpt'!AC31 -> 0.7847876266 | I14: 24.58026226 | J14: 604.1892928 | K14: ='Triangle nb UWY Reporting dvlpt'!AD31*Summary!I14^3 -> 15528.51119 | L14: =OFFSET(Data!$X$326,0,Summary!B14) -> 732010.1346 | M14: 5.358388372e+11 | N14: =MAX(0,OFFSET(Data!$X$329,0,Summary!B14)) -> 187447.7418 | O14: =G14*SUM(N$5:N14)+F14 -> 19951655 | P14: ='Triangle incurred Chain Ladder'!M14 -> 27682338.39 | Q14: ='Triangle Di Schnieper'!M77 -> 1.470914705 | R14: =SQRT(SUM(M$5:M14)*(G14)+J14*SUM(N$5:N14)^2+E14^2*Q14) -> 15098429.65 | S14: ='Triangle incurred Chain Ladder'!N14*'Triangle incurred Chain Ladder'!M14 -> 51778915.67 | T14: =OFFSET(Data!$X$328,0,Summary!B14) -> 1.852927142e+18 | U14: ='Triangle Di Schnieper'!M94 -> -5.487750835 | V14: =SUM(T$5:T14)*(G14)+SUM(N$5:N14)^3*K14+3*J14*SUM(N$5:N14)*SUM(M$5:M14)-E14*U14 -> 4.461982979e+21 | W14: 1.29638074 | X14: ='Triangle incurred Chain Ladder'!O14 -> 2.118208751 | Y14: 482055.9131 | Z14: 1653174.076 | AA14: 525623.6986 | AB14: 2123121.454 | AC14: 1.0044178e+17
C15: Total | N15: Total | O15: =SUM(O5:O14) -> 51096924.13 | P15: =SUM(P5:P14) -> 101737664.8 | R15: =SQRT(MMULT(TRANSPOSE(R5:R14),MMULT(B22:K31,R5:R14))) -> 21484300.55 | S15: =SQRT(MMULT(TRANSPOSE(S5:S14),MMULT(B22:K31,S5:S14))) -> 89931006.57 | V15: 8.939661908e+21 | W15: =V15/R15^3 -> 0.9014827834 | X15: ='Triangle incurred Chain Ladder'!O15 -> 1.745503239
B20: Correlation Mack 1993
A21: UWY / UWY | B21: 2007 | C21: 2008 | D21: 2009 | E21: 2010 | F21: 2011 | G21: 2012 | H21: 2013 | I21: 2014 | J21: 2015 | K21: 2016
A22: 2007 | B22: 1 | C22: 0.01094953525 | D22: 0.0002638417202 | E22: 4.877823423e-05 | F22: 2.55545485e-05 | G22: 2.740997802e-05 | H22: 2.734707813e-05 | I22: 3.374564968e-05 | J22: 1.966385311e-05 | K22: 8.970003718e-06
A23: 2008 | B23: 0.01094953525 | C23: 1 | D23: 0.002560580046 | E23: 0.0004733920518 | F23: 0.0002480065205 | G23: 0.0002660134369 | H23: 0.0002654029944 | I23: 0.000327501038 | J23: 0.0001908374077 | K23: 8.705375526e-05
A24: 2009 | B24: 0.0002638417202 | C24: 0.002560580046 | D24: 1 | E24: 0.06330635416 | F24: 0.0331657208 | G24: 0.03557377186 | H24: 0.03549213785 | I24: 0.04379646135 | J24: 0.02552053942 | K24: 0.01164163158
A25: 2010 | B25: 4.877823423e-05 | C25: 0.0004733920518 | D25: 0.06330635416 | E25: 1 | F25: 0.3045768066 | G25: 0.3266911005 | H25: 0.3259414161 | I25: 0.4022040232 | J25: 0.2343674194 | K25: 0.1069107164
A26: 2011 | B26: 2.55545485e-05 | C26: 0.0002480065205 | D26: 0.0331657208 | E26: 0.3045768066 | F26: 1 | G26: 0.1783052344 | H26: 0.177896063 | I26: 0.2195195477 | J26: 0.1279157516 | K26: 0.05835096308
A27: 2012 | B27: 2.740997802e-05 | C27: 0.0002660134369 | D27: 0.03557377186 | E27: 0.3266911005 | F27: 0.1783052344 | G27: 1 | H27: 0.2004305809 | I27: 0.2473266114 | J27: 0.1441191444 | K27: 0.0657424185
A28: 2013 | B28: 2.734707813e-05 | C28: 0.0002654029944 | D28: 0.03549213785 | E28: 0.3259414161 | F28: 0.177896063 | G28: 0.2004305809 | H28: 1 | I28: 0.2689552831 | J28: 0.15672234 | K28: 0.07149158224
A29: 2014 | B29: 3.374564968e-05 | C29: 0.000327501038 | D29: 0.04379646135 | E29: 0.4022040232 | F29: 0.2195195477 | G29: 0.2473266114 | H29: 0.2689552831 | I29: 1 | J29: 0.2488361634 | K29: 0.113510882
A30: 2015 | B30: 1.966385311e-05 | C30: 0.0001908374077 | D30: 0.02552053942 | E30: 0.2343674194 | F30: 0.1279157516 | G30: 0.1441191444 | H30: 0.15672234 | I30: 0.2488361634 | J30: 1 | K30: 0.1918805822
A31: 2016 | B31: 8.970003718e-06 | C31: 8.705375526e-05 | D31: 0.01164163158 | E31: 0.1069107164 | F31: 0.05835096308 | G31: 0.0657424185 | H31: 0.07149158224 | I31: 0.113510882 | J31: 0.1918805822 | K31: 1
